Workbook

Sheet 1. Information Sheet
U1: a | AA1: =IF(OR(F16="", F16="(if applicable)"), F14, F14 & " - " & F16) -> Hydro Ottawa Limited
M12: Version | N12: 1.1
E14: Utility Name | F14: Hydro Ottawa Limited
E16: Service Territory
E18: Assigned EB Number | F18: EB-2014-0085
E20: Name of Contact and Title | F20: Patrick Hoey, Director, Regulatory Affairs
E22: Phone Number | F22: 613-738-5499 ext 7472
E24: Email Address | F24: PatrickHoey@hydroottawa.com
E26: We are applying for rates effective | F26: 2015-01-01
E28: Rate-Setting Method | F28: Price Cap IR
A30: Please indicate in which Rate Year the Group 1 accounts were last cleared1 | F30: 2014
A32: Please indicate the last Cost of Service Re-Basing Year | F32: 2012
B35: Notes
C37: Pale green cells represent input cells.
C39: Pale blue cells represent drop-down lists. The applicant should select the appropriate item from the drop-down list.
C41: White cells contain fixed values, automatically generated values or formulae.
A44: Note: 1. Rate year of application

Sheet 2. Related Links
A13: ● | B13: Ontario Energy Board's 2015 Electricity Distribution Rates Webpage
A15: ● | B15: An updated version of Chapter 3 of the Filing Requirements for Electricity Distribution Rate Applications for 2015 rates.

Sheet 3. Rate Class Selection
A12: Select the appropriate rate classes as they appear on your most recent Board-Approved Tariff of Rates and Charges, including the MicroFit Class.
A14: How many classes are on your most recent Board-Approved Tariff of Rates and Charges? | J14: 12
A16: Select Your Rate Classes from the Blue Cells below. Please ensure that a rate class is assigned to each shaded cell.
B18: Rate Class Classification | Q18: # of duplicates
A19: 1 | B19: RESIDENTIAL | P19: =COUNTIF($B$19:$J$40, B19) -> 1 | Q19: =COUNTIF(P19:P40, 2)/2 -> 0
A20: 2 | B20: GENERAL SERVICE LESS THAN 50 KW | P20: =COUNTIF($B$19:$J$40, B20) -> 1
A21: 3 | B21: GENERAL SERVICE 50 TO 1,499 KW | P21: 1
A22: 4 | B22: GENERAL SERVICE 1,500 TO 4,999 KW | P22: 1
A23: 5 | B23: LARGE USE | P23: 1
A24: 6 | B24: UNMETERED SCATTERED LOAD | P24: 1
A25: 7 | B25: STANDBY POWER GENERAL SERVICE 50 TO 1,499 KW | P25: 1
A26: 8 | B26: STANDBY POWER GENERAL SERVICE 1,500 TO 4,999 KW | P26: 1
A27: 9 | B27: STANDBY POWER GENERAL SERVICE LARGE USE | P27: 1
A28: 10 | B28: SENTINEL LIGHTING | P28: 1
A29: 11 | B29: STREET LIGHTING | P29: 1
A30: 12 | B30: microFIT | P30: 1
P31: 0
P32: 0
P33: 0

Sheet 4. Current Tariff Schedule
Z1: 3 | AA1: January | AB1: ≥
AA2: February
AA3: March
AA4: April
AA5: May
AA6: June
AA7: July
AA8: August
AA9: September
AA10: October
AA11: November
B12: For each class, Applicants are required to copy and paste the class descriptions (located directly under the class name) and the description of the applicability of those rates (description is found under the class name and directly under the word "APPLICATION"). By using the drop-down lists located under the column labeled "Rate Description", please select the descriptions of the rates and charges that BEST MATCHES the descriptions on your most recent Board-Approved Tariff of Rates and Charges. If the description is not found in the drop-down list, please enter the description in the green cells under the correct class exactly as it appears on the tariff. Please do not enter more than one "Service Charge" for each class for which a base monthly fixed charge applies. | AA12: December
B21: =IF(ISBLANK('1. Information Sheet'!F14), "Please Choose Distributor Name on Sheet 1", '1. Information Sheet'!F14) -> Hydro Ottawa Limited
B22: TARIFF OF RATES AND CHARGES
A24: RESIDENTIAL | B24: RESIDENTIAL Service Classification
A25: RESIDENTIAL
A26: RESIDENTIAL | B26: This classification includes accounts taking electricity at 120/240 volts single phase where the electricity is used exclusively in a separately metered living accommodation. Customers shall be residing in single-dwelling units that consist of a detached house or one unit of a semi-detached, duplex, triple or quadruplex house, with a residential zoning. Separately metered dwellings within a town house complex or apartment building also qualify as residential customes. Further servicing details are available in the distributor's Conditions of Service.
A27: RESIDENTIAL
A28: RESIDENTIAL
A29: RESIDENTIAL
A30: RESIDENTIAL
A31: RESIDENTIAL
A32: RESIDENTIAL | B32: APPLICATION
A33: RESIDENTIAL
A34: RESIDENTIAL | B34: The application of these rates and charges shall be in accordance with the Licence of the Distributor and any Code or Order of the Board, and amendments thereto as approved by the Board, which may be applicable to the administration of this schedule.
A35: RESIDENTIAL
A36: RESIDENTIAL
A37: RESIDENTIAL | B37: No rates and charges for the distribution of electricity and charges to meet the costs of any work or service done or furnished for the purpose of the distribution of electricity shall be made except as permitted by this schedule, unless required by the Distributor’s Licence or a Code or Order of the Board, and amendments thereto as approved by the Board, or as specified herein.
A38: RESIDENTIAL
A39: RESIDENTIAL
A40: RESIDENTIAL
A41: RESIDENTIAL | B41: Unless specifically noted, this schedule does not contain any charges for the electricity commodity, be it under the Regulated Price Plan, a contract with a retailer or the wholesale market price, as applicable. In addition, the charges in the MONTHLY RATES AND CHARGES – Regulatory Component of this schedule do not apply to a customer that is an embedded wholesale market participant.
A42: RESIDENTIAL
A43: RESIDENTIAL
A44: RESIDENTIAL | B44: It should be noted that this schedule does not list any charges, assessments or credits that are required by law to be invoiced by a distributor and that are not subject to Board approval, such as the Debt Retirement Charge, the Global Adjustment, the Ontario Clean Energy Benefit and the HST.
A45: RESIDENTIAL
A46: RESIDENTIAL
A47: RESIDENTIAL
A48: RESIDENTIAL | B48: MONTHLY RATES AND CHARGES - Delivery Component (If applicable, Effective Date MUST be included in rate description)
A49: RESIDENTIAL | B49: Service Charge | H49: $ | I49: 9.55 | K49: 1_C_MSC
A50: RESIDENTIAL | B50: Rate Rider for Smart Metering Entity Charge - effective until October 31, 2018 | H50: $ | I50: 0.79 | K50: 1_C_SMEC | L50: 2018-10-31
A51: RESIDENTIAL | B51: Distribution Volumetric Rate | H51: $/kWh | I51: 0.0231 | K51: 1_C_VC_1
A52: RESIDENTIAL | B52: Low Voltage Service Rate | H52: $/kWh | I52: 6e-05 | K52: 1_C_LVrate
A53: RESIDENTIAL | B53: Retail Transmission Rate - Network Service Rate | H53: $/kWh | I53: 0.008 | K53: 1_C_RTSR_Network
A54: RESIDENTIAL | B54: Retail Transmission Rate - Line and Transformation Connection Service Rate | H54: $/kWh | I54: 0.0042 | K54: 1_C_RTSR_Connection
A55: RESIDENTIAL
A56: RESIDENTIAL
A57: RESIDENTIAL
A58: RESIDENTIAL
A59: RESIDENTIAL
A60: RESIDENTIAL
A61: RESIDENTIAL
A62: RESIDENTIAL
A63: RESIDENTIAL
A64: RESIDENTIAL
A65: RESIDENTIAL
A66: RESIDENTIAL
A67: RESIDENTIAL
A68: RESIDENTIAL
A69: RESIDENTIAL
A70: RESIDENTIAL
A71: RESIDENTIAL
A72: RESIDENTIAL
A73: RESIDENTIAL | B73: Rate Rider for Disposition of Deferral/Variance Accounts (2014) - effective until December 31, 2014 | H73: $/kWh | I73: -0.0018 | K73: 1_C_VC_DEFVAR_kWh_1 | L73: 2014-12-31
A74: RESIDENTIAL | B74: Rate Rider for Disposition of Global Adjustment Account (2014) - effective until December 31, 2014 Applicable only for Non-RPP Customers | H74: $/kWh | I74: -0.0011 | K74: 1_C_VC_GA_Rate_Rider_kWh_1 | L74: 2014-12-31
A75: RESIDENTIAL
A76: RESIDENTIAL
A77: RESIDENTIAL
A78: RESIDENTIAL
A79: RESIDENTIAL | B79: MONTHLY RATES AND CHARGES - Regulatory Component
A80: RESIDENTIAL
A81: RESIDENTIAL | B81: Wholesale Market Service Rate | H81: $/kWh | I81: 0.0044 | K81: 1_C_WMSR
A82: RESIDENTIAL | B82: Rural or Remote Electricity Rate Protection Charge (RRRP) | H82: $/kWh | I82: 0.0013 | K82: 1_C_RRPC
A83: RESIDENTIAL | B83: Standard Supply Service - Administrative Charge (if applicable) | H83: $ | I83: 0.25 | K83: 1_C_SSS
A84: RESIDENTIAL
A87: GENERAL SERVICE LESS THAN 50 KW | B87: GENERAL SERVICE LESS THAN 50 KW Service Classification
A88: GENERAL SERVICE LESS THAN 50 KW
A89: GENERAL SERVICE LESS THAN 50 KW | B89: This classification refers to non residential accounts taking electricity at 750 volts or less whose monthly average peak demand is less than, or is forecast to be less than 50 kW. Further servicing details are available in the distributor’s Conditions of Service.
A90: GENERAL SERVICE LESS THAN 50 KW
A91: GENERAL SERVICE LESS THAN 50 KW
A92: GENERAL SERVICE LESS THAN 50 KW
A93: GENERAL SERVICE LESS THAN 50 KW
A94: GENERAL SERVICE LESS THAN 50 KW
A95: GENERAL SERVICE LESS THAN 50 KW | B95: APPLICATION
A96: GENERAL SERVICE LESS THAN 50 KW
A97: GENERAL SERVICE LESS THAN 50 KW | B97: The application of these rates and charges shall be in accordance with the Licence of the Distributor and any Code or Order of the Board, and amendments thereto as approved by the Board, which may be applicable to the administration of this schedule.
A98: GENERAL SERVICE LESS THAN 50 KW
A99: GENERAL SERVICE LESS THAN 50 KW
A100: GENERAL SERVICE LESS THAN 50 KW | B100: No rates and charges for the distribution of electricity and charges to meet the costs of any work or service done or furnished for the purpose of the distribution of electricity shall be made except as permitted by this schedule, unless required by the Distributor’s Licence or a Code or Order of the Board, and amendments thereto as approved by the Board, or as specified herein.
A101: GENERAL SERVICE LESS THAN 50 KW
A102: GENERAL SERVICE LESS THAN 50 KW
A103: GENERAL SERVICE LESS THAN 50 KW
A104: GENERAL SERVICE LESS THAN 50 KW | B104: Unless specifically noted, this schedule does not contain any charges for the electricity commodity, be it under the Regulated Price Plan, a contract with a retailer or the wholesale market price, as applicable. In addition, the charges in the MONTHLY RATES AND CHARGES – Regulatory Component of this schedule do not apply to a customer that is an embedded wholesale market participant.
A105: GENERAL SERVICE LESS THAN 50 KW
A106: GENERAL SERVICE LESS THAN 50 KW
A107: GENERAL SERVICE LESS THAN 50 KW | B107: It should be noted that this schedule does not list any charges, assessments or credits that are required by law to be invoiced by a distributor and that are not subject to Board approval, such as the Debt Retirement Charge, the Global Adjustment, the Ontario Clean Energy Benefit and the HST.
A108: GENERAL SERVICE LESS THAN 50 KW
A109: GENERAL SERVICE LESS THAN 50 KW
A110: GENERAL SERVICE LESS THAN 50 KW
A111: GENERAL SERVICE LESS THAN 50 KW | B111: MONTHLY RATES AND CHARGES - Delivery Component (If applicable, Effective Date MUST be included in rate description)
A112: GENERAL SERVICE LESS THAN 50 KW | B112: Service Charge | H112: $ | I112: 16.51 | K112: 2_C_MSC
A113: GENERAL SERVICE LESS THAN 50 KW | B113: Rate Rider for Smart Metering Entity Charge - effective until October 31, 2018 | H113: $ | I113: 0.79 | K113: 2_C_SMEC | L113: 2018-10-31
A114: GENERAL SERVICE LESS THAN 50 KW | B114: Distribution Volumetric Rate | H114: $/kWh | I114: 0.0207 | K114: 2_C_VC_1
A115: GENERAL SERVICE LESS THAN 50 KW | B115: Low Voltage Service Rate | H115: $/kWh | I115: 6e-05 | K115: 2_C_LVrate
A116: GENERAL SERVICE LESS THAN 50 KW | B116: Retail Transmission Rate - Network Service Rate | H116: $/kWh | I116: 0.0072 | K116: 2_C_RTSR_Network
A117: GENERAL SERVICE LESS THAN 50 KW | B117: Retail Transmission Rate - Line and Transformation Connection Service Rate | H117: $/kWh | I117: 0.004 | K117: 2_C_RTSR_Connection
A118: GENERAL SERVICE LESS THAN 50 KW
A119: GENERAL SERVICE LESS THAN 50 KW
A120: GENERAL SERVICE LESS THAN 50 KW
A121: GENERAL SERVICE LESS THAN 50 KW
A122: GENERAL SERVICE LESS THAN 50 KW
A123: GENERAL SERVICE LESS THAN 50 KW
A124: GENERAL SERVICE LESS THAN 50 KW
A125: GENERAL SERVICE LESS THAN 50 KW
A126: GENERAL SERVICE LESS THAN 50 KW
A127: GENERAL SERVICE LESS THAN 50 KW
A128: GENERAL SERVICE LESS THAN 50 KW
A129: GENERAL SERVICE LESS THAN 50 KW
A130: GENERAL SERVICE LESS THAN 50 KW
A131: GENERAL SERVICE LESS THAN 50 KW
A132: GENERAL SERVICE LESS THAN 50 KW
A133: GENERAL SERVICE LESS THAN 50 KW
A134: GENERAL SERVICE LESS THAN 50 KW
A135: GENERAL SERVICE LESS THAN 50 KW
A136: GENERAL SERVICE LESS THAN 50 KW | B136: Rate Rider for Disposition of Deferral/Variance Accounts (2014) - effective until December 31, 2014 | H136: $/kWh | I136: -0.0018 | K136: 2_C_VC_DEFVAR_kWh_1 | L136: 2014-12-31
A137: GENERAL SERVICE LESS THAN 50 KW | B137: Rate Rider for Disposition of Global Adjustment Account (2014) - effective until December 31, 2014 Applicable only for Non-RPP Customers | H137: $/kWh | I137: -0.0011 | K137: 2_C_VC_GA_Rate_Rider_kWh_1 | L137: 2014-12-31
A138: GENERAL SERVICE LESS THAN 50 KW
A139: GENERAL SERVICE LESS THAN 50 KW
A140: GENERAL SERVICE LESS THAN 50 KW
A141: GENERAL SERVICE LESS THAN 50 KW
A142: GENERAL SERVICE LESS THAN 50 KW | B142: MONTHLY RATES AND CHARGES - Regulatory Component
A143: GENERAL SERVICE LESS THAN 50 KW
A144: GENERAL SERVICE LESS THAN 50 KW | B144: Wholesale Market Service Rate | H144: =H81 -> $/kWh | I144: 0.0044 | K144: 2_C_WMSR
A145: GENERAL SERVICE LESS THAN 50 KW | B145: Rural or Remote Electricity Rate Protection Charge (RRRP) | H145: $/kWh | I145: 0.0013 | K145: 2_C_RRPC
A146: GENERAL SERVICE LESS THAN 50 KW | B146: Standard Supply Service - Administrative Charge (if applicable) | H146: $ | I146: 0.25 | K146: 2_C_SSS
A147: GENERAL SERVICE LESS THAN 50 KW
A150: GENERAL SERVICE 50 TO 1,499 KW | B150: GENERAL SERVICE 50 TO 1,499 KW Service Classification
A151: GENERAL SERVICE 50 TO 1,499 KW
A152: GENERAL SERVICE 50 TO 1,499 KW | B152: This classification refers to non residential accounts whose monthly average peak demand is equal to or greater than, or is forecast to be equal to or greater than, 50 kW but less than 1,500 kW. Further servicing details are available in the distributor’s Conditions of Service.
A153: GENERAL SERVICE 50 TO 1,499 KW
A154: GENERAL SERVICE 50 TO 1,499 KW
A155: GENERAL SERVICE 50 TO 1,499 KW
A156: GENERAL SERVICE 50 TO 1,499 KW
A157: GENERAL SERVICE 50 TO 1,499 KW
A158: GENERAL SERVICE 50 TO 1,499 KW | B158: APPLICATION
A159: GENERAL SERVICE 50 TO 1,499 KW
A160: GENERAL SERVICE 50 TO 1,499 KW | B160: The application of these rates and charges shall be in accordance with the Licence of the Distributor and any Code or Order of the Board, and amendments thereto as approved by the Board, which may be applicable to the administration of this schedule.
A161: GENERAL SERVICE 50 TO 1,499 KW
A162: GENERAL SERVICE 50 TO 1,499 KW
A163: GENERAL SERVICE 50 TO 1,499 KW | B163: No rates and charges for the distribution of electricity and charges to meet the costs of any work or service done or furnished for the purpose of the distribution of electricity shall be made except as permitted by this schedule, unless required by the Distributor’s Licence or a Code or Order of the Board, and amendments thereto as approved by the Board, or as specified herein.
A164: GENERAL SERVICE 50 TO 1,499 KW
A165: GENERAL SERVICE 50 TO 1,499 KW
A166: GENERAL SERVICE 50 TO 1,499 KW
A167: GENERAL SERVICE 50 TO 1,499 KW | B167: Unless specifically noted, this schedule does not contain any charges for the electricity commodity, be it under the Regulated Price Plan, a contract with a retailer or the wholesale market price, as applicable. In addition, the charges in the MONTHLY RATES AND CHARGES – Regulatory Component of this schedule do not apply to a customer that is an embedded wholesale market participant.
A168: GENERAL SERVICE 50 TO 1,499 KW
A169: GENERAL SERVICE 50 TO 1,499 KW
A170: GENERAL SERVICE 50 TO 1,499 KW | B170: It should be noted that this schedule does not list any charges, assessments or credits that are required by law to be invoiced by a distributor and that are not subject to Board approval, such as the Debt Retirement Charge, the Global Adjustment, the Ontario Clean Energy Benefit and the HST.
A171: GENERAL SERVICE 50 TO 1,499 KW
A172: GENERAL SERVICE 50 TO 1,499 KW
A173: GENERAL SERVICE 50 TO 1,499 KW
A174: GENERAL SERVICE 50 TO 1,499 KW | B174: MONTHLY RATES AND CHARGES - Delivery Component (If applicable, Effective Date MUST be included in rate description)
A175: GENERAL SERVICE 50 TO 1,499 KW | B175: Service Charge | H175: $ | I175: 257.47 | K175: 3_C_MSC
A176: GENERAL SERVICE 50 TO 1,499 KW | B176: Distribution Volumetric Rate | H176: $/kW | I176: 3.5233 | K176: 3_C_VC_1
A177: GENERAL SERVICE 50 TO 1,499 KW | B177: Low Voltage Service Rate | H177: $/kW | I177: 0.02354 | K177: 3_C_LVrate
A178: GENERAL SERVICE 50 TO 1,499 KW | B178: Retail Transmission Rate - Network Service Rate | H178: $/kW | I178: 3.0087 | K178: 3_C_RTSR_Network
A179: GENERAL SERVICE 50 TO 1,499 KW | B179: Retail Transmission Rate - Line and Transformation Connection Service Rate | H179: $/kW | I179: 1.6116 | K179: 3_C_RTSR_Connection
A180: GENERAL SERVICE 50 TO 1,499 KW
A181: GENERAL SERVICE 50 TO 1,499 KW
A182: GENERAL SERVICE 50 TO 1,499 KW
A183: GENERAL SERVICE 50 TO 1,499 KW
A184: GENERAL SERVICE 50 TO 1,499 KW
A185: GENERAL SERVICE 50 TO 1,499 KW
A186: GENERAL SERVICE 50 TO 1,499 KW
A187: GENERAL SERVICE 50 TO 1,499 KW
A188: GENERAL SERVICE 50 TO 1,499 KW
A189: GENERAL SERVICE 50 TO 1,499 KW
A190: GENERAL SERVICE 50 TO 1,499 KW
A191: GENERAL SERVICE 50 TO 1,499 KW
A192: GENERAL SERVICE 50 TO 1,499 KW
A193: GENERAL SERVICE 50 TO 1,499 KW
A194: GENERAL SERVICE 50 TO 1,499 KW
A195: GENERAL SERVICE 50 TO 1,499 KW
A196: GENERAL SERVICE 50 TO 1,499 KW
A197: GENERAL SERVICE 50 TO 1,499 KW
A198: GENERAL SERVICE 50 TO 1,499 KW
A199: GENERAL SERVICE 50 TO 1,499 KW | B199: Rate Rider for Disposition of Deferral/Variance Accounts (2014) - effective until December 31, 2014 | H199: $/kW | I199: -0.7458 | K199: 3_C_VC_DEFVAR_kW_1 | L199: 2014-12-31
A200: GENERAL SERVICE 50 TO 1,499 KW | B200: Rate Rider for Disposition of Global Adjustment Account (2014) - effective until December 31, 2014 Applicable only for Non-RPP Customers | H200: $/kW | I200: -0.4697 | K200: 3_C_VC_GA_Rate_Rider_kW_1 | L200: 2014-12-31
A201: GENERAL SERVICE 50 TO 1,499 KW
A202: GENERAL SERVICE 50 TO 1,499 KW
A203: GENERAL SERVICE 50 TO 1,499 KW
A204: GENERAL SERVICE 50 TO 1,499 KW
A205: GENERAL SERVICE 50 TO 1,499 KW | B205: MONTHLY RATES AND CHARGES - Regulatory Component
A206: GENERAL SERVICE 50 TO 1,499 KW
A207: GENERAL SERVICE 50 TO 1,499 KW | B207: Wholesale Market Service Rate | H207: =H81 -> $/kWh | I207: 0.0044 | K207: 3_C_WMSR
A208: GENERAL SERVICE 50 TO 1,499 KW | B208: Rural or Remote Electricity Rate Protection Charge (RRRP) | H208: $/kWh | I208: 0.0013 | K208: 3_C_RRPC
A209: GENERAL SERVICE 50 TO 1,499 KW | B209: Standard Supply Service - Administrative Charge (if applicable) | H209: $ | I209: 0.25 | K209: 3_C_SSS
A210: GENERAL SERVICE 50 TO 1,499 KW
A213: GENERAL SERVICE 1,500 TO 4,999 KW | B213: GENERAL SERVICE 1,500 TO 4,999 KW Service Classification
A214: GENERAL SERVICE 1,500 TO 4,999 KW
A215: GENERAL SERVICE 1,500 TO 4,999 KW | B215: This classification refers to non residential accounts whose monthly average peak demand is equal to or greater than, or is forecast to be equal to or greater than 1,500 kW but less than 5,000 kW. Further servicing details are available in the distributor’s Conditions of Service.
... 540 more rows

Sheet 4. Hidden (hidden)
M1: Current Rate Classes | N1: Changed to Rate Classes | O1: Values in A that are NOT in B | P1: Values in B that are Not in A | Q1: Count of A | R1: Count of B
M2: RESIDENTIAL | N2: RESIDENTIAL | Q2: 12 | R2: 12
M3: GENERAL SERVICE LESS THAN 50 KW | N3: GENERAL SERVICE LESS THAN 50 KW
M4: GENERAL SERVICE 50 TO 1,499 KW | N4: GENERAL SERVICE 50 TO 1,499 KW
M5: GENERAL SERVICE 1,500 TO 4,999 KW | N5: GENERAL SERVICE 1,500 TO 4,999 KW
M6: LARGE USE | N6: LARGE USE
M7: UNMETERED SCATTERED LOAD | N7: UNMETERED SCATTERED LOAD
M8: STANDBY POWER GENERAL SERVICE 50 TO 1,499 KW | N8: STANDBY POWER GENERAL SERVICE 50 TO 1,499 KW
M9: STANDBY POWER GENERAL SERVICE 1,500 TO 4,999 KW | N9: STANDBY POWER GENERAL SERVICE 1,500 TO 4,999 KW
M10: STANDBY POWER GENERAL SERVICE LARGE USE | N10: STANDBY POWER GENERAL SERVICE LARGE USE
M11: SENTINEL LIGHTING | N11: SENTINEL LIGHTING
M12: STREET LIGHTING | N12: STREET LIGHTING
M13: microFIT | N13: microFIT
A24: RESIDENTIAL | B24: RESIDENTIAL Service Classification
A25: RESIDENTIAL
A26: RESIDENTIAL
A27: RESIDENTIAL
A28: RESIDENTIAL
A29: RESIDENTIAL
A30: RESIDENTIAL
A31: RESIDENTIAL
A32: RESIDENTIAL | B32: APPLICATION
A33: RESIDENTIAL
A34: RESIDENTIAL
A35: RESIDENTIAL
A36: RESIDENTIAL
A37: RESIDENTIAL
A38: RESIDENTIAL
A39: RESIDENTIAL
A40: RESIDENTIAL
A41: RESIDENTIAL
A42: RESIDENTIAL
A43: RESIDENTIAL
A44: RESIDENTIAL
A45: RESIDENTIAL
A46: RESIDENTIAL
A47: RESIDENTIAL
A48: RESIDENTIAL | B48: MONTHLY RATES AND CHARGES - Delivery Component (If applicable, Effective Date MUST be included in rate description)
A49: RESIDENTIAL
A50: RESIDENTIAL
A51: RESIDENTIAL
A52: RESIDENTIAL
A53: RESIDENTIAL
A54: RESIDENTIAL
A55: RESIDENTIAL
A56: RESIDENTIAL
A57: RESIDENTIAL
A58: RESIDENTIAL
A59: RESIDENTIAL
A60: RESIDENTIAL
A61: RESIDENTIAL
A62: RESIDENTIAL
A63: RESIDENTIAL
A64: RESIDENTIAL
A65: RESIDENTIAL
A66: RESIDENTIAL
A67: RESIDENTIAL
A68: RESIDENTIAL
A69: RESIDENTIAL
A70: RESIDENTIAL
A71: RESIDENTIAL
A72: RESIDENTIAL
A73: RESIDENTIAL
A74: RESIDENTIAL
A75: RESIDENTIAL
A76: RESIDENTIAL
A77: RESIDENTIAL
A78: RESIDENTIAL
A79: RESIDENTIAL | B79: MONTHLY RATES AND CHARGES - Regulatory Component
A80: RESIDENTIAL
A81: RESIDENTIAL | B81: Wholesale Market Service Rate | H81: $/kWh | I81: 0.0044
A82: RESIDENTIAL | B82: Rural or Remote Electricity Rate Protection Charge (RRRP) | H82: $/kWh | I82: 0.0013
A83: RESIDENTIAL | B83: Standard Supply Service - Administrative Charge (if applicable) | H83: $ | I83: 0.25
A84: RESIDENTIAL
A87: GENERAL SERVICE 50 TO 999 KW | B87: GENERAL SERVICE 50 TO 999 KW Service Classification
A88: GENERAL SERVICE 50 TO 999 KW
A89: GENERAL SERVICE 50 TO 999 KW
A90: GENERAL SERVICE 50 TO 999 KW
A91: GENERAL SERVICE 50 TO 999 KW
A92: GENERAL SERVICE 50 TO 999 KW
A93: GENERAL SERVICE 50 TO 999 KW
A94: GENERAL SERVICE 50 TO 999 KW
A95: GENERAL SERVICE 50 TO 999 KW | B95: APPLICATION
A96: GENERAL SERVICE 50 TO 999 KW
A97: GENERAL SERVICE 50 TO 999 KW
A98: GENERAL SERVICE 50 TO 999 KW
A99: GENERAL SERVICE 50 TO 999 KW
A100: GENERAL SERVICE 50 TO 999 KW
A101: GENERAL SERVICE 50 TO 999 KW
A102: GENERAL SERVICE 50 TO 999 KW
A103: GENERAL SERVICE 50 TO 999 KW
A104: GENERAL SERVICE 50 TO 999 KW
A105: GENERAL SERVICE 50 TO 999 KW
A106: GENERAL SERVICE 50 TO 999 KW
A107: GENERAL SERVICE 50 TO 999 KW
A108: GENERAL SERVICE 50 TO 999 KW
A109: GENERAL SERVICE 50 TO 999 KW
A110: GENERAL SERVICE 50 TO 999 KW
A111: GENERAL SERVICE 50 TO 999 KW | B111: MONTHLY RATES AND CHARGES - Delivery Component (If applicable, Effective Date MUST be included in rate description)
A112: GENERAL SERVICE 50 TO 999 KW
A113: GENERAL SERVICE 50 TO 999 KW
A114: GENERAL SERVICE 50 TO 999 KW
A115: GENERAL SERVICE 50 TO 999 KW
A116: GENERAL SERVICE 50 TO 999 KW
A117: GENERAL SERVICE 50 TO 999 KW
A118: GENERAL SERVICE 50 TO 999 KW
A119: GENERAL SERVICE 50 TO 999 KW
A120: GENERAL SERVICE 50 TO 999 KW
A121: GENERAL SERVICE 50 TO 999 KW
A122: GENERAL SERVICE 50 TO 999 KW
A123: GENERAL SERVICE 50 TO 999 KW
A124: GENERAL SERVICE 50 TO 999 KW
A125: GENERAL SERVICE 50 TO 999 KW
A126: GENERAL SERVICE 50 TO 999 KW
A127: GENERAL SERVICE 50 TO 999 KW
A128: GENERAL SERVICE 50 TO 999 KW
A129: GENERAL SERVICE 50 TO 999 KW
A130: GENERAL SERVICE 50 TO 999 KW
A131: GENERAL SERVICE 50 TO 999 KW
A132: GENERAL SERVICE 50 TO 999 KW
A133: GENERAL SERVICE 50 TO 999 KW
A134: GENERAL SERVICE 50 TO 999 KW
A135: GENERAL SERVICE 50 TO 999 KW
A136: GENERAL SERVICE 50 TO 999 KW
A137: GENERAL SERVICE 50 TO 999 KW
A138: GENERAL SERVICE 50 TO 999 KW
A139: GENERAL SERVICE 50 TO 999 KW
A140: GENERAL SERVICE 50 TO 999 KW
A141: GENERAL SERVICE 50 TO 999 KW
A142: GENERAL SERVICE 50 TO 999 KW | B142: MONTHLY RATES AND CHARGES - Regulatory Component
A143: GENERAL SERVICE 50 TO 999 KW
A144: GENERAL SERVICE 50 TO 999 KW | B144: Wholesale Market Service Rate | H144: $/kWh | I144: 0.0044
A145: GENERAL SERVICE 50 TO 999 KW | B145: Rural or Remote Electricity Rate Protection Charge (RRRP) | H145: $/kWh | I145: 0.0013
A146: GENERAL SERVICE 50 TO 999 KW | B146: Standard Supply Service - Administrative Charge (if applicable) | H146: $ | I146: 0.25
A147: GENERAL SERVICE 50 TO 999 KW
A150: STREET LIGHTING | B150: STREET LIGHTING Service Classification
A151: STREET LIGHTING
A152: STREET LIGHTING
A153: STREET LIGHTING
A154: STREET LIGHTING
A155: STREET LIGHTING
A156: STREET LIGHTING
A157: STREET LIGHTING
A158: STREET LIGHTING | B158: APPLICATION
A159: STREET LIGHTING
A160: STREET LIGHTING
A161: STREET LIGHTING
A162: STREET LIGHTING
A163: STREET LIGHTING
A164: STREET LIGHTING
A165: STREET LIGHTING
A166: STREET LIGHTING
A167: STREET LIGHTING
A168: STREET LIGHTING
A169: STREET LIGHTING
A170: STREET LIGHTING
A171: STREET LIGHTING
A172: STREET LIGHTING
A173: STREET LIGHTING
A174: STREET LIGHTING | B174: MONTHLY RATES AND CHARGES - Delivery Component (If applicable, Effective Date MUST be included in rate description)
A175: STREET LIGHTING
A176: STREET LIGHTING
A177: STREET LIGHTING
A178: STREET LIGHTING
A179: STREET LIGHTING
A180: STREET LIGHTING
A181: STREET LIGHTING
A182: STREET LIGHTING
A183: STREET LIGHTING
A184: STREET LIGHTING
A185: STREET LIGHTING
A186: STREET LIGHTING
A187: STREET LIGHTING
A188: STREET LIGHTING
A189: STREET LIGHTING
A190: STREET LIGHTING
A191: STREET LIGHTING
A192: STREET LIGHTING
A193: STREET LIGHTING
A194: STREET LIGHTING
A195: STREET LIGHTING
A196: STREET LIGHTING
A197: STREET LIGHTING
A198: STREET LIGHTING
A199: STREET LIGHTING
A200: STREET LIGHTING
A201: STREET LIGHTING
A202: STREET LIGHTING
A203: STREET LIGHTING
A204: STREET LIGHTING
A205: STREET LIGHTING | B205: MONTHLY RATES AND CHARGES - Regulatory Component
A206: STREET LIGHTING
A207: STREET LIGHTING | B207: Wholesale Market Service Rate | H207: $/kWh | I207: 0.0044
A208: STREET LIGHTING | B208: Rural or Remote Electricity Rate Protection Charge (RRRP) | H208: $/kWh | I208: 0.0013
A209: STREET LIGHTING | B209: Standard Supply Service - Administrative Charge (if applicable) | H209: $ | I209: 0.25
A210: STREET LIGHTING

Sheet 5. 2014 Continuity Schedule
C15: Please complete the following continuity schedule for the following Deferral / Variance Accounts. Enter information into green cells only. If you have received approval to dispose of balances from prior years, the starting point for entries in the 2015 DVA schedule below will be the balance sheet date as per your G/L for which you received approval. For example, if in the 2014 EDR process (CoS or IRM) you received approval for the December 31, 2012 balances, the starting point for your entries below should be the 2011 year. This will allow for the correct starting point for the 2012 opening balance columns for both principal and interest. Please refer to the footnotes for further instructions.
E19: 2010 | O19: 2011 | Y19: 2012 | AL19: 2013 | AY19: 2014 | BC19: Projected Interest on Dec-31-13 Balances | BF19: 2.1.7 RRR
C20: Account Descriptions | D20: Account Number | E20: Opening Principal Amounts as of Jan-1-10 | F20: Transactions Debit / (Credit) during 2010 excluding interest and adjustments 2 | G20: Board-Approved Disposition during 2010 | H20: Adjustments during 2010 - other 1 | I20: Closing Principal Balance as of Dec-31-10 | J20: Opening Interest Amounts as of Jan-1-10 | K20: Interest Jan-1 to Dec-31-10 | L20: Board-Approved Disposition during 2010 | M20: Adjustments during 2010 - other 2 | N20: Closing Interest Amounts as of Dec-31-10 | O20: Opening Principal Amounts as of Jan-1-11 | P20: Transactions Debit / (Credit) during 2011 excluding interest and adjustments 2 | Q20: Board-Approved Disposition during 2011 | R20: Adjustments during 2011 - other 1 | S20: Closing Principal Balance as of Dec-31-11 | T20: Opening Interest Amounts as of Jan-1-11 | U20: Interest Jan-1 to Dec-31-11 | V20: Board-Approved Disposition during 2011 | W20: Adjustments during 2011 - other 2 | X20: Closing Interest Amounts as of Dec-31-11 | Y20: Opening Principal Amounts as of Jan-1-12 | Z20: Transactions Debit / (Credit) during 2012 excluding interest and adjustments 2 | AA20: Board-Approved Disposition during 2012 | AB20: Other 1 Adjustments during Q1 2012 | AC20: Other 1 Adjustments during Q2 2012 | AD20: Other 1 Adjustments during Q3 2012 | AE20: Other 1 Adjustments during Q4 2012 | AF20: Closing Principal Balance as of Dec-31-12 | AG20: Opening Interest Amounts as of Jan-1-12 | AH20: Interest Jan-1 to Dec-31-12 | AI20: Board-Approved Disposition during 2012 | AJ20: Adjustments during 2012 - other 1 | AK20: Closing Interest Amounts as of Dec-31-12 | AL20: Opening Principal Amounts as of Jan-1-13 | AM20: Transactions Debit / (Credit) during 2013 excluding interest and adjustments 2 | AN20: Board-Approved Disposition during 2013 | AO20: Other 1 Adjustments during Q1 2013 | AP20: Other 1 Adjustments during Q2 2013 | AQ20: Other 1 Adjustments during Q3 2013 | AR20: Other 1 Adjustments during Q4 2013 | AS20: Closing Principal Balance as of Dec-31-13 | AT20: Opening Interest Amounts as of Jan-1-13 | AU20: Interest Jan-1 to Dec-31-13 | AV20: Board-Approved Disposition during 2013 | AW20: Adjustments during 2013 - other 1 | AX20: Closing Interest Amounts as of Dec-31-13 | AY20: Principal Disposition during 2014 - instructed by Board | AZ20: Interest Disposition during 2014 - instructed by Board | BA20: Closing Principal Balances as of Dec 31-13 Adjusted for Dispositions during 2014 | BB20: Closing Interest Balances as of Dec 31-13 Adjusted for Dispositions during 2014 | BC20: Projected Interest from Jan 1, 2014 to December 31, 2014 on Dec 31 -13 balance adjusted for disposition during 2014 3 | BD20: Projected Interest from January 1, 2015 to April 30, 2015 on Dec 31 -13 balance adjusted for disposition during 2014 3 | BE20: Total Claim | BF20: As of Dec 31-13 | BG20: Variance RRR vs. 2013 Balance (Principal + Interest)
BE22: Claim before Forecasted Transactions
C23: Group 1 Accounts
A24: 1 | C24: LV Variance Account | D24: 1550 | I24: =E24+F24-G24+H24 -> 0 | N24: =J24+K24-L24+M24 -> 0 | O24: -1609423 | P24: -1024964 | Q24: -1609423 | S24: =O24+P24-Q24+R24 -> -1024964 | T24: 1281 | U24: -30468 | V24: -22377 | X24: =T24+U24-V24+W24 -> -6810 | Y24: =S24 -> -1024964 | Z24: -30829 | AF24: =Y24+Z24-AA24+SUM(AB24:AE24) -> -1055793 | AG24: =X24 -> -6810 | AH24: =-15282.3 -> -15282.3 | AK24: =AG24+AH24-AI24+AJ24 -> -22092.3 | AL24: =AF24 -> -1055793 | AM24: 15980.01 | AN24: -1024964 | AS24: =AL24+AM24-AN24+SUM(AO24:AR24) -> -14848.99 | AT24: =AK24 -> -22092.3 | AU24: -1109.29 | AV24: -21877 | AX24: =AT24+AU24-AV24+AW24 -> -1324.59 | AY24: -30829 | AZ24: -668 | BA24: =AS24-AY24 -> 15980.01 | BB24: =AX24-AZ24 -> -656.59 | BC24: 234.91 | BE24: =SUM(BA24:BD24) -> 15558.33 | BF24: -16173.64 | BG24: =BF24-SUM(AS24,AX24) -> -0.06000000001
C25: Smart Metering Entity Charge Variance | D25: 1551 | AK25: 0 | AL25: =AK25 -> 0 | AM25: 159042.09 | AN25: 0 | AS25: =AL25+AM25-AN25+SUM(AO25:AR25) -> 159042.09 | AT25: =AK25 -> 0 | AU25: 1811.24 | AV25: 0 | AX25: 1811.24 | AY25: 0 | AZ25: 0 | BA25: =AS25-AY25 -> 159042.09 | BB25: =AX25-AZ25 -> 1811.24 | BC25: 2337.92 | BE25: =SUM(BA25:BD25) -> 163191.25 | BF25: 160853.33 | BG25: =BF25-SUM(AS25,AX25) -> 0
A26: 2 | C26: RSVA - Wholesale Market Service Charge | D26: 1580 | I26: =E26+F26-G26+SUM(H26:H26) -> 0 | N26: =J26+K26-L26+M26 -> 0 | O26: -16250045 | P26: -7769682 | Q26: -16250046 | S26: =O26+P26-Q26+SUM(R26:R26) -> -7769681 | T26: -274610 | U26: -301929 | V26: -513484 | X26: =T26+U26-V26+W26 -> -63055 | Y26: =S26 -> -7769681 | Z26: -9808445 | AF26: -17578126 | AG26: =X26 -> -63055 | AH26: =-178134.31 -> -178134.31 | AK26: -241189.31 | AL26: =AF26 -> -17578126 | AM26: -5223229.36 | AN26: -7769681 | AS26: -15031674.36 | AT26: =AK26 -> -241189.31 | AU26: -194941.31 | AV26: -177269 | AX26: -258861.62 | AY26: -9808445 | AZ26: -208104 | BA26: -5223229.36 | BB26: -50757.62 | BC26: -76781.47 | BE26: =SUM(BA26:BD26) -> -5350768.45 | BF26: -15290536.33 | BG26: -0.3500000015
A27: 3 | C27: RSVA - Retail Transmission Network Charge | D27: 1584 | I27: 0 | N27: 0 | O27: -5234472 | P27: 776427 | Q27: -5234471 | S27: 776426 | T27: -214352 | U27: -70687 | V27: -291299 | X27: 6260 | Y27: 776426 | Z27: -1681231 | AF27: -904805 | AG27: 6260 | AH27: 3977 | AK27: 10237 | AL27: -904805 | AM27: 563006.31 | AN27: 776426 | AS27: -1118224.69 | AT27: 10237 | AU27: -14416.63 | AV27: 17673 | AX27: -21852.63 | AY27: -1681231 | AZ27: -32150 | BA27: 563006.31 | BB27: 10297.37 | BC27: 8276.19 | BE27: 581579.87 | BF27: -1140077.19 | BG27: 0.1299999999
A28: 4 | C28: RSVA - Retail Transmission Connection Charge | D28: 1586 | I28: 0 | N28: 0 | O28: -9052943 | P28: -1220099 | Q28: -9052943 | S28: -1220099 | T28: -147122 | U28: -144981 | V28: -280201 | X28: -11902 | Y28: -1220099 | Z28: -1683899 | AF28: -2903998 | AG28: -11902 | AH28: -24873 | AK28: -36775 | AL28: -2903998 | AM28: -1703995.98 | AN28: -1220099 | AS28: -3387894.98 | AT28: -36775 | AU28: -32193.54 | AV28: -29838 | AX28: -39130.54 | AY28: -1683899 | AZ28: -31690 | BA28: -1703995.98 | BB28: -7440.54 | BC28: -25048.74 | BE28: -1736485.26 | BF28: -3427026.62 | BG28: -1.1
A29: 5 | C29: RSVA - Power (excluding Global Adjustment) | D29: 1588 | I29: 0 | N29: 0 | O29: 21895439 | P29: -7111287 | Q29: 11650893 | R29: -10623257 | S29: -7489998 | T29: 608987 | U29: 30356 | W29: -395979 | X29: 243364 | Y29: -7489998 | Z29: -288893 | AF29: -7778891 | AG29: 243364 | AH29: -131402 | AK29: 111962 | AL29: -7778891 | AM29: 9979248.66 | AN29: -7489997 | AR29: -5010025.5 | AS29: 4680329.16 | AT29: 111962 | AU29: -21749.23 | AV29: 133261 | AX29: -43048.23 | AY29: -288894 | AZ29: -25546 | BA29: 4969223.16 | BB29: -17502.23 | BC29: 73047.58 | BE29: 5024768.51 | BF29: 4637282.87 | BG29: 1.94
A30: 6 | C30: RSVA - Global Adjustment | D30: 1589 | I30: 0 | N30: 0 | O30: 10623257 | P30: -5192002 | Q30: 10623257 | S30: -5192002 | T30: 395979 | U30: 133356 | V30: 552141 | X30: -22806 | Y30: -5192002 | Z30: -5253421 | AF30: -10445423 | AG30: -22806 | AH30: -127080 | AK30: -149886 | AL30: -10445423 | AM30: -1288246.21 | AN30: -5192002 | AS30: -6541667.21 | AT30: -149886 | AU30: -20555.46 | AV30: -99128 | AX30: -71313.46 | AY30: -5253421 | AZ30: -127983 | BA30: -1288246.21 | BB30: 56669.54 | BC30: -18937.22 | BE30: -1250513.89 | BF30: -6612980.51 | BG30: 0.1600000011
A31: 7 | C31: Recovery of Regulatory Asset Balances | D31: 1590 | I31: 0 | N31: 0 | O31: -878955 | P31: -405063 | Q31: -878954 | R31: 405064 | S31: 0 | T31: 1048969 | U31: -16542 | V31: 1036048 | W31: 3621 | X31: 0 | Y31: 0 | AF31: 0 | AG31: 0 | AK31: 0 | AL31: 0 | AS31: 0 | AT31: 0 | AX31: 0 | BA31: 0 | BB31: 0 | BE31: 0 | BG31: 0
A32: 8 | C32: Disposition and Recovery/Refund of Regulatory Balances (2008)4 | D32: 1595 | I32: 0 | N32: 0 | O32: -734320 | Q32: -734320 | S32: 0 | T32: 589900 | U32: -10795 | V32: 579105 | X32: 0 | Y32: 0 | AF32: 0 | AG32: 0 | AK32: 0 | AL32: 0 | AS32: 0 | AT32: 0 | AX32: 0 | BA32: 0 | BB32: 0 | BE32: 0 | BG32: 0
A33: 9 | C33: Disposition and Recovery/Refund of Regulatory Balances (2009)4 | D33: 1595 | I33: 0 | N33: 0 | S33: 0 | X33: 0 | Y33: 0 | AF33: 0 | AG33: 0 | AK33: 0 | AL33: 0 | AS33: 0 | AT33: 0 | AX33: 0 | BA33: 0 | BB33: 0 | BE33: 0 | BG33: 0
A34: 9 | C34: Disposition and Recovery/Refund of Regulatory Balances (2010)4 | D34: 1595 | I34: 0 | N34: 0 | S34: 0 | X34: 0 | Y34: 0 | AF34: 0 | AG34: 0 | AK34: 0 | AL34: 0 | AS34: 0 | AT34: 0 | AX34: 0 | BA34: 0 | BB34: 0 | BE34: 0 | BG34: 0
A35: 9 | C35: Disposition and Recovery/Refund of Regulatory Balances (2011)4 | D35: 1595 | I35: 0 | N35: 0 | S35: 0 | X35: 0 | Y35: 0 | AF35: 0 | AG35: 0 | AK35: 0 | AL35: 0 | AS35: 0 | AT35: 0 | AX35: 0 | BA35: 0 | BB35: 0 | BE35: =SUM(BA35:BD35) -> 0 | BG35: 0
A36: 9 | C36: Disposition and Recovery/Refund of Regulatory Balances (2012)4 | D36: 1595 | I36: 0 | N36: 0 | S36: 0 | X36: 0 | Y36: =S36 -> 0 | AF36: =Y36+Z36-AA36+SUM(AB36:AE36) -> 0 | AG36: =X36 -> 0 | AK36: =AG36+AH36-AI36+AJ36 -> 0 | AL36: =AF36 -> 0 | AS36: =AL36+AM36-AN36+SUM(AO36:AR36) -> 0 | AT36: =AK36 -> 0 | AX36: =AT36+AU36-AV36+AW36 -> 0 | BA36: 0 | BB36: 0 | BE36: =SUM(BA36:BD36) -> 0 | BG36: 0
C38: RSVA - Global Adjustment | D38: 1589 | E38: =E30 -> 0 | F38: =F30 -> 0 | G38: 0 | H38: 0 | I38: 0 | J38: 0 | K38: 0 | L38: 0 | M38: 0 | N38: 0 | O38: =O30 -> 10623257 | P38: =P30 -> -5192002 | Q38: 10623257 | R38: 0 | S38: -5192002 | T38: 395979 | U38: 133356 | V38: 552141 | W38: 0 | X38: -22806 | Y38: =Y30 -> -5192002 | Z38: =Z30 -> -5253421 | AA38: 0 | AB38: 0 | AC38: 0 | AD38: 0 | AE38: 0 | AF38: =AF30 -> -10445423 | AG38: -22806 | AH38: -127080 | AI38: 0 | AJ38: =AJ30 -> 0 | AK38: -149886 | AL38: =AL30 -> -10445423 | AM38: =AM30 -> -1288246.21 | AN38: -5192002 | AO38: 0 | AP38: 0 | AQ38: 0 | AR38: 0 | AS38: -6541667.21 | AT38: -149886 | AU38: -20555.46 | AV38: -99128 | AW38: 0 | AX38: -71313.46 | AY38: -5253421 | AZ38: =AZ30 -> -127983 | BA38: -1288246.21 | BB38: 56669.54 | BC38: -18937.22 | BD38: 0 | BE38: -1250513.89 | BF38: -6612980.51 | BG38: 0.1600000011
C39: Total Group 1 Balance excluding Account 1589 - Global Adjustment | E39: =SUM(E24:E29,E31:E36) -> 0 | F39: =SUM(F24:F29,F31:F36) -> 0 | G39: 0 | H39: 0 | I39: 0 | J39: 0 | K39: 0 | L39: 0 | M39: 0 | N39: 0 | O39: =SUM(O24:O29,O31:O36) -> -11864719 | P39: =SUM(P24:P29,P31:P36) -> -16754668 | Q39: -22109264 | R39: -10218193 | S39: -16728316 | T39: 1613053 | U39: -545046 | V39: 507792 | W39: -392358 | X39: 167857 | Y39: =SUM(Y24:Y29,Y31:Y36) -> -16728316 | Z39: =SUM(Z24:Z29,Z31:Z36) -> -13493297 | AA39: 0 | AB39: 0 | AC39: 0 | AD39: 0 | AE39: 0 | AF39: =SUM(AF24:AF29,AF31:AF36) -> -30221613 | AG39: 167857 | AH39: -345714.61 | AI39: 0 | AJ39: =SUM(AJ24:AJ29,AJ31:AJ36) -> 0 | AK39: -177857.61 | AL39: =SUM(AL24:AL29,AL31:AL36) -> -30221613 | AM39: =SUM(AM24:AM29,AM31:AM36) -> 3790051.73 | AN39: -16728315 | AO39: 0 | AP39: 0 | AQ39: 0 | AR39: -5010025.5 | AS39: -14713271.77 | AT39: -177857.61 | AU39: -262598.76 | AV39: -78050 | AW39: 0 | AX39: -362406.37 | AY39: -13493298 | AZ39: =SUM(AZ24:AZ29,AZ31:AZ36) -> -298158 | BA39: -1219973.77 | BB39: -64248.37 | BC39: -17933.61 | BD39: 0 | BE39: -1302155.75 | BF39: -15075677.58 | BG39: 0.5599999992
C40: Total Group 1 Balance | E40: =SUM(E24:E36) -> 0 | F40: =SUM(F24:F36) -> 0 | G40: 0 | H40: 0 | I40: 0 | J40: 0 | K40: 0 | L40: 0 | M40: 0 | N40: 0 | O40: =SUM(O24:O36) -> -1241462 | P40: =SUM(P24:P36) -> -21946670 | Q40: -11486007 | R40: -10218193 | S40: -21920318 | T40: 2009032 | U40: -411690 | V40: 1059933 | W40: -392358 | X40: 145051 | Y40: =SUM(Y24:Y36) -> -21920318 | Z40: =SUM(Z24:Z36) -> -18746718 | AA40: 0 | AB40: 0 | AC40: 0 | AD40: 0 | AE40: 0 | AF40: =SUM(AF24:AF36) -> -40667036 | AG40: 145051 | AH40: -472794.61 | AI40: 0 | AJ40: =SUM(AJ24:AJ36) -> 0 | AK40: -327743.61 | AL40: =SUM(AL24:AL36) -> -40667036 | AM40: =SUM(AM24:AM36) -> 2501805.52 | AN40: -21920317 | AO40: 0 | AP40: 0 | AQ40: 0 | AR40: -5010025.5 | AS40: -21254938.98 | AT40: -327743.61 | AU40: -283154.22 | AV40: -177178 | AW40: 0 | AX40: -433719.83 | AY40: -18746719 | AZ40: =SUM(AZ24:AZ36) -> -426141 | BA40: -2508219.98 | BB40: -7578.83 | BC40: -36870.83 | BD40: 0 | BE40: -2552669.64 | BF40: -21688658.09 | BG40: 0.7200000003
C42: LRAM Variance Account | D42: 1568 | I42: =E42+F42-G42+SUM(H42:H42) -> 0 | N42: =J42+K42-L42+M42 -> 0 | S42: =O42+P42-Q42+SUM(R42:R42) -> 0 | X42: =T42+U42-V42+W42 -> 0 | Y42: =S42 -> 0 | AF42: =Y42+Z42-AA42+SUM(AB42:AE42) -> 0 | AG42: =X42 -> 0 | AK42: =AG42+AH42-AI42+AJ42 -> 0 | AL42: =AF42 -> 0 | AS42: =AL42+AM42-AN42+SUM(AO42:AR42) -> 0 | AT42: =AK42 -> 0 | AX42: =AT42+AU42-AV42+AW42 -> 0 | BA42: =AS42-AY42 -> 0 | BB42: =AX42-AZ42 -> 0 | BE42: =SUM(BA42:BD42) -> 0 | BF42: 0 | BG42: =BF42-SUM(AS42,AX42) -> 0
C44: Total including Account 1568 | E44: =E42+E40 -> 0 | F44: =F42+F40 -> 0 | G44: 0 | H44: 0 | I44: 0 | J44: 0 | K44: 0 | L44: 0 | M44: 0 | N44: 0 | O44: -1241462 | P44: -21946670 | Q44: -11486007 | R44: -10218193 | S44: -21920318 | T44: 2009032 | U44: -411690 | V44: 1059933 | W44: -392358 | X44: 145051 | Y44: -21920318 | Z44: -18746718 | AA44: 0 | AB44: 0 | AC44: 0 | AD44: 0 | AE44: 0 | AF44: -40667036 | AG44: 145051 | AH44: -472794.61 | AI44: 0 | AJ44: 0 | AK44: -327743.61 | AL44: -40667036 | AM44: 2501805.52 | AN44: -21920317 | AO44: 0 | AP44: 0 | AQ44: 0 | AR44: -5010025.5 | AS44: -21254938.98 | AT44: -327743.61 | AU44: -283154.22 | AV44: -177178 | AW44: 0 | AX44: -433719.83 | AY44: -18746719 | AZ44: -426141 | BA44: -2508219.98 | BB44: -7578.83 | BC44: -36870.83 | BD44: 0 | BE44: -2552669.64 | BF44: -21688658.09 | BG44: 0.7200000003
C47: For all Board-Approved dispositions, please ensure that the disposition amount has the same sign (e.g: debit balances are to have a positive figure and credit balance are to have a negative figure) as per the related Board decision.
B50: 1 | C50: Please provide explanations for the nature of the adjustments. If the adjustment relates to previously Board Approved disposed balances, please provide amounts for adjustments and include supporting documentations.
B51: 2 | C51: For RSVA accounts only, report the net variance to the account during the year. For all other accounts, record the transactions during the year.
B52: 3 | C52: If the LDC’s rate year begins on January 1, 2015, the projected interest is recorded from January 1, 2014 to December 31, 2014 on the December 31, 2013 balances adjusted for the disposed balances approved by the Board in the 2014 rate decision. If the LDC’s rate year begins on May 1, 2015, the projected interest is recorded from January 1, 2014 to April 30, 2015 on the December 31, 2013 balances adjusted for the disposed interest balances approved by the Board in the 2014 rate decision.
B53: 4 | C53: Include Account 1595 as part of Group 1 accounts (lines 31, 32, 33 and 34) for review and disposition if the recovery (or refund) period has been completed. If the recovery (or refund) period has not been completed, do not include the respective balance in Account 1595 for disposition at this time.

Sheet 6. Billing Det. for Def-Var
AS1: As per Section 3.2.3 of the 2015 Filing Requirements for Electricity Distribution Rate Applications, an applicant may elect to dispose of the Group 1 account balances below the threshold. If doing so, please select YES from the adjacent drop-down cell and also indicate so in the Manager's Summary. If not, please select NO.
A13: In the green shaded cells, enter the most recent Board Approved volumetric forecast. If there is a material difference between the latest Board-approved volumetric forecast and the most recent 12-month actual volumetric data, use the most recent 12-month actual data. Do not enter data for the MicroFit class.
E15: Billed kWh for Non-RPP Customers | F15: Estimated kW for Non-RPP Customers | H15: 1590 Recovery Share Proportion* | I15: 1595 Recovery Share Proportion (2008) 1 | J15: 1595 Recovery Share Proportion (2009) 1 | K15: 1595 Recovery Share Proportion (2010) 1 | L15: 1595 Recovery Share Proportion (2011) 1 | M15: 1595 Recovery Share Proportion (2012) 1 | N15: 1568 LRAM Variance Account Class Allocation ($ amounts) | O15: Number of Customers for Residential and GS<50 classes3
A16: Rate Class | B16: Unit | C16: Metered kWh | D16: Metered kW
A17: RESIDENTIAL | B17: $/kWh | C17: 2256501094 | E17: 100015579 | F17: =IF(ISERROR(D17/C17*E17), 0, D17/C17*E17) -> 0 | O17: 280517
A18: GENERAL SERVICE LESS THAN 50 KW | B18: $/kWh | C18: 720479340 | E18: 67683741.83 | F18: 0 | O18: 23629
A19: GENERAL SERVICE 50 TO 1,499 KW | B19: $/kW | C19: 3006131060 | D19: 7292973 | E19: 2676165018 | F19: 6492464.51
A20: GENERAL SERVICE 1,500 TO 4,999 KW | B20: $/kW | C20: 857551218 | D20: 1866871 | E20: 876597685.5 | F20: 1908334.76
A21: LARGE USE | B21: $/kW | C21: 613513830 | D21: 1135342 | E21: 615205612.4 | F21: 1138472.739
A22: UNMETERED SCATTERED LOAD | B22: $/kWh | C22: 17054550 | F22: 0
A23: STANDBY POWER GENERAL SERVICE 50 TO 1,499 KW | B23: $/kW | F23: 0
A24: STANDBY POWER GENERAL SERVICE 1,500 TO 4,999 KW | B24: $/kW | D24: 96833 | F24: 0
A25: STANDBY POWER GENERAL SERVICE LARGE USE | B25: $/kW | F25: 0
A26: SENTINEL LIGHTING | B26: $/kW | C26: 49020 | D26: 139 | F26: 0
A27: STREET LIGHTING | B27: $/kW | C27: 44767415 | D27: 123947 | E27: 46220021.47 | F27: 127968.8139
A28: microFIT
B30: Total | C30: =SUM(C17:C28) -> 7516047527 | D30: =SUM(D17:D28) -> 10516105 | E30: 4381887658 | F30: 9667240.823 | H30: 0 | I30: 0 | J30: 0 | K30: 0 | L30: 0 | M30: 0 | N30: 0 | O30: 304146
M31: Balance as per Sheet 5 | N31: =ROUND('5. 2014 Continuity Schedule'!BE42, 0) -> 0
M32: Variance | N32: =N30-N31 -> 0
A34: Threshold Test
A35: Total Claim (including Account 1568) | B35: ='5. 2014 Continuity Schedule'!BE44 -> -2552669.64
A36: Total Claim for Threshold Test (All Group 1 Accounts) | B36: ='5. 2014 Continuity Schedule'!BE40 -> -2552669.64
A37: Threshold Test (Total claim per kWh) 2 | B37: =IF(ISERROR(B36/C30), 0, B36/C30) -> -0.0003396292574 | D37: =IF(AND(B37>-0.001,B37<0.001),"Claim does not meet the threshold test.","") -> Claim does not meet the threshold test.
A39: =IF(AND(B37>-0.001, B37<0.001), AS1, "") -> As per Section 3.2.3 of the 2015 Filing Requirements for Electricity Distribution Rate Applications, an applicant may elect to dispose of the Group 1 account balances below the threshold. If doing so, please select YES from the adjacent drop-down cell and also indicate so in the Manager's Summary. If not, please select NO. | C39: NO
A43: 1 Residual Account balance to be allocated to rate classes in proportion to the recovery share as established when rate riders were implemented.
A44: 2 The Threshold Test does not include the amount in 1568.
A45: 3 The proportion of customers for the Residential and GS<50 Classes will be used to allocate Account 1551.

Sheet 6. hidden (hidden)
E1: Billed kWh for Non-RPP Customers | F1: Estimated kW for Non-RPP Customers | G1: Distribution Revenue 1 | H1: 1590 Recovery Share Proportion* | I1: 1595 Recovery Share Proportion (2008) 2 | J1: 1595 Recovery Share Proportion (2009) 2 | K1: 1595 Recovery Share Proportion (2010) 2 | L1: 1595 Recovery Share Proportion (2011) 2 | M1: 1568 LRAM Variance Account Class Allocation | AC1: NO
A2: Rate Class | B2: Unit | C2: Metered kWh | D2: Metered kW
A3: RESIDENTIAL | B3: $/kWh | C3: 2256501094 | D3: 0 | E3: 100015579 | G3: 0 | H3: 0 | I3: 0 | J3: 0 | K3: 0 | L3: 0 | M3: 0 | N3: 0 | O3: 287191
A4: GENERAL SERVICE LESS THAN 50 KW | B4: $/kWh | C4: 720479340 | D4: 0 | E4: 67683741.83 | G4: 0 | H4: 0 | I4: 0 | J4: 0 | K4: 0 | L4: 0 | M4: 0 | N4: 0 | O4: 23972
A5: GENERAL SERVICE 50 TO 1,499 KW | B5: $/kW | C5: 3006131060 | D5: 7292973 | E5: 2676165018 | G5: 0 | H5: 0 | I5: 0 | J5: 0 | K5: 0 | L5: 0 | M5: 0 | N5: 0 | O5: 0
A6: GENERAL SERVICE 1,500 TO 4,999 KW | B6: $/kW | C6: 857551218 | D6: 1866871 | E6: 876597685.5 | G6: 0 | H6: 0 | I6: 0 | J6: 0 | K6: 0 | L6: 0 | M6: 0 | N6: 0 | O6: 0
A7: LARGE USE | B7: $/kW | C7: 613513830 | D7: 1135342 | E7: 615205612.4 | G7: 0 | H7: 0 | I7: 0 | J7: 0 | K7: 0 | L7: 0 | M7: 0 | N7: 0 | O7: 0
A8: UNMETERED SCATTERED LOAD | B8: $/kWh | C8: 17054550 | D8: 0 | E8: 0 | G8: 0 | H8: 0 | I8: 0 | J8: 0 | K8: 0 | L8: 0 | M8: 0 | N8: 0 | O8: 0
A9: STANDBY POWER GENERAL SERVICE 50 TO 1,499 KW | B9: $/kW | C9: 0 | D9: 0 | E9: 0 | G9: 0 | H9: 0 | I9: 0 | J9: 0 | K9: 0 | L9: 0 | M9: 0 | N9: 0 | O9: 0
A10: STANDBY POWER GENERAL SERVICE 1,500 TO 4,999 KW | B10: $/kW | C10: 0 | D10: 96833 | E10: 0 | G10: 0 | H10: 0 | I10: 0 | J10: 0 | K10: 0 | L10: 0 | M10: 0 | N10: 0 | O10: 0
A11: STANDBY POWER GENERAL SERVICE LARGE USE | B11: $/kW | C11: 0 | D11: 0 | E11: 0 | G11: 0 | H11: 0 | I11: 0 | J11: 0 | K11: 0 | L11: 0 | M11: 0 | N11: 0 | O11: 0
A12: SENTINEL LIGHTING | B12: $/kW | C12: 49020 | D12: 139 | E12: 0 | G12: 0 | H12: 0 | I12: 0 | J12: 0 | K12: 0 | L12: 0 | M12: 0 | N12: 0 | O12: 0
A13: STREET LIGHTING | B13: $/kW | C13: 44767415 | D13: 123947 | E13: 46220021.47 | G13: 0 | H13: 0 | I13: 0 | J13: 0 | K13: 0 | L13: 0 | M13: 0 | N13: 0 | O13: 0
A14: microFIT | B14: 0 | C14: 0 | D14: 0 | E14: 0 | G14: 0 | H14: 0 | I14: 0 | J14: 0 | K14: 0 | L14: 0 | M14: 0 | N14: 0 | O14: 0

Sheet 7. Allocating Def-Var Balances
A13: No input required. This workshseet allocates the deferral/variance account balances (Group 1, 1589, and 1568) to the appropriate classes as per the EDDVAR Report dated July 31, 2009
A15: Allocation of Group 1 Accounts (including Account 1568)
C16: % of Total kWh | D16: % of Total non-RPP kWh | E16: % of Customer Numbers ** | N16: 1595 (2008) | O16: 1595 (2009) | P16: 1595 (2010) | Q16: 1595 (2011) | R16: 1595 (2012) | S16: 1568
A17: Rate Class | F17: 1550 | G17: 1551 | H17: 1580 | I17: 1584 | J17: 1586 | K17: 1588 | L17: 1589 | M17: 1590
A19: RESIDENTIAL | C19: =VLOOKUP(A19, '6. Billing Det. for Def-Var'!#REF!, 3,0)/'6. Billing Det. for Def-Var'!#REF! ->  | D19: =VLOOKUP(A19, '6. Billing Det. for Def-Var'!#REF!, 5,0)/'6. Billing Det. for Def-Var'!#REF! ->  | E19: =VLOOKUP(A19, '6. Billing Det. for Def-Var'!#REF!, 15,0)/'6. Billing Det. for Def-Var'!#REF! ->  | F19: 0 | G19: 0 | H19: 0 | I19: 0 | J19: 0 | K19: 0 | L19: 0 | M19: 0 | N19: 0 | O19: 0 | P19: 0 | Q19: 0 | R19: 0 | S19: ='6. Billing Det. for Def-Var'!#REF! -> 
A20: GENERAL SERVICE LESS THAN 50 KW | C20: =VLOOKUP(A20, '6. Billing Det. for Def-Var'!#REF!, 3,0)/'6. Billing Det. for Def-Var'!#REF! ->  | D20: =VLOOKUP(A20, '6. Billing Det. for Def-Var'!#REF!, 5,0)/'6. Billing Det. for Def-Var'!#REF! ->  | E20: =VLOOKUP(A20, '6. Billing Det. for Def-Var'!#REF!, 15,0)/'6. Billing Det. for Def-Var'!#REF! ->  | F20: 0 | G20: 0 | H20: 0 | I20: 0 | J20: 0 | K20: 0 | L20: 0 | M20: 0 | N20: 0 | O20: 0 | P20: 0 | Q20: 0 | R20: 0 | S20: ='6. Billing Det. for Def-Var'!#REF! -> 
A21: GENERAL SERVICE 50 TO 1,499 KW | C21: =VLOOKUP(A21, '6. Billing Det. for Def-Var'!#REF!, 3,0)/'6. Billing Det. for Def-Var'!#REF! ->  | D21: =VLOOKUP(A21, '6. Billing Det. for Def-Var'!#REF!, 5,0)/'6. Billing Det. for Def-Var'!#REF! ->  | F21: 0 | G21: 0 | H21: 0 | I21: 0 | J21: 0 | K21: 0 | L21: 0 | M21: 0 | N21: 0 | O21: 0 | P21: 0 | Q21: 0 | R21: 0 | S21: ='6. Billing Det. for Def-Var'!#REF! -> 
A22: GENERAL SERVICE 1,500 TO 4,999 KW | C22: =VLOOKUP(A22, '6. Billing Det. for Def-Var'!#REF!, 3,0)/'6. Billing Det. for Def-Var'!#REF! ->  | D22: =VLOOKUP(A22, '6. Billing Det. for Def-Var'!#REF!, 5,0)/'6. Billing Det. for Def-Var'!#REF! ->  | F22: 0 | G22: 0 | H22: 0 | I22: 0 | J22: 0 | K22: 0 | L22: 0 | M22: 0 | N22: 0 | O22: 0 | P22: 0 | Q22: 0 | R22: 0 | S22: ='6. Billing Det. for Def-Var'!#REF! -> 
A23: LARGE USE | C23: =VLOOKUP(A23, '6. Billing Det. for Def-Var'!#REF!, 3,0)/'6. Billing Det. for Def-Var'!#REF! ->  | D23: =VLOOKUP(A23, '6. Billing Det. for Def-Var'!#REF!, 5,0)/'6. Billing Det. for Def-Var'!#REF! ->  | F23: 0 | G23: 0 | H23: 0 | I23: 0 | J23: 0 | K23: 0 | L23: 0 | M23: 0 | N23: 0 | O23: 0 | P23: 0 | Q23: 0 | R23: 0 | S23: ='6. Billing Det. for Def-Var'!#REF! -> 
A24: UNMETERED SCATTERED LOAD | C24: =VLOOKUP(A24, '6. Billing Det. for Def-Var'!#REF!, 3,0)/'6. Billing Det. for Def-Var'!#REF! ->  | D24: =VLOOKUP(A24, '6. Billing Det. for Def-Var'!#REF!, 5,0)/'6. Billing Det. for Def-Var'!#REF! ->  | F24: 0 | G24: 0 | H24: 0 | I24: 0 | J24: 0 | K24: 0 | L24: 0 | M24: 0 | N24: 0 | O24: 0 | P24: 0 | Q24: 0 | R24: 0 | S24: ='6. Billing Det. for Def-Var'!#REF! -> 
A25: STANDBY POWER GENERAL SERVICE 50 TO 1,499 KW | C25: =VLOOKUP(A25, '6. Billing Det. for Def-Var'!#REF!, 3,0)/'6. Billing Det. for Def-Var'!#REF! ->  | D25: =VLOOKUP(A25, '6. Billing Det. for Def-Var'!#REF!, 5,0)/'6. Billing Det. for Def-Var'!#REF! ->  | F25: 0 | G25: 0 | H25: 0 | I25: 0 | J25: 0 | K25: 0 | L25: 0 | M25: 0 | N25: 0 | O25: 0 | P25: 0 | Q25: 0 | R25: 0 | S25: ='6. Billing Det. for Def-Var'!#REF! -> 
A26: STANDBY POWER GENERAL SERVICE 1,500 TO 4,999 KW | C26: =VLOOKUP(A26, '6. Billing Det. for Def-Var'!#REF!, 3,0)/'6. Billing Det. for Def-Var'!#REF! ->  | D26: =VLOOKUP(A26, '6. Billing Det. for Def-Var'!#REF!, 5,0)/'6. Billing Det. for Def-Var'!#REF! ->  | F26: 0 | G26: 0 | H26: 0 | I26: 0 | J26: 0 | K26: 0 | L26: 0 | M26: 0 | N26: 0 | O26: 0 | P26: 0 | Q26: 0 | R26: 0 | S26: ='6. Billing Det. for Def-Var'!#REF! -> 
A27: STANDBY POWER GENERAL SERVICE LARGE USE | C27: =VLOOKUP(A27, '6. Billing Det. for Def-Var'!#REF!, 3,0)/'6. Billing Det. for Def-Var'!#REF! ->  | D27: =VLOOKUP(A27, '6. Billing Det. for Def-Var'!#REF!, 5,0)/'6. Billing Det. for Def-Var'!#REF! ->  | F27: 0 | G27: 0 | H27: 0 | I27: 0 | J27: 0 | K27: 0 | L27: 0 | M27: 0 | N27: 0 | O27: 0 | P27: 0 | Q27: 0 | R27: 0 | S27: ='6. Billing Det. for Def-Var'!#REF! -> 
A28: SENTINEL LIGHTING | C28: =VLOOKUP(A28, '6. Billing Det. for Def-Var'!#REF!, 3,0)/'6. Billing Det. for Def-Var'!#REF! ->  | D28: =VLOOKUP(A28, '6. Billing Det. for Def-Var'!#REF!, 5,0)/'6. Billing Det. for Def-Var'!#REF! ->  | F28: 0 | G28: 0 | H28: 0 | I28: 0 | J28: 0 | K28: 0 | L28: 0 | M28: 0 | N28: 0 | O28: 0 | P28: 0 | Q28: 0 | R28: 0 | S28: ='6. Billing Det. for Def-Var'!#REF! -> 
A29: STREET LIGHTING | C29: =VLOOKUP(A29, '6. Billing Det. for Def-Var'!#REF!, 3,0)/'6. Billing Det. for Def-Var'!#REF! ->  | D29: =VLOOKUP(A29, '6. Billing Det. for Def-Var'!#REF!, 5,0)/'6. Billing Det. for Def-Var'!#REF! ->  | F29: 0 | G29: 0 | H29: 0 | I29: 0 | J29: 0 | K29: 0 | L29: 0 | M29: 0 | N29: 0 | O29: 0 | P29: 0 | Q29: 0 | R29: 0 | S29: ='6. Billing Det. for Def-Var'!#REF! -> 
A30: microFIT | C30: 0 | D30: 0 | E30: 0 | F30: 0 | G30: 0 | H30: 0 | I30: 0 | J30: 0 | K30: 0 | L30: 0 | M30: 0 | N30: 0 | O30: 0 | P30: 0 | Q30: 0 | R30: 0 | S30: ='6. Billing Det. for Def-Var'!#REF! -> 
A32: Total | C32: =SUM(C19:C30) ->  | F32: 0 | G32: 0 | H32: 0 | I32: 0 | J32: 0 | K32: 0 | L32: 0 | M32: 0 | N32: 0 | O32: 0 | P32: 0 | Q32: 0 | R32: 0
A35: * RSVA - Power (Excluding Global Adjustment)
A36: ** Used to allocate Account 1551 as this account records the variances arising from the Smart Metering Entity Charges to Residential and GS<50 customers.

Sheet 8. Calculation of Def-Var RR
A12: Input required at cell C15 only. This workshseet calculates rate riders related to the Deferral/Variance Account Disposition (if applicable), associated rate riders for the global adjustment account (1589) and Account 1568. Rate Riders will not be generated for the microFIT class.
A15: Please indicate the Rate Rider Recovery Period (in years) | C15: 1
E17: Balance of Accounts Allocated by kWh/kW (RPP) or Distribution Revenue | F17: Deferral/Variance Account Rate Rider | G17: Allocation of Balance in Account 1589 | H17: Billed kWh or Estimated kW for Non-RPP Customers | I17: Global Adjustment Rate Rider | J17: Allocation of Account 1568 | K17: Account 1568 Rate Rider
A18: Rate Class | B18: Unit | C18: Billed kWh | D18: Billed kW or kVA
A20: RESIDENTIAL | B20: $/kWh | C20: 2256501094 | E20: =SUM('7. Allocating Def-Var Balances'!F19:K19)+SUM('7. Allocating Def-Var Balances'!M19:R19) -> 0 | F20: 0 | G20: 0 | H20: 100015579 | I20: 0
A21: GENERAL SERVICE LESS THAN 50 KW | B21: $/kWh | C21: 720479340 | E21: =SUM('7. Allocating Def-Var Balances'!F20:K20)+SUM('7. Allocating Def-Var Balances'!M20:R20) -> 0 | F21: 0 | G21: 0 | H21: 67683741.83 | I21: 0
A22: GENERAL SERVICE 50 TO 1,499 KW | B22: $/kW | C22: 3006131060 | D22: 7292973 | E22: =SUM('7. Allocating Def-Var Balances'!F21:K21)+SUM('7. Allocating Def-Var Balances'!M21:R21) -> 0 | F22: 0 | G22: 0 | H22: 6492464.51 | I22: 0
A23: GENERAL SERVICE 1,500 TO 4,999 KW | B23: $/kW | C23: 857551218 | D23: 1866871 | E23: =SUM('7. Allocating Def-Var Balances'!F22:K22)+SUM('7. Allocating Def-Var Balances'!M22:R22) -> 0 | F23: 0 | G23: 0 | H23: 1908334.76 | I23: 0
A24: LARGE USE | B24: $/kW | C24: 613513830 | D24: 1135342 | E24: =SUM('7. Allocating Def-Var Balances'!F23:K23)+SUM('7. Allocating Def-Var Balances'!M23:R23) -> 0 | F24: 0 | G24: 0 | H24: 1138472.739 | I24: 0
A25: UNMETERED SCATTERED LOAD | B25: $/kWh | C25: 17054550 | E25: =SUM('7. Allocating Def-Var Balances'!F24:K24)+SUM('7. Allocating Def-Var Balances'!M24:R24) -> 0 | F25: 0 | G25: 0 | I25: 0
A26: STANDBY POWER GENERAL SERVICE 50 TO 1,499 KW | B26: $/kW | E26: =SUM('7. Allocating Def-Var Balances'!F25:K25)+SUM('7. Allocating Def-Var Balances'!M25:R25) -> 0 | F26: 0 | G26: 0 | H26: 0 | I26: 0
A27: STANDBY POWER GENERAL SERVICE 1,500 TO 4,999 KW | B27: $/kW | D27: 96833 | E27: =SUM('7. Allocating Def-Var Balances'!F26:K26)+SUM('7. Allocating Def-Var Balances'!M26:R26) -> 0 | F27: 0 | G27: 0 | H27: 0 | I27: 0
A28: STANDBY POWER GENERAL SERVICE LARGE USE | B28: $/kW | E28: =SUM('7. Allocating Def-Var Balances'!F27:K27)+SUM('7. Allocating Def-Var Balances'!M27:R27) -> 0 | F28: 0 | G28: 0 | H28: 0 | I28: 0
A29: SENTINEL LIGHTING | B29: $/kW | C29: 49020 | D29: 139 | E29: =SUM('7. Allocating Def-Var Balances'!F28:K28)+SUM('7. Allocating Def-Var Balances'!M28:R28) -> 0 | F29: 0 | G29: 0 | H29: 0 | I29: 0
A30: STREET LIGHTING | B30: $/kW | C30: 44767415 | D30: 123947 | E30: =SUM('7. Allocating Def-Var Balances'!F29:K29)+SUM('7. Allocating Def-Var Balances'!M29:R29) -> 0 | F30: 0 | G30: 0 | H30: 127968.8139 | I30: 0
A31: microFIT
A32: Total | C32: =SUM(C20:C31) -> 7516047527 | D32: =SUM(D20:D31) -> 10516105 | E32: =SUM(E20:E31) -> 0 | G32: =SUM(G20:G31) -> 0 | H32: =SUM(H20:H31) -> 177366561.7 | J32: =SUM(J20:J31) -> 0

Sheet 9. STS - Billing Det & Rates
A11: Shared Tax Savings
A13: ="Enter your " & '1. Information Sheet'!F32 & " Board-Approved Billing Determinents into columns B, C and D." -> Enter your 2012 Board-Approved Billing Determinents into columns B, C and D.
A14: ="Enter your " & '1. Information Sheet'!F32 & " Board-Approved Base monthly service and volumetric charges into columns G, H and I." -> Enter your 2012 Board-Approved Base monthly service and volumetric charges into columns G, H and I.
A16: Rate Class | B16: Units | C16: Re-based Billed Customers or Connections | D16: Re-based Billed kWh | E16: Re-based Billed kW (if applicable) | G16: ='1. Information Sheet'!F32 &" Base Monthly Service Charge" -> 2012 Base Monthly Service Charge | H16: ='1. Information Sheet'!F32 &" Base Distribution Volumetric Rate kWh" -> 2012 Base Distribution Volumetric Rate kWh | I16: ='1. Information Sheet'!F32 &" Base Distribution Volumetric Rate kW" -> 2012 Base Distribution Volumetric Rate kW
A17: RESIDENTIAL | B17: $/kWh | C17: 280901 | D17: 2282535398 | E17: 0 | G17: 9.32 | H17: 0.0226 | I17: 0
A18: GENERAL SERVICE LESS THAN 50 KW | B18: $/kWh | C18: 23636 | D18: 770026295 | E18: 0 | G18: 16.11 | H18: 0.0202 | I18: 0
A19: GENERAL SERVICE 50 TO 1,499 KW | B19: $/kW | C19: 3340 | D19: 0 | E19: 7404278 | G19: 251.21 | H19: 0 | I19: 3.4376
A20: GENERAL SERVICE 1,500 TO 4,999 KW | B20: $/kW | C20: 71 | D20: 0 | E20: 1719678 | G20: 4039.33 | H20: 0 | I20: 3.3601
A21: LARGE USE | B21: $/kW | C21: 11 | D21: 0 | E21: 1187623 | G21: 14669.82 | H21: 0 | I21: 3.1907
A22: UNMETERED SCATTERED LOAD | B22: $/kWh | C22: 3093 | D22: 17394983 | E22: 0 | G22: 4.26 | H22: 0.0211 | I22: 0
A23: STANDBY POWER GENERAL SERVICE 50 TO 1,499 KW | B23: $/kW | C23: 0 | D23: 0 | E23: 0 | G23: 117.9 | H23: 0 | I23: 1.5734
A24: STANDBY POWER GENERAL SERVICE 1,500 TO 4,999 KW | B24: $/kW | C24: 2 | D24: 0 | E24: 86400 | G24: 117.9 | H24: 0 | I24: 1.4433
A25: STANDBY POWER GENERAL SERVICE LARGE USE | B25: $/kW | C25: 0 | D25: 0 | E25: 0 | G25: 117.9 | H25: 0 | I25: 1.6016
A26: SENTINEL LIGHTING | B26: $/kW | C26: 73 | D26: 0 | E26: 221 | G26: 2.52 | H26: 0 | I26: 9.6661
A27: STREET LIGHTING | B27: $/kW | C27: 55546 | D27: 0 | E27: 121500 | G27: 0.54 | H27: 0 | I27: 3.8523
A28: microFIT

Sheet 10. STS - Rebased Rev
A12: Calculation of Rebased Revenue Requirement. No input required.
A15: Rate Class | C15: Re-based Billed Customers or Connections | D15: Re-based Billed kWh | E15: Re-based Billed kW | G15: Rate ReBal Base Service Charge | H15: Rate ReBal Base Distribution Volumetric Rate kWh | I15: Rate ReBal Base Distribution Volumetric Rate kW | K15: Service Charge Revenue | L15: Distribution Volumetric Rate Revenue kWh | M15: Distribution Volumetric Rate Revenue kW | N15: Revenue Requirement from Rates | P15: Service Charge % Revenue | Q15: Distribution Volumetric Rate % Revenue kWh | R15: Distribution Volumetric Rate % Revenue kW | S15: Total % Revenue
C16: A | D16: B | E16: C | G16: D | H16: E | I16: F | K16: G = A * D *12 | L16: H = B * E | M16: I = C * F | N16: J = G + H + I | P16: K = G / J | Q16: L = H / J | R16: M = I / J | S16: N = J / R
A17: RESIDENTIAL | C17: 280901 | D17: 2282535398 | E17: 0 | G17: 9.32 | H17: 0.0226 | I17: 0 | K17: =G17*C17*12 -> 31415967.84 | L17: =H17*D17 -> 51585299.99 | M17: 0 | N17: =SUM(K17,L17,M17) -> 83001267.83 | P17: =IF(ISERROR(K17/N17),0,K17/N17) -> 0.378499855 | Q17: =IF(ISERROR(L17/N17),0,L17/N17) -> 0.621500145 | R17: =IF(ISERROR(M17/N17),0,M17/N17) -> 0 | S17: =N17/N29 -> 0.5352257057
A18: GENERAL SERVICE LESS THAN 50 KW | C18: 23636 | D18: 770026295 | E18: 0 | G18: 16.11 | H18: 0.0202 | I18: 0 | K18: 4569311.52 | L18: =H18*D18 -> 15554531.16 | M18: 0 | N18: 20123842.68 | P18: 0.2270595926 | Q18: 0.7729404074 | R18: 0 | S18: =N18/N29 -> 0.1297666672
A19: GENERAL SERVICE 50 TO 1,499 KW | C19: 3340 | D19: 0 | E19: 7404278 | G19: 251.21 | H19: 0 | I19: 3.4376 | K19: 10068496.8 | L19: 0 | M19: =I19*E19 -> 25452946.05 | N19: 35521442.85 | P19: 0.2834484185 | Q19: 0 | R19: 0.7165515815 | S19: =N19/N29 -> 0.2290566134
A20: GENERAL SERVICE 1,500 TO 4,999 KW | C20: 71 | D20: 0 | E20: 1719678 | G20: 4039.33 | H20: 0 | I20: 3.3601 | K20: 3441509.16 | L20: 0 | M20: =I20*E20 -> 5778290.048 | N20: 9219799.208 | P20: 0.3732737647 | Q20: 0 | R20: 0.6267262353 | S20: =N20/N29 -> 0.05945298989
A21: LARGE USE | C21: 11 | D21: 0 | E21: 1187623 | G21: 14669.82 | H21: 0 | I21: 3.1907 | K21: 1936416.24 | L21: 0 | M21: =I21*E21 -> 3789348.706 | N21: 5725764.946 | P21: 0.3381934568 | Q21: 0 | R21: 0.6618065432 | S21: =N21/N29 -> 0.03692204545
A22: UNMETERED SCATTERED LOAD | C22: 3093 | D22: 17394983 | E22: 0 | G22: 4.26 | H22: 0.0211 | I22: 0 | K22: 158114.16 | L22: =H22*D22 -> 367034.1413 | M22: 0 | N22: 525148.3013 | P22: 0.3010847785 | Q22: 0.6989152215 | R22: 0 | S22: =N22/N29 -> 0.003386368395
A23: STANDBY POWER GENERAL SERVICE 50 TO 1,499 KW | C23: 0 | D23: 0 | E23: 0 | G23: 117.9 | H23: 0 | I23: 1.5734 | K23: 0 | L23: 0 | M23: 0 | N23: 0 | P23: 0 | Q23: 0 | R23: 0 | S23: =N23/N29 -> 0
A24: STANDBY POWER GENERAL SERVICE 1,500 TO 4,999 KW | C24: 2 | D24: 0 | E24: 86400 | G24: 117.9 | H24: 0 | I24: 1.4433 | K24: 2829.6 | L24: 0 | M24: =I24*E24 -> 124701.12 | N24: 127530.72 | P24: 0.02218759527 | Q24: 0 | R24: 0.9778124047 | S24: =N24/N29 -> 0.0008223696021
A25: STANDBY POWER GENERAL SERVICE LARGE USE | C25: 0 | D25: 0 | E25: 0 | G25: 117.9 | H25: 0 | I25: 1.6016 | K25: 0 | L25: 0 | M25: 0 | N25: 0 | P25: 0 | Q25: 0 | R25: 0 | S25: =N25/N29 -> 0
A26: SENTINEL LIGHTING | C26: 73 | D26: 0 | E26: 221 | G26: 2.52 | H26: 0 | I26: 9.6661 | K26: 2207.52 | L26: 0 | M26: =I26*E26 -> 2136.2081 | N26: 4343.7281 | P26: 0.5082086054 | Q26: 0 | R26: 0.4917913946 | S26: =N26/N29 -> 2.801011356e-05
A27: STREET LIGHTING | C27: 55546 | D27: 0 | E27: 121500 | G27: 0.54 | H27: 0 | I27: 3.8523 | K27: 359938.08 | L27: 0 | M27: =I27*E27 -> 468054.45 | N27: 827992.53 | P27: 0.4347117479 | Q27: 0 | R27: 0.5652882521 | S27: =N27/N29 -> 0.005339230324
A28: microFIT | K28: 0 | L28: 0 | M28: 0 | N28: 0 | P28: 0 | Q28: 0 | R28: 0 | S28: =N28/N29 -> 0
A29: Total | C29: =SUM(C17:C28) -> 366673 | D29: =SUM(D17:D28) -> 3069956676 | E29: =SUM(E17:E28) -> 10519700 | K29: =SUM(K17:K28) -> 51954790.92 | L29: =SUM(L17:L28) -> 67506865.3 | M29: =SUM(M17:M28) -> 35615476.58 | N29: =SUM(N17:N28) -> 155077132.8 | S29: =SUM(S17:S28) -> 1

Sheet 9. STS - Billing Det & Rate HID (hidden)
A11: Shared Tax Savings
A12: ="Enter your " & '1. Information Sheet'!F32 & " Board-Approved Billing Determinents into columns B, C and D." -> Enter your 2012 Board-Approved Billing Determinents into columns B, C and D.
A16: Rate Class | B16: Units | C16: Re-based Billed Customers or Connections | D16: Re-based Billed kWh | E16: Re-based Billed kW (if applicable) | G16: ='1. Information Sheet'!F32 &" Base Monthly Service Charge" -> 2012 Base Monthly Service Charge | H16: ='1. Information Sheet'!F32 &" Base Distribution Volumetric Rate kWh" -> 2012 Base Distribution Volumetric Rate kWh | I16: ='1. Information Sheet'!F32 &" Base Distribution Volumetric Rate kW" -> 2012 Base Distribution Volumetric Rate kW
A17: RESIDENTIAL | B17: $/kWh | C17: 280901 | D17: 2282535398 | E17: 0 | G17: 9.32 | H17: 0.0226 | I17: 0
A18: GENERAL SERVICE LESS THAN 50 KW | B18: $/kWh | C18: 23636 | D18: 770026295 | E18: 0 | G18: 16.11 | H18: 0.0202 | I18: 0
A19: GENERAL SERVICE 50 TO 1,499 KW | B19: $/kW | C19: 3340 | D19: 0 | E19: 7404278 | G19: 251.21 | H19: 0 | I19: 3.4376
A20: GENERAL SERVICE 1,500 TO 4,999 KW | B20: $/kW | C20: 71 | D20: 0 | E20: 1719678 | G20: 4039.33 | H20: 0 | I20: 3.3601
A21: LARGE USE | B21: $/kW | C21: 11 | D21: 0 | E21: 1187623 | G21: 14669.82 | H21: 0 | I21: 3.1907
A22: UNMETERED SCATTERED LOAD | B22: $/kWh | C22: 3093 | D22: 17394983 | E22: 0 | G22: 4.26 | H22: 0.0211 | I22: 0
A23: STANDBY POWER GENERAL SERVICE 50 TO 1,499 KW | B23: $/kW | C23: 0 | D23: 0 | E23: 0 | G23: 117.9 | H23: 0 | I23: 1.5734
A24: STANDBY POWER GENERAL SERVICE 1,500 TO 4,999 KW | B24: $/kW | C24: 2 | D24: 0 | E24: 86400 | G24: 117.9 | H24: 0 | I24: 1.4433
A25: STANDBY POWER GENERAL SERVICE LARGE USE | B25: $/kW | C25: 0 | D25: 0 | E25: 0 | G25: 117.9 | H25: 0 | I25: 1.6016
A26: SENTINEL LIGHTING | B26: $/kW | C26: 73 | D26: 0 | E26: 221 | G26: 2.52 | H26: 0 | I26: 9.6661
A27: STREET LIGHTING | B27: $/kW | C27: 55546 | D27: 0 | E27: 121500 | G27: 0.54 | H27: 0 | I27: 3.8523
A28: microFIT | B28: 0 | C28: 0 | D28: 0 | E28: 0 | G28: 0 | H28: 0 | I28: 0

Sheet 11. STS - Tax Change
T1: Rate Base | U1: Federal Tax Rate
T2: 500000 | U2: 0.11
T3: 10000000 | U3: 0.11
T4: =T3+100000 -> 10100000 | U4: 0.11
T5: =T4+100000 -> 10200000 | U5: 0.11
T6: 10300000 | U6: 0.11
T7: 10400000 | U7: 0.11
T8: 10500000 | U8: 0.11
T9: 10600000 | U9: 0.11
T10: 10700000 | U10: 0.11
T11: 10800000 | U11: 0.11
T12: 10900000 | U12: 0.11
A13: Summary - Sharing of Tax Change Forecast Amounts | T13: 11000000 | U13: 0.11
T14: 11100000 | U14: 0.111
A15: ="For the " & '1. Information Sheet'!F32 & " year, enter any Tax Credits from the Cost of Service Tax Calculation (Positive #)" -> For the 2012 year, enter any Tax Credits from the Cost of Service Tax Calculation (Positive #) | L15: 220000 | T15: 11200000 | U15: =U14+0.13% -> 0.1123 | V15: =U15-U14 -> 0.0013
T16: 11300000 | U16: =U15+0.13% -> 0.1136 | V16: =U16-U15 -> 0.0013
T17: 11400000 | U17: 0.1149 | V17: 0.0013
A18: 1. Tax Related Amounts Forecast from Capital Tax Rate Changes | L18: ='1. Information Sheet'!F32 -> 2012 | N18: 2015 | T18: 11500000 | U18: 0.1162 | V18: 0.0013
A19: Taxable Capital (if you are not claiming capital tax, please enter your Board-Approved Rate Base) | L19: 669062486 | N19: =L19 -> 669062486 | T19: 11600000 | U19: =U18+0.12% -> 0.1174 | V19: 0.0012
T20: 11700000 | U20: =U19+0.12% -> 0.1186 | V20: 0.0012
A21: Deduction from taxable capital up to $15,000,000 | N21: =L21 -> 0 | T21: 11800000 | U21: 0.1198 | V21: 0.0012
T22: 11900000 | U22: 0.121 | V22: 0.0012
A23: Net Taxable Capital | L23: =L19-L21 -> 669062486 | N23: =N19-N21 -> 669062486 | T23: 12000000 | U23: =U22+0.112% -> 0.12212 | V23: 0.00112
T24: 12100000 | U24: =U23+0.112% -> 0.12324 | V24: 0.00112
A25: Rate | L25: 0 | N25: 0 | T25: 12200000 | U25: 0.12436 | V25: 0.00112
T26: 12300000 | U26: 0.12548 | V26: 0.00112
A27: Ontario Capital Tax (Deductible, not grossed-up) | L27: =IF(L23>0, L23*L25, 0)*181/365 -> 0 | N27: 0 | T27: 12400000 | U27: 0.1266 | V27: 0.00112
T28: 12500000 | U28: 0.12772 | V28: 0.00112
A29: 2. Tax Related Amounts Forecast from lncome Tax Rate Changes | T29: 12600000 | U29: =U28+0.102% -> 0.12874 | V29: 0.00102
A30: Regulatory Taxable Income | L30: 17874948 | N30: =L30 -> 17874948 | T30: 12700000 | U30: =U29+0.102% -> 0.12976 | V30: 0.00102
T31: 12800000 | U31: 0.13078 | V31: 0.00102
A32: Corporate Tax Rate | L32: 0.2606 | N32: =IF(N30=0,0,IF(N30<=500000,4.5%+11%,IF(N30>500000,(11.5%*N30-35000)/N30+VLOOKUP(N19,T:U,2,TRUE),""))) -> 0.2630419523 | T32: 12900000 | U32: 0.1318 | V32: 0.00102
T33: 13000000 | U33: 0.13282 | V33: 0.00102
A34: Tax Impact | L34: 4438573 | N34: =N30*N32-L15 -> 4481861.22 | T34: 13100000 | U34: =U33+0.096% -> 0.13378 | V34: 0.00096
T35: 13200000 | U35: =U34+0.096% -> 0.13474 | V35: 0.00096
A36: Grossed-up Tax Amount | L36: 6002939 | N36: =N34/(1-N32) -> 6081569.004 | T36: 13300000 | U36: 0.1357 | V36: 0.00096
T37: 13400000 | U37: 0.13666 | V37: 0.00096
A38: Tax Related Amounts Forecast from Capital Tax Rate Changes | L38: =L27 -> 0 | N38: =N27 -> 0 | T38: 13500000 | U38: 0.13762 | V38: 0.00096
T39: 13600000 | U39: =U38+0.088% -> 0.1385 | V39: 0.00088
A40: Tax Related Amounts Forecast from lncome Tax Rate Changes | L40: =L36 -> 6002939 | N40: =N36 -> 6081569.004 | T40: 13700000 | U40: =U39+0.088% -> 0.13938 | V40: 0.00088
T41: 13800000 | U41: 0.14026 | V41: 0.00088
A42: Total Tax Related Amounts | L42: =SUM(L40,L38) -> 6002939 | N42: =SUM(N40,N38) -> 6081569.004 | T42: 13900000 | U42: 0.14114 | V42: 0.00088
T43: 14000000 | U43: 0.14202 | V43: 0.00088
A44: Incremental Tax Savings | N44: =N42-L42 -> 78630.00419 | T44: 14100000 | U44: =U43+0.082% -> 0.14284 | V44: 0.00082
T45: 14200000 | U45: =U44+0.082% -> 0.14366 | V45: 0.00082
A46: Sharing of Tax Savings (50%) | N46: =0.5*N44 -> 39315.00209 | T46: 14300000 | U46: 0.14448 | V46: 0.00082
T47: 14400000 | U47: 0.1453 | V47: 0.00082
T48: 14500000 | U48: 0.14612 | V48: 0.00082
T49: 14600000 | U49: =U48+0.076% -> 0.14688 | V49: 0.00076
T50: 14700000 | U50: =U49+0.076% -> 0.14764 | V50: 0.00076
T51: 14800000 | U51: 0.1484 | V51: 0.00076
T52: 14900000 | U52: 0.14916 | V52: 0.00076
T53: 15000000 | U53: 0.15 | V53: 0.00084

Sheet 12. STS - Tax Change Rate Rider
A11: This worksheet calculates a tax change volumetric rate rider. If the rate riders are material (round to 4 decimal places), then the outputs in columns M and O will appear on Sheet 27 - Final Tariff Schedule.
A15: Rate Class | C15: Total Revenue $ by Rate Class | E15: Total Revenue % by Rate Class | G15: Allocation of Tax Savings by Rate Class | I15: Billed kWh | K15: Billed kW | M15: Distribution Volumetric Rate kWh Rate Rider | O15: Distribution Volumetric Rate kW Rate Rider
A17: RESIDENTIAL | C17: 83001267.83 | E17: =C17/C29 -> 0.5352257057 | G17: =E17*G29 -> 21042.39862 | I17: 2282535398 | K17: 0 | M17: =ROUND(G17/I17,4) -> 0
A18: GENERAL SERVICE LESS THAN 50 KW | C18: 20123842.68 | E18: =C18/C29 -> 0.1297666672 | G18: =E18*G29 -> 5101.77652 | I18: 770026295 | K18: 0 | M18: =ROUND(G18/I18,4) -> 0
A19: GENERAL SERVICE 50 TO 1,499 KW | C19: 35521442.85 | E19: =C19/C29 -> 0.2290566134 | G19: =E19*G29 -> 9005.360755 | I19: 0 | K19: 7404278
A20: GENERAL SERVICE 1,500 TO 4,999 KW | C20: 9219799.208 | E20: =C20/C29 -> 0.05945298989 | G20: =E20*G29 -> 2337.394297 | I20: 0 | K20: 1719678
A21: LARGE USE | C21: 5725764.946 | E21: =C21/C29 -> 0.03692204545 | G21: =E21*G29 -> 1451.590217 | I21: 0 | K21: 1187623
A22: UNMETERED SCATTERED LOAD | C22: 525148.3013 | E22: =C22/C29 -> 0.003386368395 | G22: =E22*G29 -> 133.1350734 | I22: 17394983 | K22: 0 | M22: =ROUND(G22/I22,4) -> 0
A23: STANDBY POWER GENERAL SERVICE 50 TO 1,499 KW | C23: 0 | E23: =C23/C29 -> 0 | G23: =E23*G29 -> 0 | I23: 0 | K23: 0
A24: STANDBY POWER GENERAL SERVICE 1,500 TO 4,999 KW | C24: 127530.72 | E24: =C24/C29 -> 0.0008223696021 | G24: =E24*G29 -> 32.33146091 | I24: 0 | K24: 86400
A25: STANDBY POWER GENERAL SERVICE LARGE USE | C25: 0 | E25: =C25/C29 -> 0 | G25: =E25*G29 -> 0 | I25: 0 | K25: 0
A26: SENTINEL LIGHTING | C26: 4343.7281 | E26: =C26/C29 -> 2.801011356e-05 | G26: =E26*G29 -> 1.101217615 | I26: 0 | K26: 221
A27: STREET LIGHTING | C27: 827992.53 | E27: =C27/C29 -> 0.005339230324 | G27: =E27*G29 -> 209.9118402 | I27: 0 | K27: 121500
A28: microFIT | C28: 0 | E28: =C28/C29 -> 0 | G28: =E28*G29 -> 0
A29: Total | C29: =SUM(C17:C28) -> 155077132.8 | E29: =SUM(E17:E28) -> 1 | G29: 39315 | I29: =SUM(I17:I28) -> 3069956676 | K29: =SUM(K17:K28) -> 10519700
A31: One or more rate classes appear to have negligible rate riders in columns M and/or O. As per Appendix B of the Filing Requirements, please provide details of the Applicant's proposal in the Manager's Summary.

Sheet 13. RTSR Rate Sheet
A13: No input required. This sheet consolidates all Current Retail Transmission Rates entered on Sheet 4.
A15: Rate Class | B15: Rate Description | C15: Unit | D15: RTSR-Network | E15: RTSR-Connection
A17: RESIDENTIAL | B17: Retail Transmission Rate - Network Service Rate | C17: $/kWh | D17: 0.008
A18: RESIDENTIAL | B18: Retail Transmission Rate - Line and Transformation Connection Service Rate | C18: $/kWh | E18: 0.0042
A19: GENERAL SERVICE LESS THAN 50 KW | B19: Retail Transmission Rate - Network Service Rate | C19: $/kWh | D19: 0.0072
A20: GENERAL SERVICE LESS THAN 50 KW | B20: Retail Transmission Rate - Line and Transformation Connection Service Rate | C20: $/kWh | E20: 0.004
A21: GENERAL SERVICE 50 TO 1,499 KW | B21: Retail Transmission Rate - Network Service Rate | C21: $/kW | D21: 3.0087
A22: GENERAL SERVICE 50 TO 1,499 KW | B22: Retail Transmission Rate - Line and Transformation Connection Service Rate | C22: $/kW | E22: 1.6116
A23: GENERAL SERVICE 1,500 TO 4,999 KW | B23: Retail Transmission Rate - Network Service Rate | C23: $/kW | D23: 3.124
A24: GENERAL SERVICE 1,500 TO 4,999 KW | B24: Retail Transmission Rate - Line and Transformation Connection Service Rate | C24: $/kW | E24: 1.7223
A25: LARGE USE | B25: Retail Transmission Rate - Network Service Rate | C25: $/kW | D25: 3.463
A26: LARGE USE | B26: Retail Transmission Rate - Line and Transformation Connection Service Rate | C26: $/kW | E26: 1.9395
A27: UNMETERED SCATTERED LOAD | B27: Retail Transmission Rate - Network Service Rate | C27: $/kWh | D27: 0.0072
A28: UNMETERED SCATTERED LOAD | B28: Retail Transmission Rate - Line and Transformation Connection Service Rate | C28: $/kWh | E28: 0.004
A29: SENTINEL LIGHTING | B29: Retail Transmission Rate - Network Service Rate | C29: $/kW | D29: 2.221
A30: SENTINEL LIGHTING | B30: Retail Transmission Rate - Line and Transformation Connection Service Rate | C30: $/kW | E30: 1.1972
A31: STREET LIGHTING | B31: Retail Transmission Rate - Network Service Rate | C31: $/kW | D31: 2.2323
A32: STREET LIGHTING | B32: Retail Transmission Rate - Line and Transformation Connection Service Rate | C32: $/kW | E32: 1.2222

Sheet 14. RTSR RRR Data
A12: In the green shaded cells, enter the most recent reported RRR billing determinants. Please ensure that billing determinants are non-loss adjusted.
A14: Rate Class | B14: Rate Description | C14: Unit | D14: Non-Loss Adjusted Metered kWh | E14: Non-Loss Adjusted Metered kW | F14: Applicable Loss Factor | H14: Load Factor | I14: Loss Adjusted Billed kWh | J14: Billed kW
A15: RESIDENTIAL | B15: Retail Transmission Rate - Network Service Rate | C15: $/kWh | D15: 2256501094 | E15: 0 | F15: 1.0358 | H15: =IF(C15="$/kW", D15/(E15* 30.4 * 24), "" ) ->  | I15: =IF(OR(F15=0, OR(ISBLANK(F15), TRIM(F15)="")), F15, F15 * D15) -> 2337283833 | J15: =IF(OR(F15=0, OR(ISBLANK(F15), TRIM(F15)="")), E15, E15) -> 0
A16: RESIDENTIAL | B16: Retail Transmission Rate - Line and Transformation Connection Service Rate | C16: $/kWh | D16: 2256501094 | E16: 0 | F16: 1.0358 | H16: =IF(C16="$/kW", D16/(E16* 30.4 * 24), "" ) ->  | I16: 2337283833 | J16: 0
A17: GENERAL SERVICE LESS THAN 50 KW | B17: Retail Transmission Rate - Network Service Rate | C17: $/kWh | D17: 720479340 | E17: 0 | F17: 1.0358 | H17: =IF(C17="$/kW", D17/(E17* 30.4 * 24), "" ) ->  | I17: 746272500.4 | J17: 0
A18: GENERAL SERVICE LESS THAN 50 KW | B18: Retail Transmission Rate - Line and Transformation Connection Service Rate | C18: $/kWh | D18: 720479340 | E18: 0 | F18: 1.0358 | H18: =IF(C18="$/kW", D18/(E18* 30.4 * 24), "" ) ->  | I18: 746272500.4 | J18: 0
A19: GENERAL SERVICE 50 TO 1,499 KW | B19: Retail Transmission Rate - Network Service Rate | C19: $/kW | D19: 3006131060 | E19: 7292973 | F19: 0 | H19: 0 | I19: 0 | J19: 7292973
A20: GENERAL SERVICE 50 TO 1,499 KW | B20: Retail Transmission Rate - Line and Transformation Connection Service Rate | C20: $/kW | D20: 3006131060 | E20: 7292973 | F20: 0 | H20: 0 | I20: 0 | J20: 7292973
A21: GENERAL SERVICE 1,500 TO 4,999 KW | B21: Retail Transmission Rate - Network Service Rate | C21: $/kW | D21: 857551218 | E21: 1866871 | F21: 0 | H21: 0 | I21: 0 | J21: 1866871
A22: GENERAL SERVICE 1,500 TO 4,999 KW | B22: Retail Transmission Rate - Line and Transformation Connection Service Rate | C22: $/kW | D22: 857551218 | E22: 1866871 | F22: 0 | H22: 0 | I22: 0 | J22: 1866871
A23: LARGE USE | B23: Retail Transmission Rate - Network Service Rate | C23: $/kW | D23: 613513830 | E23: 1135342 | F23: 0 | H23: 0 | I23: 0 | J23: 1135342
A24: LARGE USE | B24: Retail Transmission Rate - Line and Transformation Connection Service Rate | C24: $/kW | D24: 613513830 | E24: 1135342 | F24: 0 | H24: 0 | I24: 0 | J24: 1135342
A25: UNMETERED SCATTERED LOAD | B25: Retail Transmission Rate - Network Service Rate | C25: $/kWh | D25: 17054550 | E25: 0 | F25: 1.0358 | H25: =IF(C25="$/kW", D25/(E25* 30.4 * 24), "" ) ->  | I25: 17665102.89 | J25: 0
A26: UNMETERED SCATTERED LOAD | B26: Retail Transmission Rate - Line and Transformation Connection Service Rate | C26: $/kWh | D26: 17054550 | E26: 0 | F26: 1.0358 | H26: =IF(C26="$/kW", D26/(E26* 30.4 * 24), "" ) ->  | I26: 17665102.89 | J26: 0
A27: SENTINEL LIGHTING | B27: Retail Transmission Rate - Network Service Rate | C27: $/kW | D27: 49020 | E27: 139 | F27: 0 | H27: 0 | I27: 0 | J27: 139
A28: SENTINEL LIGHTING | B28: Retail Transmission Rate - Line and Transformation Connection Service Rate | C28: $/kW | D28: 49020 | E28: 139 | F28: 0 | H28: 0 | I28: 0 | J28: 139
A29: STREET LIGHTING | B29: Retail Transmission Rate - Network Service Rate | C29: $/kW | D29: 44767415 | E29: 123947 | F29: 0 | H29: 0 | I29: 0 | J29: 123947
A30: STREET LIGHTING | B30: Retail Transmission Rate - Line and Transformation Connection Service Rate | C30: $/kW | D30: 44767415 | E30: 123947 | F30: 0 | H30: 0 | I30: 0 | J30: 123947

Sheet 14. RTSR RRR Data Copy (hidden)
A12: In the green shaded cells, enter the most recent reported RRR billing determinants. Please ensure that billing determinants are non-loss adjusted.
A14: Rate Class | B14: Rate Description | C14: Unit | D14: Non-Loss Adjusted Metered kWh | E14: Non-Loss Adjusted Metered kW | F14: Applicable Loss Factor | H14: Load Factor | I14: Loss Adjusted Billed kWh | J14: Billed kW
A15: RESIDENTIAL | B15: Retail Transmission Rate - Network Service Rate | C15: $/kWh | D15: 2256501094 | E15: 0 | F15: 1.0358
A16: RESIDENTIAL | B16: Retail Transmission Rate - Line and Transformation Connection Service Rate | C16: $/kWh | D16: 2256501094 | E16: 0 | F16: 1.0358
A17: GENERAL SERVICE LESS THAN 50 KW | B17: Retail Transmission Rate - Network Service Rate | C17: $/kWh | D17: 720479340 | E17: 0 | F17: 1.0358
A18: GENERAL SERVICE LESS THAN 50 KW | B18: Retail Transmission Rate - Line and Transformation Connection Service Rate | C18: $/kWh | D18: 720479340 | E18: 0 | F18: 1.0358
A19: GENERAL SERVICE 50 TO 1,499 KW | B19: Retail Transmission Rate - Network Service Rate | C19: $/kW | D19: 3006131060 | E19: 7292973 | F19: 0
A20: GENERAL SERVICE 50 TO 1,499 KW | B20: Retail Transmission Rate - Line and Transformation Connection Service Rate | C20: $/kW | D20: 3006131060 | E20: 7292973 | F20: 0
A21: GENERAL SERVICE 1,500 TO 4,999 KW | B21: Retail Transmission Rate - Network Service Rate | C21: $/kW | D21: 857551218 | E21: 1866871 | F21: 0
A22: GENERAL SERVICE 1,500 TO 4,999 KW | B22: Retail Transmission Rate - Line and Transformation Connection Service Rate | C22: $/kW | D22: 857551218 | E22: 1866871 | F22: 0
A23: LARGE USE | B23: Retail Transmission Rate - Network Service Rate | C23: $/kW | D23: 613513830 | E23: 1135342 | F23: 0
A24: LARGE USE | B24: Retail Transmission Rate - Line and Transformation Connection Service Rate | C24: $/kW | D24: 613513830 | E24: 1135342 | F24: 0
A25: UNMETERED SCATTERED LOAD | B25: Retail Transmission Rate - Network Service Rate | C25: $/kWh | D25: 17054550 | E25: 0 | F25: 1.0358
A26: UNMETERED SCATTERED LOAD | B26: Retail Transmission Rate - Line and Transformation Connection Service Rate | C26: $/kWh | D26: 17054550 | E26: 0 | F26: 1.0358
A27: SENTINEL LIGHTING | B27: Retail Transmission Rate - Network Service Rate | C27: $/kW | D27: 49020 | E27: 139 | F27: 0
A28: SENTINEL LIGHTING | B28: Retail Transmission Rate - Line and Transformation Connection Service Rate | C28: $/kW | D28: 49020 | E28: 139 | F28: 0
A29: STREET LIGHTING | B29: Retail Transmission Rate - Network Service Rate | C29: $/kW | D29: 44767415 | E29: 123947 | F29: 0
A30: STREET LIGHTING | B30: Retail Transmission Rate - Line and Transformation Connection Service Rate | C30: $/kW | D30: 44767415 | E30: 123947 | F30: 0

Sheet 15. RTSR - UTRs & Sub-Tx
B18: Uniform Transmission Rates | C18: Unit | E18: Effective January 1, 2013 | G18: Effective January 1, 2014 | I18: Effective January 1, 2015
B20: Rate Description | E20: Rate | G20: Rate | I20: Rate
B22: Network Service Rate | C22: kW | E22: 3.63 | G22: 3.82 | I22: 3.82
B24: Line Connection Service Rate | C24: kW | E24: 0.75 | G24: 0.82 | I24: 0.82
B26: Transformation Connection Service Rate | C26: kW | E26: 1.85 | G26: 1.98 | I26: 1.98
B29: Hydro One Sub-Transmission Rates | C29: Unit | E29: Effective January 1, 2013 | G29: Effective January 1, 2014 | I29: Effective January 1, 2015
B33: Rate Description | E33: Rate | G33: Rate | I33: Rate
B35: Network Service Rate | C35: kW | E35: 3.18 | G35: 3.23 | I35: 3.23
B37: Line Connection Service Rate | C37: kW | E37: 0.7 | G37: 0.65 | I37: 0.65
B39: Transformation Connection Service Rate | C39: kW | E39: 1.63 | G39: 1.62 | I39: 1.62
B41: Both Line and Transformation Connection Service Rate | C41: kW | E41: =E39+E37 -> 2.33 | G41: =G39+G37 -> 2.27 | I41: =I39+I37 -> 2.27
B44: If needed , add extra host here (I) | C44: Unit | E44: Effective January 1, 2013 | G44: Effective January 1, 2014 | I44: Effective January 1, 2015
B48: Rate Description | E48: Rate | G48: Rate | I48: Rate
B50: Network Service Rate | C50: kW
B52: Line Connection Service Rate | C52: kW
B54: Transformation Connection Service Rate | C54: kW
B56: Both Line and Transformation Connection Service Rate | C56: kW | E56: =E54+E52 -> 0 | G56: =G54+G52 -> 0 | I56: =I54+I52 -> 0
B59: If needed , add extra host here (II) | C59: Unit | E59: Effective January 1, 2013 | G59: Effective January 1, 2014 | I59: Effective January 1, 2015
B63: Rate Description | E63: Rate | G63: Rate | I63: Rate
B65: Network Service Rate | C65: kW
B67: Line Connection Service Rate | C67: kW
B69: Transformation Connection Service Rate | C69: kW
B71: Both Line and Transformation Connection Service Rate | C71: kW | E71: =E69+E67 -> 0 | G71: =G69+G67 -> 0 | I71: =I69+I67 -> 0
B75: Hydro One Sub-Transmission Rate Rider 9A | C75: Unit | E75: Effective January 1, 2013 | G75: Effective January 1, 2014 | I75: Effective January 1, 2015
B77: Rate Description | E77: Rate | G77: Rate | I77: Rate
B79: RSVA Transmission network – 4714 – which affects 1584 | C79: kW | E79: 0 | G79: 0.1465
B81: RSVA Transmission connection – 4716 – which affects 1586 | C81: kW | E81: 0 | G81: 0.0667
B83: RSVA LV – 4750 – which affects 1550 | C83: kW | E83: 0 | G83: 0.0475
B85: RARA 1 – 2252 – which affects 1590 | C85: kW | E85: 0 | G85: 0.0419
B87: RARA 1 – 2252 – which affects 1590 (2008) | C87: kW | E87: 0 | G87: -0.027
B89: RARA 1 – 2252 – which affects 1590 (2009) | C89: kW | E89: 0 | G89: -0.0006
B91: Hydro One Sub-Transmission Rate Rider 9A | C91: kW | E91: =SUM(E79:E89) -> 0 | G91: =SUM(G79:G89) -> 0.275 | I91: =SUM(I79:I89) -> 0
E94: Historical 2013 | G94: Current 2014 | I94: Forecast 2015
B95: Low Voltage Switchgear Credit (if applicable, enter as a negative value) | C95: $ | E95: -2857673 | G95: -2972506.51 | I95: -3067808.68

Sheet 16. RTSR - Historical Wholesale
B13: In the green shaded cells, enter billing detail for wholesale transmission for the same reporting period as the billing determinants on Sheet "14. RTSR RRR Data". For Hydro One Sub-transmission Rates, if you are charged a combined Line and Transformer connection rate, please ensure that both the line connection and transformer connection columns are completed.
B16: IESO | D16: Network | H16: Line Connection | L16: Transformation Connection | P16: Total Line
B17: Month | D17: Units Billed | E17: Rate | F17: Amount | H17: Units Billed | I17: Rate | J17: Amount | L17: Units Billed | M17: Rate | N17: Amount | P17: Amount
B19: January | D19: 1218199 | E19: 3.63 | F19: 4422062.37 | H19: 1177522 | I19: 0.75 | J19: 883141.5 | L19: 968649 | M19: 1.85 | N19: 1792000.65 | P19: =J19+N19 -> 2675142.15
B20: February | D20: 1135290 | E20: 3.63 | F20: 4121102.7 | H20: 1133245 | I20: 0.75 | J20: 849933.75 | L20: 908867 | M20: 1.85 | N20: 1681403.95 | P20: 2531337.7
B21: March | D21: 1042555 | E21: 3.63 | F21: 3784474.65 | H21: 1048715 | I21: 0.75 | J21: 786536.25 | L21: 808843 | M21: 1.85 | N21: 1496359.55 | P21: 2282895.8
B22: April | D22: 966942 | E22: 3.63 | F22: 3509999.46 | H22: 957709 | I22: 0.75 | J22: 718281.75 | L22: 764901 | M22: 1.85 | N22: 1415066.85 | P22: 2133348.6
B23: May | D23: 1201785 | E23: 3.63 | F23: 4362479.55 | H23: 1137282 | I23: 0.75 | J23: 852961.5 | L23: 903936 | M23: 1.85 | N23: 1672281.6 | P23: 2525243.1
B24: June | D24: 1149937 | E24: 3.63 | F24: 4174271.31 | H24: 1179995 | I24: 0.75 | J24: 884996.25 | L24: 932554 | M24: 1.85 | N24: 1725224.9 | P24: 2610221.15
B25: July | D25: 1248438 | E25: 3.63 | F25: 4543903.32 | H25: 1307047 | I25: 0.75 | J25: 981546.75 | L25: 1056856 | M25: 1.85 | N25: 1955183.6 | P25: 2936730.35
B26: August | D26: 1125855 | E26: 3.63 | F26: 4086853.65 | H26: 1154868 | I26: 0.75 | J26: 866151 | L26: 925649 | M26: 1.85 | N26: 1712450.65 | P26: 2578601.65
B27: September | D27: 1055493 | E27: 3.63 | F27: 3831439.59 | H27: 1053960 | I27: 0.75 | J27: 790470 | L27: 825534 | M27: 1.85 | N27: 1527237.9 | P27: 2317707.9
B28: October | D28: 935675 | E28: 3.63 | F28: 3396500.25 | H28: 920724 | I28: 0.75 | J28: 690543 | L28: 743976 | M28: 1.85 | N28: 1376355.6 | P28: 2066898.6
B29: November | D29: 1068027 | E29: 3.63 | F29: 3876938.01 | H29: 1030389 | I29: 0.75 | J29: 772791.75 | L29: 835885 | M29: 1.85 | N29: 1546387.25 | P29: 2319179
B30: December | D30: 1183613 | E30: 3.63 | F30: 4296515.19 | H30: 1128105 | I30: 0.75 | J30: 846078.75 | L30: 921513 | M30: 1.85 | N30: 1704799.05 | P30: 2550877.8
B32: Total | D32: =SUM(D19:D30) -> 13331809 | E32: =IF(D32<>0,F32/D32,0) -> 3.630905607 | F32: =SUM(F19:F30) -> 48406540.05 | H32: =SUM(H19:H30) -> 13229561 | I32: =IF(H32<>0,J32/H32,0) -> 0.7500953546 | J32: =SUM(J19:J30) -> 9923432.25 | L32: =SUM(L19:L30) -> 10597163 | M32: =IF(L32<>0,N32/L32,0) -> 1.85 | N32: =SUM(N19:N30) -> 19604751.55 | P32: =SUM(P19:P30) -> 29528183.8
B34: Hydro One | D34: Network | H34: Line Connection | L34: Transformation Connection | P34: Total Line
B36: Month | D36: Units Billed | E36: Rate | F36: Amount | H36: Units Billed | I36: Rate | J36: Amount | L36: Units Billed | M36: Rate | N36: Amount | P36: Amount
B38: January | D38: 92944 | E38: 3.18 | F38: 295561.92 | H38: 917 | I38: 0.7 | J38: 641.9 | L38: 92027 | M38: 1.66 | N38: 152957.31 | P38: =J38+N38 -> 153599.21
B39: February | D39: 82359 | E39: 3.18 | F39: 261901.62 | H39: 849 | I39: 0.7 | J39: 594.3 | L39: 82295 | M39: 1.66 | N39: 136827.45 | P39: 137421.75
B40: March | D40: 70488 | E40: 3.18 | F40: 224151.84 | H40: 720 | I40: 0.7 | J40: 504 | L40: 72104 | M40: 1.67 | N40: 120076.82 | P40: 120580.82
B41: April | D41: 66801 | E41: 3.18 | F41: 212425.91 | H41: 3854 | I41: 0.7 | J41: 2697.62 | L41: 66127 | M41: 1.63 | N41: 107786.75 | P41: 110484.37
B42: May | D42: 90015 | E42: 3.18 | F42: 286249 | H42: 3751 | I42: 0.7 | J42: 2625.78 | L42: 89343 | M42: 1.63 | N42: 145628.92 | P42: 148254.7
B43: June | D43: 90879 | E43: 3.18 | F43: 288993.63 | H43: 4039 | I43: 0.7 | J43: 2827.63 | L43: 90172 | M43: 1.63 | N43: 146981.15 | P43: 149808.78
B44: July | D44: 98267 | E44: 3.18 | F44: 312487.67 | H44: 4587 | I44: 0.7 | J44: 3210.61 | L44: 97535 | M44: 1.63 | N44: 158982.16 | P44: 162192.77
B45: August | D45: 79841 | E45: 3.18 | F45: 253895.28 | H45: 5000 | I45: 0.7 | J45: 3500.02 | L45: 79852 | M45: 1.63 | N45: 130158.52 | P45: 133658.54
B46: September | D46: 71837 | E46: 3.18 | F46: 228441.11 | H46: 4796 | I46: 0.7 | J46: 3356.86 | L46: 72748 | M46: 1.63 | N46: 118579.6 | P46: 121936.46
B47: October | D47: 75053 | E47: 3.18 | F47: 238669.3 | H47: 4963 | I47: 0.7 | J47: 3473.84 | L47: 76159 | M47: 1.63 | N47: 124138.53 | P47: 127612.37
B48: November | D48: 81617 | E48: 3.18 | F48: 259542.74 | H48: 4435 | I48: 0.7 | J48: 3104.41 | L48: 83522 | M48: 1.63 | N48: 136140.93 | P48: 139245.34
B49: December | D49: 94893 | E49: 3.18 | F49: 302735.07 | H49: 5068 | I49: 0.7 | J49: 3494.91 | L49: 97504 | M49: 1.63 | N49: 158730.32 | P49: 162225.23
B51: Total | D51: =SUM(D38:D49) -> 994994 | E51: =IF(D51<>0,F51/D51,0) -> 3.180979071 | F51: =SUM(F38:F49) -> 3165055.09 | H51: =SUM(H38:H49) -> 42979 | I51: =IF(H51<>0,J51/H51,0) -> 0.6987570674 | J51: =SUM(J38:J49) -> 30031.88 | L51: =SUM(L38:L49) -> 999388 | M51: =IF(L51<>0,N51/L51,0) -> 1.63799091 | N51: =SUM(N38:N49) -> 1636988.46 | P51: =SUM(P38:P49) -> 1667020.34
B53: Add Extra Host Here (I) | D53: Network | H53: Line Connection | L53: Transformation Connection | P53: Total Line
B54: (if needed)
B55: Month | D55: Units Billed | E55: Rate | F55: Amount | H55: Units Billed | I55: Rate | J55: Amount | L55: Units Billed | M55: Rate | N55: Amount | P55: Amount
B57: January | E57: =IF(D57<>0,F57/D57,0) -> 0 | I57: =IF(H57<>0,J57/H57,0) -> 0 | M57: =IF(L57<>0,N57/L57,0) -> 0 | P57: =J57+N57 -> 0
B58: February | E58: 0 | I58: 0 | M58: 0 | P58: 0
B59: March | E59: 0 | I59: 0 | M59: 0 | P59: 0
B60: April | E60: 0 | I60: 0 | M60: 0 | P60: 0
B61: May | E61: 0 | I61: 0 | M61: 0 | P61: 0
B62: June | E62: 0 | I62: 0 | M62: 0 | P62: 0
B63: July | E63: 0 | I63: 0 | M63: 0 | P63: 0
B64: August | E64: 0 | I64: 0 | M64: 0 | P64: 0
B65: September | E65: 0 | I65: 0 | M65: 0 | P65: 0
B66: October | E66: 0 | I66: 0 | M66: 0 | P66: 0
B67: November | E67: 0 | I67: 0 | M67: 0 | P67: 0
B68: December | E68: 0 | I68: 0 | M68: 0 | P68: 0
B70: Total | D70: =SUM(D57:D68) -> 0 | E70: =IF(D70<>0,F70/D70,0) -> 0 | F70: =SUM(F57:F68) -> 0 | H70: =SUM(H57:H68) -> 0 | I70: =IF(H70<>0,J70/H70,0) -> 0 | J70: =SUM(J57:J68) -> 0 | L70: =SUM(L57:L68) -> 0 | M70: =IF(L70<>0,N70/L70,0) -> 0 | N70: =SUM(N57:N68) -> 0 | P70: =SUM(P57:P68) -> 0
B72: Add Extra Host Here (II) | D72: Network | H72: Line Connection | L72: Transformation Connection | P72: Total Line
B73: (if needed)
B74: Month | D74: Units Billed | E74: Rate | F74: Amount | H74: Units Billed | I74: Rate | J74: Amount | L74: Units Billed | M74: Rate | N74: Amount | P74: Amount
B76: January | E76: =IF(D76<>0,F76/D76,0) -> 0 | I76: =IF(H76<>0,J76/H76,0) -> 0 | M76: =IF(L76<>0,N76/L76,0) -> 0 | P76: =J76+N76 -> 0
B77: February | E77: 0 | I77: 0 | M77: 0 | P77: 0
B78: March | E78: 0 | I78: 0 | M78: 0 | P78: 0
B79: April | E79: 0 | I79: 0 | M79: 0 | P79: 0
B80: May | E80: 0 | I80: 0 | M80: 0 | P80: 0
B81: June | E81: 0 | I81: 0 | M81: 0 | P81: 0
B82: July | E82: 0 | I82: 0 | M82: 0 | P82: 0
B83: August | E83: 0 | I83: 0 | M83: 0 | P83: 0
B84: September | E84: 0 | I84: 0 | M84: 0 | P84: 0
B85: October | E85: 0 | I85: 0 | M85: 0 | P85: 0
B86: November | E86: 0 | I86: 0 | M86: 0 | P86: 0
B87: December | E87: 0 | I87: 0 | M87: 0 | P87: 0
B89: Total | D89: =SUM(D76:D87) -> 0 | E89: =IF(D89<>0,F89/D89,0) -> 0 | F89: =SUM(F76:F87) -> 0 | H89: =SUM(H76:H87) -> 0 | I89: =IF(H89<>0,J89/H89,0) -> 0 | J89: =SUM(J76:J87) -> 0 | L89: =SUM(L76:L87) -> 0 | M89: =IF(L89<>0,N89/L89,0) -> 0 | N89: =SUM(N76:N87) -> 0 | P89: =SUM(P76:P87) -> 0
B91: Total | D91: Network | H91: Line Connection | L91: Transformation Connection | P91: Total Line
B93: Month | D93: Units Billed | E93: Rate | F93: Amount | H93: Units Billed | I93: Rate | J93: Amount | L93: Units Billed | M93: Rate | N93: Amount | P93: Amount
B95: January | D95: =D19+D38+D57+D76 -> 1311143 | E95: =IF(D95<>0,F95/D95,0) -> 3.598100505 | F95: =F19+F38+F57+F76 -> 4717624.29 | H95: =H19+H38+H57+H76 -> 1178439 | I95: =IF(H95<>0,J95/H95,0) -> 0.7499610926 | J95: =J19+J38+J57+J76 -> 883783.4 | L95: =L19+L38+L57+L76 -> 1060676 | M95: =IF(L95<>0,N95/L95,0) -> 1.833696586 | N95: =N19+N38+N57+N76 -> 1944957.96 | P95: =J95+N95 -> 2828741.36
B96: February | D96: =D20+D39+D58+D77 -> 1217649 | E96: 3.599563027 | F96: =F20+F39+F58+F77 -> 4383004.32 | H96: =H20+H39+H58+H77 -> 1134094 | I96: 0.7499625692 | J96: =J20+J39+J58+J77 -> 850528.05 | L96: =L20+L39+L58+L77 -> 991162 | M96: 1.834444218 | N96: =N20+N39+N58+N77 -> 1818231.4 | P96: 2668759.45
B97: March | D97: 1113043 | E97: 3.60150191 | F97: 4008626.49 | H97: 1049435 | I97: 0.7499656958 | J97: 787040.25 | L97: 880947 | M97: 1.834884925 | N97: 1616436.37 | P97: 2403476.62
B98: April | D98: 1033743 | E98: 3.600919542 | F98: 3722425.37 | H98: 961563 | I98: 0.7497994099 | J98: 720979.37 | L98: 831028 | M98: 1.832493731 | N98: 1522853.6 | P98: 2243832.97
B99: May | D99: 1291800 | E99: 3.598644179 | F99: 4648728.55 | H99: 1141033 | I99: 0.7498357015 | J99: 855587.28 | L99: 993279 | M99: 1.830211371 | N99: 1817910.52 | P99: 2673497.8
B100: June | D100: 1240816 | E100: 3.597040125 | F100: 4463264.94 | H100: 1184034 | I100: 0.7498297177 | J100: 887823.88 | L100: 1022726 | M100: 1.830603749 | N100: 1872206.05 | P100: 2760029.93
B101: July | D101: 1346705 | E101: 3.606128283 | F101: 4856390.99 | H101: 1311634 | I101: 0.7507866981 | J101: 984757.36 | L101: 1154391 | M101: 1.831412199 | N101: 2114165.76 | P101: 3098923.12
B102: August | D102: 1205696 | E102: 3.600201817 | F102: 4340748.93 | H102: 1159868 | I102: 0.7497844755 | J102: 869651.02 | L102: 1005501 | M102: 1.832528431 | N102: 1842609.17 | P102: 2712260.19
B103: September | D103: 1127330 | E103: 3.601324102 | F103: 4059880.7 | H103: 1058756 | I103: 0.7497731866 | J103: 793826.86 | L103: 898282 | M103: 1.832183546 | N103: 1645817.5 | P103: 2439644.36
B104: October | D104: 1010728 | E104: 3.596585382 | F104: 3635169.55 | H104: 925687 | I104: 0.749731648 | J104: 694016.84 | L104: 820135 | M104: 1.829569681 | N104: 1500494.13 | P104: 2194510.97
B105: November | D105: 1149644 | E105: 3.598053615 | F105: 4136480.75 | H105: 1034824 | I105: 0.7497856254 | J105: 775896.16 | L105: 919407 | M105: 1.830014542 | N105: 1682528.18 | P105: 2458424.34
B106: December | D106: 1278506 | E106: 3.597363063 | F106: 4599250.26 | H106: 1133173 | I106: 0.7497298824 | J106: 849573.66 | L106: 1019017 | M106: 1.828751993 | N106: 1863529.37 | P106: 2713103.03
B108: Total | D108: =SUM(D95:D106) -> 14326803 | E108: =IF(D108<>0,F108/D108,0) -> 3.599658287 | F108: =SUM(F95:F106) -> 51571595.14 | H108: =SUM(H95:H106) -> 13272540 | I108: =IF(H108<>0,J108/H108,0) -> 0.7499291115 | J108: =SUM(J95:J106) -> 9953464.13 | L108: =SUM(L95:L106) -> 11596551 | M108: =IF(L108<>0,N108/L108,0) -> 1.831729107 | N108: =SUM(N95:N106) -> 21241740.01 | P108: =SUM(P95:P106) -> 31195204.14
N110: Transformer Allowance Credit (if applicable) | P110: ='15. RTSR - UTRs & Sub-Tx'!E95 -> -2857673
N112: Total including deduction for Transformer Allowance Credit | P112: =P108+P110 -> 28337531.14

Sheet 17. RTSR - Current Wholesale
B13: The purpose of this sheet is to calculate the expected billing when current 2014 Uniform Transmission Rates are applied against historical 2013 transmission units.
B16: IESO | D16: Network | H16: Line Connection | L16: Transformation Connection | P16: Total Line
B18: Month | D18: Units Billed | E18: Rate | F18: Amount | H18: Units Billed | I18: Rate | J18: Amount | L18: Units Billed | M18: Rate | N18: Amount | P18: Amount
B20: January | D20: ='16. RTSR - Historical Wholesale'!D19 -> 1218199 | E20: ='15. RTSR - UTRs & Sub-Tx'!G22 -> 3.82 | F20: =D20*E20 -> 4653520.18 | H20: ='16. RTSR - Historical Wholesale'!H19 -> 1177522 | I20: ='15. RTSR - UTRs & Sub-Tx'!G24 -> 0.82 | J20: =H20*I20 -> 965568.04 | L20: ='16. RTSR - Historical Wholesale'!L19 -> 968649 | M20: ='15. RTSR - UTRs & Sub-Tx'!G26 -> 1.98 | N20: =L20*M20 -> 1917925.02 | P20: =J20+N20 -> 2883493.06
B21: February | D21: ='16. RTSR - Historical Wholesale'!D20 -> 1135290 | E21: =E20 -> 3.82 | F21: =D21*E21 -> 4336807.8 | H21: ='16. RTSR - Historical Wholesale'!H20 -> 1133245 | I21: =I20 -> 0.82 | J21: =H21*I21 -> 929260.9 | L21: ='16. RTSR - Historical Wholesale'!L20 -> 908867 | M21: =M20 -> 1.98 | N21: =L21*M21 -> 1799556.66 | P21: 2728817.56
B22: March | D22: ='16. RTSR - Historical Wholesale'!D21 -> 1042555 | E22: =E21 -> 3.82 | F22: 3982560.1 | H22: ='16. RTSR - Historical Wholesale'!H21 -> 1048715 | I22: =I21 -> 0.82 | J22: 859946.3 | L22: ='16. RTSR - Historical Wholesale'!L21 -> 808843 | M22: =M21 -> 1.98 | N22: 1601509.14 | P22: 2461455.44
B23: April | D23: ='16. RTSR - Historical Wholesale'!D22 -> 966942 | E23: 3.82 | F23: 3693718.44 | H23: ='16. RTSR - Historical Wholesale'!H22 -> 957709 | I23: 0.82 | J23: 785321.38 | L23: ='16. RTSR - Historical Wholesale'!L22 -> 764901 | M23: 1.98 | N23: 1514503.98 | P23: 2299825.36
B24: May | D24: ='16. RTSR - Historical Wholesale'!D23 -> 1201785 | E24: 3.82 | F24: 4590818.7 | H24: ='16. RTSR - Historical Wholesale'!H23 -> 1137282 | I24: 0.82 | J24: 932571.24 | L24: ='16. RTSR - Historical Wholesale'!L23 -> 903936 | M24: 1.98 | N24: 1789793.28 | P24: 2722364.52
B25: June | D25: ='16. RTSR - Historical Wholesale'!D24 -> 1149937 | E25: 3.82 | F25: 4392759.34 | H25: ='16. RTSR - Historical Wholesale'!H24 -> 1179995 | I25: 0.82 | J25: 967595.9 | L25: ='16. RTSR - Historical Wholesale'!L24 -> 932554 | M25: 1.98 | N25: 1846456.92 | P25: 2814052.82
B26: July | D26: ='16. RTSR - Historical Wholesale'!D25 -> 1248438 | E26: 3.82 | F26: 4769033.16 | H26: ='16. RTSR - Historical Wholesale'!H25 -> 1307047 | I26: 0.82 | J26: 1071778.54 | L26: ='16. RTSR - Historical Wholesale'!L25 -> 1056856 | M26: 1.98 | N26: 2092574.88 | P26: 3164353.42
B27: August | D27: ='16. RTSR - Historical Wholesale'!D26 -> 1125855 | E27: 3.82 | F27: 4300766.1 | H27: ='16. RTSR - Historical Wholesale'!H26 -> 1154868 | I27: 0.82 | J27: 946991.76 | L27: ='16. RTSR - Historical Wholesale'!L26 -> 925649 | M27: 1.98 | N27: 1832785.02 | P27: 2779776.78
B28: September | D28: ='16. RTSR - Historical Wholesale'!D27 -> 1055493 | E28: 3.82 | F28: 4031983.26 | H28: ='16. RTSR - Historical Wholesale'!H27 -> 1053960 | I28: 0.82 | J28: 864247.2 | L28: ='16. RTSR - Historical Wholesale'!L27 -> 825534 | M28: 1.98 | N28: 1634557.32 | P28: 2498804.52
B29: October | D29: ='16. RTSR - Historical Wholesale'!D28 -> 935675 | E29: 3.82 | F29: 3574278.5 | H29: ='16. RTSR - Historical Wholesale'!H28 -> 920724 | I29: 0.82 | J29: 754993.68 | L29: ='16. RTSR - Historical Wholesale'!L28 -> 743976 | M29: 1.98 | N29: 1473072.48 | P29: 2228066.16
B30: November | D30: ='16. RTSR - Historical Wholesale'!D29 -> 1068027 | E30: 3.82 | F30: 4079863.14 | H30: ='16. RTSR - Historical Wholesale'!H29 -> 1030389 | I30: 0.82 | J30: 844918.98 | L30: ='16. RTSR - Historical Wholesale'!L29 -> 835885 | M30: 1.98 | N30: 1655052.3 | P30: 2499971.28
B31: December | D31: ='16. RTSR - Historical Wholesale'!D30 -> 1183613 | E31: 3.82 | F31: 4521401.66 | H31: ='16. RTSR - Historical Wholesale'!H30 -> 1128105 | I31: 0.82 | J31: 925046.1 | L31: ='16. RTSR - Historical Wholesale'!L30 -> 921513 | M31: 1.98 | N31: 1824595.74 | P31: 2749641.84
B33: Total | D33: =SUM(D20:D31) -> 13331809 | E33: =IF(D33<>0,F33/D33,0) -> 3.82 | F33: =SUM(F20:F31) -> 50927510.38 | H33: =SUM(H20:H31) -> 13229561 | I33: =IF(H33<>0,J33/H33,0) -> 0.82 | J33: =SUM(J20:J31) -> 10848240.02 | L33: =SUM(L20:L31) -> 10597163 | M33: =IF(L33<>0,N33/L33,0) -> 1.98 | N33: =SUM(N20:N31) -> 20982382.74 | P33: =SUM(P20:P31) -> 31830622.76
B35: Hydro One | D35: Network | H35: Line Connection | L35: Transformation Connection | P35: Total Line
B37: Month | D37: Units Billed | E37: Rate | F37: Amount | H37: Units Billed | I37: Rate | J37: Amount | L37: Units Billed | M37: Rate | N37: Amount | P37: Amount
B39: January | D39: ='16. RTSR - Historical Wholesale'!D38 -> 92944 | E39: ='15. RTSR - UTRs & Sub-Tx'!G35+'15. RTSR - UTRs & Sub-Tx'!G79 -> 3.3765 | F39: =D39*E39 -> 313825.416 | H39: ='16. RTSR - Historical Wholesale'!H38 -> 917 | I39: ='15. RTSR - UTRs & Sub-Tx'!G37+'15. RTSR - UTRs & Sub-Tx'!G81 -> 0.7167 | J39: =H39*I39 -> 657.2139 | L39: ='16. RTSR - Historical Wholesale'!L38 -> 92027 | M39: ='15. RTSR - UTRs & Sub-Tx'!G39 -> 1.62 | N39: =L39*M39 -> 149083.74 | P39: =J39+N39 -> 149740.9539
B40: February | D40: ='16. RTSR - Historical Wholesale'!D39 -> 82359 | E40: =E39 -> 3.3765 | F40: =D40*E40 -> 278085.1635 | H40: ='16. RTSR - Historical Wholesale'!H39 -> 849 | I40: =I39 -> 0.7167 | J40: =H40*I40 -> 608.4783 | L40: ='16. RTSR - Historical Wholesale'!L39 -> 82295 | M40: =M39 -> 1.62 | N40: =L40*M40 -> 133317.9 | P40: 133926.3783
B41: March | D41: ='16. RTSR - Historical Wholesale'!D40 -> 70488 | E41: =E40 -> 3.3765 | F41: 238002.732 | H41: ='16. RTSR - Historical Wholesale'!H40 -> 720 | I41: =I40 -> 0.7167 | J41: 516.024 | L41: ='16. RTSR - Historical Wholesale'!L40 -> 72104 | M41: =M40 -> 1.62 | N41: 116808.48 | P41: 117324.504
B42: April | D42: ='16. RTSR - Historical Wholesale'!D41 -> 66801 | E42: 3.3765 | F42: 225553.5765 | H42: ='16. RTSR - Historical Wholesale'!H41 -> 3854 | I42: 0.7167 | J42: 2762.1618 | L42: ='16. RTSR - Historical Wholesale'!L41 -> 66127 | M42: =M41 -> 1.62 | N42: 107125.74 | P42: 109887.9018
B43: May | D43: ='16. RTSR - Historical Wholesale'!D42 -> 90015 | E43: 3.3765 | F43: 303935.6475 | H43: ='16. RTSR - Historical Wholesale'!H42 -> 3751 | I43: 0.7167 | J43: 2688.3417 | L43: ='16. RTSR - Historical Wholesale'!L42 -> 89343 | M43: 1.62 | N43: 144735.66 | P43: 147424.0017
B44: June | D44: ='16. RTSR - Historical Wholesale'!D43 -> 90879 | E44: 3.3765 | F44: 306852.9435 | H44: ='16. RTSR - Historical Wholesale'!H43 -> 4039 | I44: 0.7167 | J44: 2894.7513 | L44: ='16. RTSR - Historical Wholesale'!L43 -> 90172 | M44: 1.62 | N44: 146078.64 | P44: 148973.3913
B45: July | D45: ='16. RTSR - Historical Wholesale'!D44 -> 98267 | E45: 3.3765 | F45: 331798.5255 | H45: ='16. RTSR - Historical Wholesale'!H44 -> 4587 | I45: 0.7167 | J45: 3287.5029 | L45: ='16. RTSR - Historical Wholesale'!L44 -> 97535 | M45: 1.62 | N45: 158006.7 | P45: 161294.2029
B46: August | D46: ='16. RTSR - Historical Wholesale'!D45 -> 79841 | E46: 3.3765 | F46: 269583.1365 | H46: ='16. RTSR - Historical Wholesale'!H45 -> 5000 | I46: 0.7167 | J46: 3583.5 | L46: ='16. RTSR - Historical Wholesale'!L45 -> 79852 | M46: 1.62 | N46: 129360.24 | P46: 132943.74
B47: September | D47: ='16. RTSR - Historical Wholesale'!D46 -> 71837 | E47: 3.3765 | F47: 242557.6305 | H47: ='16. RTSR - Historical Wholesale'!H46 -> 4796 | I47: 0.7167 | J47: 3437.2932 | L47: ='16. RTSR - Historical Wholesale'!L46 -> 72748 | M47: 1.62 | N47: 117851.76 | P47: 121289.0532
B48: October | D48: ='16. RTSR - Historical Wholesale'!D47 -> 75053 | E48: 3.3765 | F48: 253416.4545 | H48: ='16. RTSR - Historical Wholesale'!H47 -> 4963 | I48: 0.7167 | J48: 3556.9821 | L48: ='16. RTSR - Historical Wholesale'!L47 -> 76159 | M48: 1.62 | N48: 123377.58 | P48: 126934.5621
B49: November | D49: ='16. RTSR - Historical Wholesale'!D48 -> 81617 | E49: 3.3765 | F49: 275579.8005 | H49: ='16. RTSR - Historical Wholesale'!H48 -> 4435 | I49: 0.7167 | J49: 3178.5645 | L49: ='16. RTSR - Historical Wholesale'!L48 -> 83522 | M49: 1.62 | N49: 135305.64 | P49: 138484.2045
B50: December | D50: ='16. RTSR - Historical Wholesale'!D49 -> 94893 | E50: 3.3765 | F50: 320406.2145 | H50: ='16. RTSR - Historical Wholesale'!H49 -> 5068 | I50: 0.7167 | J50: 3632.2356 | L50: ='16. RTSR - Historical Wholesale'!L49 -> 97504 | M50: 1.62 | N50: 157956.48 | P50: 161588.7156
B52: Total | D52: =SUM(D39:D50) -> 994994 | E52: =IF(D52<>0,F52/D52,0) -> 3.3765 | F52: =SUM(F39:F50) -> 3359597.241 | H52: =SUM(H39:H50) -> 42979 | I52: =IF(H52<>0,J52/H52,0) -> 0.7167 | J52: =SUM(J39:J50) -> 30803.0493 | L52: =SUM(L39:L50) -> 999388 | M52: =IF(L52<>0,N52/L52,0) -> 1.62 | N52: =SUM(N39:N50) -> 1619008.56 | P52: =SUM(P39:P50) -> 1649811.609
B54: ='16. RTSR - Historical Wholesale'!B53 -> Add Extra Host Here (I) | D54: Network | H54: Line Connection | L54: Transformation Connection | P54: Total Line
B56: Month | D56: Units Billed | E56: Rate | F56: Amount | H56: Units Billed | I56: Rate | J56: Amount | L56: Units Billed | M56: Rate | N56: Amount | P56: Amount
B58: January | D58: ='16. RTSR - Historical Wholesale'!D57 -> 0 | E58: ='15. RTSR - UTRs & Sub-Tx'!G50 -> 0 | F58: =D58*E58 -> 0 | H58: ='16. RTSR - Historical Wholesale'!H57 -> 0 | I58: ='15. RTSR - UTRs & Sub-Tx'!G52 -> 0 | J58: =H58*I58 -> 0 | L58: ='16. RTSR - Historical Wholesale'!L57 -> 0 | M58: ='15. RTSR - UTRs & Sub-Tx'!G54 -> 0 | N58: =L58*M58 -> 0 | P58: =J58+N58 -> 0
B59: February | D59: ='16. RTSR - Historical Wholesale'!D58 -> 0 | E59: =E58 -> 0 | F59: =D59*E59 -> 0 | H59: ='16. RTSR - Historical Wholesale'!H58 -> 0 | I59: =I58 -> 0 | J59: =H59*I59 -> 0 | L59: ='16. RTSR - Historical Wholesale'!L58 -> 0 | M59: =M58 -> 0 | N59: =L59*M59 -> 0 | P59: 0
B60: March | D60: ='16. RTSR - Historical Wholesale'!D59 -> 0 | E60: =E59 -> 0 | F60: 0 | H60: ='16. RTSR - Historical Wholesale'!H59 -> 0 | I60: =I59 -> 0 | J60: 0 | L60: ='16. RTSR - Historical Wholesale'!L59 -> 0 | M60: =M59 -> 0 | N60: 0 | P60: 0
B61: April | D61: ='16. RTSR - Historical Wholesale'!D60 -> 0 | E61: 0 | F61: 0 | H61: ='16. RTSR - Historical Wholesale'!H60 -> 0 | I61: 0 | J61: 0 | L61: ='16. RTSR - Historical Wholesale'!L60 -> 0 | M61: =M60 -> 0 | N61: 0 | P61: 0
B62: May | D62: ='16. RTSR - Historical Wholesale'!D61 -> 0 | E62: 0 | F62: 0 | H62: ='16. RTSR - Historical Wholesale'!H61 -> 0 | I62: 0 | J62: 0 | L62: ='16. RTSR - Historical Wholesale'!L61 -> 0 | M62: 0 | N62: 0 | P62: 0
B63: June | D63: ='16. RTSR - Historical Wholesale'!D62 -> 0 | E63: 0 | F63: 0 | H63: ='16. RTSR - Historical Wholesale'!H62 -> 0 | I63: 0 | J63: 0 | L63: ='16. RTSR - Historical Wholesale'!L62 -> 0 | M63: 0 | N63: 0 | P63: 0
B64: July | D64: ='16. RTSR - Historical Wholesale'!D63 -> 0 | E64: 0 | F64: 0 | H64: ='16. RTSR - Historical Wholesale'!H63 -> 0 | I64: 0 | J64: 0 | L64: ='16. RTSR - Historical Wholesale'!L63 -> 0 | M64: 0 | N64: 0 | P64: 0
B65: August | D65: ='16. RTSR - Historical Wholesale'!D64 -> 0 | E65: 0 | F65: 0 | H65: ='16. RTSR - Historical Wholesale'!H64 -> 0 | I65: 0 | J65: 0 | L65: ='16. RTSR - Historical Wholesale'!L64 -> 0 | M65: 0 | N65: 0 | P65: 0
B66: September | D66: ='16. RTSR - Historical Wholesale'!D65 -> 0 | E66: 0 | F66: 0 | H66: ='16. RTSR - Historical Wholesale'!H65 -> 0 | I66: 0 | J66: 0 | L66: ='16. RTSR - Historical Wholesale'!L65 -> 0 | M66: 0 | N66: 0 | P66: 0
B67: October | D67: ='16. RTSR - Historical Wholesale'!D66 -> 0 | E67: 0 | F67: 0 | H67: ='16. RTSR - Historical Wholesale'!H66 -> 0 | I67: 0 | J67: 0 | L67: ='16. RTSR - Historical Wholesale'!L66 -> 0 | M67: 0 | N67: 0 | P67: 0
B68: November | D68: ='16. RTSR - Historical Wholesale'!D67 -> 0 | E68: 0 | F68: 0 | H68: ='16. RTSR - Historical Wholesale'!H67 -> 0 | I68: 0 | J68: 0 | L68: ='16. RTSR - Historical Wholesale'!L67 -> 0 | M68: 0 | N68: 0 | P68: 0
B69: December | D69: ='16. RTSR - Historical Wholesale'!D68 -> 0 | E69: 0 | F69: 0 | H69: ='16. RTSR - Historical Wholesale'!H68 -> 0 | I69: 0 | J69: 0 | L69: ='16. RTSR - Historical Wholesale'!L68 -> 0 | M69: 0 | N69: 0 | P69: 0
B71: Total | D71: =SUM(D58:D69) -> 0 | E71: =IF(D71<>0,F71/D71,0) -> 0 | F71: =SUM(F58:F69) -> 0 | H71: =SUM(H58:H69) -> 0 | I71: =IF(H71<>0,J71/H71,0) -> 0 | J71: =SUM(J58:J69) -> 0 | L71: =SUM(L58:L69) -> 0 | M71: =IF(L71<>0,N71/L71,0) -> 0 | N71: =SUM(N58:N69) -> 0 | P71: =SUM(P58:P69) -> 0
B73: ='16. RTSR - Historical Wholesale'!B72 -> Add Extra Host Here (II) | D73: Network | H73: Line Connection | L73: Transformation Connection | P73: Total Line
B75: Month | D75: Units Billed | E75: Rate | F75: Amount | H75: Units Billed | I75: Rate | J75: Amount | L75: Units Billed | M75: Rate | N75: Amount | P75: Amount
B77: January | D77: ='16. RTSR - Historical Wholesale'!D76 -> 0 | E77: ='15. RTSR - UTRs & Sub-Tx'!G65 -> 0 | F77: =D77*E77 -> 0 | H77: ='16. RTSR - Historical Wholesale'!H76 -> 0 | I77: ='15. RTSR - UTRs & Sub-Tx'!G67 -> 0 | J77: =H77*I77 -> 0 | L77: ='16. RTSR - Historical Wholesale'!L76 -> 0 | M77: ='15. RTSR - UTRs & Sub-Tx'!G69 -> 0 | N77: =L77*M77 -> 0 | P77: =J77+N77 -> 0
B78: February | D78: ='16. RTSR - Historical Wholesale'!D77 -> 0 | E78: =E77 -> 0 | F78: =D78*E78 -> 0 | H78: ='16. RTSR - Historical Wholesale'!H77 -> 0 | I78: =I77 -> 0 | J78: =H78*I78 -> 0 | L78: ='16. RTSR - Historical Wholesale'!L77 -> 0 | M78: =M77 -> 0 | N78: =L78*M78 -> 0 | P78: 0
B79: March | D79: ='16. RTSR - Historical Wholesale'!D78 -> 0 | E79: =E78 -> 0 | F79: 0 | H79: ='16. RTSR - Historical Wholesale'!H78 -> 0 | I79: =I78 -> 0 | J79: 0 | L79: ='16. RTSR - Historical Wholesale'!L78 -> 0 | M79: =M78 -> 0 | N79: 0 | P79: 0
B80: April | D80: ='16. RTSR - Historical Wholesale'!D79 -> 0 | E80: 0 | F80: 0 | H80: ='16. RTSR - Historical Wholesale'!H79 -> 0 | I80: 0 | J80: 0 | L80: ='16. RTSR - Historical Wholesale'!L79 -> 0 | M80: =M79 -> 0 | N80: 0 | P80: 0
B81: May | D81: ='16. RTSR - Historical Wholesale'!D80 -> 0 | E81: 0 | F81: 0 | H81: ='16. RTSR - Historical Wholesale'!H80 -> 0 | I81: 0 | J81: 0 | L81: ='16. RTSR - Historical Wholesale'!L80 -> 0 | M81: 0 | N81: 0 | P81: 0
B82: June | D82: ='16. RTSR - Historical Wholesale'!D81 -> 0 | E82: 0 | F82: 0 | H82: ='16. RTSR - Historical Wholesale'!H81 -> 0 | I82: 0 | J82: 0 | L82: ='16. RTSR - Historical Wholesale'!L81 -> 0 | M82: 0 | N82: 0 | P82: 0
B83: July | D83: ='16. RTSR - Historical Wholesale'!D82 -> 0 | E83: 0 | F83: 0 | H83: ='16. RTSR - Historical Wholesale'!H82 -> 0 | I83: 0 | J83: 0 | L83: ='16. RTSR - Historical Wholesale'!L82 -> 0 | M83: 0 | N83: 0 | P83: 0
B84: August | D84: ='16. RTSR - Historical Wholesale'!D83 -> 0 | E84: 0 | F84: 0 | H84: ='16. RTSR - Historical Wholesale'!H83 -> 0 | I84: 0 | J84: 0 | L84: ='16. RTSR - Historical Wholesale'!L83 -> 0 | M84: 0 | N84: 0 | P84: 0
B85: September | D85: ='16. RTSR - Historical Wholesale'!D84 -> 0 | E85: 0 | F85: 0 | H85: ='16. RTSR - Historical Wholesale'!H84 -> 0 | I85: 0 | J85: 0 | L85: ='16. RTSR - Historical Wholesale'!L84 -> 0 | M85: 0 | N85: 0 | P85: 0
B86: October | D86: ='16. RTSR - Historical Wholesale'!D85 -> 0 | E86: 0 | F86: 0 | H86: ='16. RTSR - Historical Wholesale'!H85 -> 0 | I86: 0 | J86: 0 | L86: ='16. RTSR - Historical Wholesale'!L85 -> 0 | M86: 0 | N86: 0 | P86: 0
B87: November | D87: ='16. RTSR - Historical Wholesale'!D86 -> 0 | E87: 0 | F87: 0 | H87: ='16. RTSR - Historical Wholesale'!H86 -> 0 | I87: 0 | J87: 0 | L87: ='16. RTSR - Historical Wholesale'!L86 -> 0 | M87: 0 | N87: 0 | P87: 0
B88: December | D88: ='16. RTSR - Historical Wholesale'!D87 -> 0 | E88: 0 | F88: 0 | H88: ='16. RTSR - Historical Wholesale'!H87 -> 0 | I88: 0 | J88: 0 | L88: ='16. RTSR - Historical Wholesale'!L87 -> 0 | M88: 0 | N88: 0 | P88: 0
B90: Total | D90: =SUM(D77:D88) -> 0 | E90: =IF(D90<>0,F90/D90,0) -> 0 | F90: =SUM(F77:F88) -> 0 | H90: =SUM(H77:H88) -> 0 | I90: =IF(H90<>0,J90/H90,0) -> 0 | J90: =SUM(J77:J88) -> 0 | L90: =SUM(L77:L88) -> 0 | M90: =IF(L90<>0,N90/L90,0) -> 0 | N90: =SUM(N77:N88) -> 0 | P90: =SUM(P77:P88) -> 0
B92: Total | D92: Network | H92: Line Connection | L92: Transformation Connection | P92: Total Line
B94: Month | D94: Units Billed | E94: Rate | F94: Amount | H94: Units Billed | I94: Rate | J94: Amount | L94: Units Billed | M94: Rate | N94: Amount | P94: Amount
B96: January | D96: =D20+D39+D58+D77 -> 1311143 | E96: =IF(D96<>0,F96/D96,0) -> 3.788561275 | F96: =F20+F39+F58+F77 -> 4967345.596 | H96: =H20+H39+H58+H77 -> 1178439 | I96: =IF(H96<>0,J96/H96,0) -> 0.8199196173 | J96: =J20+J39+J58+J77 -> 966225.2539 | L96: =L20+L39+L58+L77 -> 1060676 | M96: =IF(L96<>0,N96/L96,0) -> 1.948765467 | N96: =N20+N39+N58+N77 -> 2067008.76 | P96: =J96+N96 -> 3033234.014
B97: February | D97: =D21+D40+D59+D78 -> 1217649 | E97: 3.790002672 | F97: =F21+F40+F59+F78 -> 4614892.963 | H97: =H21+H40+H59+H78 -> 1134094 | I97: 0.8199226681 | J97: =J21+J40+J59+J78 -> 929869.3783 | L97: =L21+L40+L59+L78 -> 991162 | M97: 1.950109629 | N97: =N21+N40+N59+N78 -> 1932874.56 | P97: 2862743.938
B98: March | D98: 1113043 | E98: 3.791913549 | F98: 4220562.832 | H98: 1049435 | I98: 0.8199291276 | J98: 860462.324 | L98: 880947 | M98: 1.950534618 | N98: 1718317.62 | P98: 2578779.944
B99: April | D99: 1033743 | E99: 3.791340804 | F99: 3919272.016 | H99: 961563 | I99: 0.8195859676 | J99: 788083.5418 | L99: 831028 | M99: 1.951353889 | N99: 1621629.72 | P99: 2409713.262
B100: May | D100: 1291800 | E100: 3.789096104 | F100: 4894754.348 | H100: 1141033 | I100: 0.8196604145 | J100: 935259.5817 | L100: 993279 | M100: 1.947618887 | N100: 1934528.94 | P100: 2869788.522
B101: June | D101: 1240816 | E101: 3.787517475 | F101: 4699612.283 | H101: 1184034 | I101: 0.819647621 | J101: 970490.6513 | L101: 1022726 | M101: 1.948259417 | N101: 1992535.56 | P101: 2963026.211
B102: July | D102: 1346705 | E102: 3.787638485 | F102: 5100831.685 | H102: 1311634 | I102: 0.8196387429 | J102: 1075066.043 | L102: 1154391 | M102: 1.949583443 | N102: 2250581.58 | P102: 3325647.623
B103: August | D103: 1205696 | E103: 3.7906315 | F103: 4570349.236 | H103: 1159868 | I103: 0.8195546907 | J103: 950575.26 | L103: 1005501 | M103: 1.951410551 | N103: 1962145.26 | P103: 2912720.52
B104: September | D104: 1127330 | E104: 3.79173879 | F104: 4274540.89 | H104: 1058756 | I104: 0.8195320671 | J104: 867684.4932 | L104: 898282 | M104: 1.950845147 | N104: 1752409.08 | P104: 2620093.573
B105: October | D105: 1010728 | E105: 3.787067297 | F105: 3827694.954 | H105: 925687 | I105: 0.819446165 | J105: 758550.6621 | L105: 820135 | M105: 1.946569845 | N105: 1596450.06 | P105: 2355000.722
B106: November | D106: 1149644 | E106: 3.78851448 | F106: 4355442.94 | H106: 1034824 | I106: 0.8195572817 | J106: 848097.5445 | L106: 919407 | M106: 1.947296399 | N106: 1790357.94 | P106: 2638455.484
B107: December | D107: 1278506 | E107: 3.787082637 | F107: 4841807.874 | H107: 1133173 | I107: 0.8195380013 | J107: 928678.3356 | L107: 1019017 | M107: 1.945553627 | N107: 1982552.22 | P107: 2911230.556
B109: Total | D109: =SUM(D96:D107) -> 14326803 | E109: =IF(D109<>0,F109/D109,0) -> 3.789199001 | F109: =SUM(F96:F107) -> 54287107.62 | H109: =SUM(H96:H107) -> 13272540 | I109: =IF(H109<>0,J109/H109,0) -> 0.819665495 | J109: =SUM(J96:J107) -> 10879043.07 | L109: =SUM(L96:L107) -> 11596551 | M109: =IF(L109<>0,N109/L109,0) -> 1.948975286 | N109: =SUM(N96:N107) -> 22601391.3 | P109: =SUM(P96:P107) -> 33480434.37
N111: Transformer Allowance Credit (if applicable) | P111: ='15. RTSR - UTRs & Sub-Tx'!G95 -> -2972506.51
N113: Total including deduction for Transformer Allowance Credit | P113: =P109+P111 -> 30507927.86

Sheet 18. RTSR - Forecast Wholesale
B13: The purpose of this sheet is to calculate the expected billing when forecasted 2015 Uniform Transmission Rates are applied against historical 2013 transmission units.
B16: IESO | D16: Network | H16: Line Connection | L16: Transformation Connection | P16: Total Line
B18: Month | D18: Units Billed | E18: Rate | F18: Amount | H18: Units Billed | I18: Rate | J18: Amount | L18: Units Billed | M18: Rate | N18: Amount | P18: Amount
B20: January | D20: ='16. RTSR - Historical Wholesale'!D19 -> 1218199 | E20: ='15. RTSR - UTRs & Sub-Tx'!I22 -> 3.82 | F20: =D20*E20 -> 4653520.18 | H20: ='16. RTSR - Historical Wholesale'!H19 -> 1177522 | I20: ='15. RTSR - UTRs & Sub-Tx'!I24 -> 0.82 | J20: =H20*I20 -> 965568.04 | L20: ='16. RTSR - Historical Wholesale'!L19 -> 968649 | M20: ='15. RTSR - UTRs & Sub-Tx'!I26 -> 1.98 | N20: =L20*M20 -> 1917925.02 | P20: =J20+N20 -> 2883493.06
B21: February | D21: ='16. RTSR - Historical Wholesale'!D20 -> 1135290 | E21: =E20 -> 3.82 | F21: 4336807.8 | H21: ='16. RTSR - Historical Wholesale'!H20 -> 1133245 | I21: =I20 -> 0.82 | J21: 929260.9 | L21: ='16. RTSR - Historical Wholesale'!L20 -> 908867 | M21: =M20 -> 1.98 | N21: 1799556.66 | P21: 2728817.56
B22: March | D22: ='16. RTSR - Historical Wholesale'!D21 -> 1042555 | E22: 3.82 | F22: 3982560.1 | H22: ='16. RTSR - Historical Wholesale'!H21 -> 1048715 | I22: 0.82 | J22: 859946.3 | L22: ='16. RTSR - Historical Wholesale'!L21 -> 808843 | M22: 1.98 | N22: 1601509.14 | P22: 2461455.44
B23: April | D23: ='16. RTSR - Historical Wholesale'!D22 -> 966942 | E23: 3.82 | F23: 3693718.44 | H23: ='16. RTSR - Historical Wholesale'!H22 -> 957709 | I23: 0.82 | J23: 785321.38 | L23: ='16. RTSR - Historical Wholesale'!L22 -> 764901 | M23: 1.98 | N23: 1514503.98 | P23: 2299825.36
B24: May | D24: ='16. RTSR - Historical Wholesale'!D23 -> 1201785 | E24: 3.82 | F24: 4590818.7 | H24: ='16. RTSR - Historical Wholesale'!H23 -> 1137282 | I24: 0.82 | J24: 932571.24 | L24: ='16. RTSR - Historical Wholesale'!L23 -> 903936 | M24: 1.98 | N24: 1789793.28 | P24: 2722364.52
B25: June | D25: ='16. RTSR - Historical Wholesale'!D24 -> 1149937 | E25: 3.82 | F25: 4392759.34 | H25: ='16. RTSR - Historical Wholesale'!H24 -> 1179995 | I25: 0.82 | J25: 967595.9 | L25: ='16. RTSR - Historical Wholesale'!L24 -> 932554 | M25: 1.98 | N25: 1846456.92 | P25: 2814052.82
B26: July | D26: ='16. RTSR - Historical Wholesale'!D25 -> 1248438 | E26: 3.82 | F26: 4769033.16 | H26: ='16. RTSR - Historical Wholesale'!H25 -> 1307047 | I26: 0.82 | J26: 1071778.54 | L26: ='16. RTSR - Historical Wholesale'!L25 -> 1056856 | M26: 1.98 | N26: 2092574.88 | P26: 3164353.42
B27: August | D27: ='16. RTSR - Historical Wholesale'!D26 -> 1125855 | E27: 3.82 | F27: 4300766.1 | H27: ='16. RTSR - Historical Wholesale'!H26 -> 1154868 | I27: 0.82 | J27: 946991.76 | L27: ='16. RTSR - Historical Wholesale'!L26 -> 925649 | M27: 1.98 | N27: 1832785.02 | P27: 2779776.78
B28: September | D28: ='16. RTSR - Historical Wholesale'!D27 -> 1055493 | E28: 3.82 | F28: 4031983.26 | H28: ='16. RTSR - Historical Wholesale'!H27 -> 1053960 | I28: 0.82 | J28: 864247.2 | L28: ='16. RTSR - Historical Wholesale'!L27 -> 825534 | M28: 1.98 | N28: 1634557.32 | P28: 2498804.52
B29: October | D29: ='16. RTSR - Historical Wholesale'!D28 -> 935675 | E29: 3.82 | F29: 3574278.5 | H29: ='16. RTSR - Historical Wholesale'!H28 -> 920724 | I29: 0.82 | J29: 754993.68 | L29: ='16. RTSR - Historical Wholesale'!L28 -> 743976 | M29: 1.98 | N29: 1473072.48 | P29: 2228066.16
B30: November | D30: ='16. RTSR - Historical Wholesale'!D29 -> 1068027 | E30: 3.82 | F30: 4079863.14 | H30: ='16. RTSR - Historical Wholesale'!H29 -> 1030389 | I30: 0.82 | J30: 844918.98 | L30: ='16. RTSR - Historical Wholesale'!L29 -> 835885 | M30: 1.98 | N30: 1655052.3 | P30: 2499971.28
B31: December | D31: ='16. RTSR - Historical Wholesale'!D30 -> 1183613 | E31: 3.82 | F31: 4521401.66 | H31: ='16. RTSR - Historical Wholesale'!H30 -> 1128105 | I31: 0.82 | J31: 925046.1 | L31: ='16. RTSR - Historical Wholesale'!L30 -> 921513 | M31: 1.98 | N31: 1824595.74 | P31: 2749641.84
B33: Total | D33: =SUM(D20:D31) -> 13331809 | E33: =IF(D33<>0,F33/D33,0) -> 3.82 | F33: =SUM(F20:F31) -> 50927510.38 | H33: =SUM(H20:H31) -> 13229561 | I33: =IF(H33<>0,J33/H33,0) -> 0.82 | J33: =SUM(J20:J31) -> 10848240.02 | L33: =SUM(L20:L31) -> 10597163 | M33: =IF(L33<>0,N33/L33,0) -> 1.98 | N33: =SUM(N20:N31) -> 20982382.74 | P33: =SUM(P20:P31) -> 31830622.76
B35: Hydro One | D35: Network | H35: Line Connection | L35: Transformation Connection | P35: Total Line
B37: Month | D37: Units Billed | E37: Rate | F37: Amount | H37: Units Billed | I37: Rate | J37: Amount | L37: Units Billed | M37: Rate | N37: Amount | P37: Amount
B39: January | D39: ='16. RTSR - Historical Wholesale'!D38 -> 92944 | E39: ='15. RTSR - UTRs & Sub-Tx'!I35+'15. RTSR - UTRs & Sub-Tx'!I79 -> 3.23 | F39: =D39*E39 -> 300209.12 | H39: ='16. RTSR - Historical Wholesale'!H38 -> 917 | I39: ='15. RTSR - UTRs & Sub-Tx'!I37+'15. RTSR - UTRs & Sub-Tx'!I81 -> 0.65 | J39: =H39*I39 -> 596.05 | L39: ='16. RTSR - Historical Wholesale'!L38 -> 92027 | M39: ='15. RTSR - UTRs & Sub-Tx'!I39 -> 1.62 | N39: =L39*M39 -> 149083.74 | P39: =J39+N39 -> 149679.79
B40: February | D40: ='16. RTSR - Historical Wholesale'!D39 -> 82359 | E40: =E39 -> 3.23 | F40: 266019.57 | H40: ='16. RTSR - Historical Wholesale'!H39 -> 849 | I40: =I39 -> 0.65 | J40: 551.85 | L40: ='16. RTSR - Historical Wholesale'!L39 -> 82295 | M40: =M39 -> 1.62 | N40: 133317.9 | P40: 133869.75
B41: March | D41: ='16. RTSR - Historical Wholesale'!D40 -> 70488 | E41: 3.23 | F41: 227676.24 | H41: ='16. RTSR - Historical Wholesale'!H40 -> 720 | I41: 0.65 | J41: 468 | L41: ='16. RTSR - Historical Wholesale'!L40 -> 72104 | M41: 1.62 | N41: 116808.48 | P41: 117276.48
B42: April | D42: ='16. RTSR - Historical Wholesale'!D41 -> 66801 | E42: 3.23 | F42: 215767.23 | H42: ='16. RTSR - Historical Wholesale'!H41 -> 3854 | I42: 0.65 | J42: 2505.1 | L42: ='16. RTSR - Historical Wholesale'!L41 -> 66127 | M42: 1.62 | N42: 107125.74 | P42: 109630.84
B43: May | D43: ='16. RTSR - Historical Wholesale'!D42 -> 90015 | E43: 3.23 | F43: 290748.45 | H43: ='16. RTSR - Historical Wholesale'!H42 -> 3751 | I43: 0.65 | J43: 2438.15 | L43: ='16. RTSR - Historical Wholesale'!L42 -> 89343 | M43: 1.62 | N43: 144735.66 | P43: 147173.81
B44: June | D44: ='16. RTSR - Historical Wholesale'!D43 -> 90879 | E44: 3.23 | F44: 293539.17 | H44: ='16. RTSR - Historical Wholesale'!H43 -> 4039 | I44: 0.65 | J44: 2625.35 | L44: ='16. RTSR - Historical Wholesale'!L43 -> 90172 | M44: 1.62 | N44: 146078.64 | P44: 148703.99
B45: July | D45: ='16. RTSR - Historical Wholesale'!D44 -> 98267 | E45: 3.23 | F45: 317402.41 | H45: ='16. RTSR - Historical Wholesale'!H44 -> 4587 | I45: 0.65 | J45: 2981.55 | L45: ='16. RTSR - Historical Wholesale'!L44 -> 97535 | M45: 1.62 | N45: 158006.7 | P45: 160988.25
B46: August | D46: ='16. RTSR - Historical Wholesale'!D45 -> 79841 | E46: 3.23 | F46: 257886.43 | H46: ='16. RTSR - Historical Wholesale'!H45 -> 5000 | I46: 0.65 | J46: 3250 | L46: ='16. RTSR - Historical Wholesale'!L45 -> 79852 | M46: 1.62 | N46: 129360.24 | P46: 132610.24
B47: September | D47: ='16. RTSR - Historical Wholesale'!D46 -> 71837 | E47: 3.23 | F47: 232033.51 | H47: ='16. RTSR - Historical Wholesale'!H46 -> 4796 | I47: 0.65 | J47: 3117.4 | L47: ='16. RTSR - Historical Wholesale'!L46 -> 72748 | M47: 1.62 | N47: 117851.76 | P47: 120969.16
B48: October | D48: ='16. RTSR - Historical Wholesale'!D47 -> 75053 | E48: 3.23 | F48: 242421.19 | H48: ='16. RTSR - Historical Wholesale'!H47 -> 4963 | I48: 0.65 | J48: 3225.95 | L48: ='16. RTSR - Historical Wholesale'!L47 -> 76159 | M48: 1.62 | N48: 123377.58 | P48: 126603.53
B49: November | D49: ='16. RTSR - Historical Wholesale'!D48 -> 81617 | E49: 3.23 | F49: 263622.91 | H49: ='16. RTSR - Historical Wholesale'!H48 -> 4435 | I49: 0.65 | J49: 2882.75 | L49: ='16. RTSR - Historical Wholesale'!L48 -> 83522 | M49: 1.62 | N49: 135305.64 | P49: 138188.39
B50: December | D50: ='16. RTSR - Historical Wholesale'!D49 -> 94893 | E50: 3.23 | F50: 306504.39 | H50: ='16. RTSR - Historical Wholesale'!H49 -> 5068 | I50: 0.65 | J50: 3294.2 | L50: ='16. RTSR - Historical Wholesale'!L49 -> 97504 | M50: 1.62 | N50: 157956.48 | P50: 161250.68
B52: Total | D52: =SUM(D39:D50) -> 994994 | E52: =IF(D52<>0,F52/D52,0) -> 3.23 | F52: =SUM(F39:F50) -> 3213830.62 | H52: =SUM(H39:H50) -> 42979 | I52: =IF(H52<>0,J52/H52,0) -> 0.65 | J52: =SUM(J39:J50) -> 27936.35 | L52: =SUM(L39:L50) -> 999388 | M52: =IF(L52<>0,N52/L52,0) -> 1.62 | N52: =SUM(N39:N50) -> 1619008.56 | P52: =SUM(P39:P50) -> 1646944.91
B54: ='16. RTSR - Historical Wholesale'!B53 -> Add Extra Host Here (I) | D54: Network | H54: Line Connection | L54: Transformation Connection | P54: Total Line
B56: Month | D56: Units Billed | E56: Rate | F56: Amount | H56: Units Billed | I56: Rate | J56: Amount | L56: Units Billed | M56: Rate | N56: Amount | P56: Amount
B58: January | D58: ='16. RTSR - Historical Wholesale'!D57 -> 0 | E58: ='15. RTSR - UTRs & Sub-Tx'!I50 -> 0 | F58: =D58*E58 -> 0 | H58: ='16. RTSR - Historical Wholesale'!H57 -> 0 | I58: ='15. RTSR - UTRs & Sub-Tx'!I52 -> 0 | J58: =H58*I58 -> 0 | L58: ='16. RTSR - Historical Wholesale'!L57 -> 0 | M58: ='15. RTSR - UTRs & Sub-Tx'!I54 -> 0 | N58: =L58*M58 -> 0 | P58: =J58+N58 -> 0
B59: February | D59: ='16. RTSR - Historical Wholesale'!D58 -> 0 | E59: =E58 -> 0 | F59: 0 | H59: ='16. RTSR - Historical Wholesale'!H58 -> 0 | I59: =I58 -> 0 | J59: 0 | L59: ='16. RTSR - Historical Wholesale'!L58 -> 0 | M59: =M58 -> 0 | N59: 0 | P59: 0
B60: March | D60: ='16. RTSR - Historical Wholesale'!D59 -> 0 | E60: 0 | F60: 0 | H60: ='16. RTSR - Historical Wholesale'!H59 -> 0 | I60: 0 | J60: 0 | L60: ='16. RTSR - Historical Wholesale'!L59 -> 0 | M60: 0 | N60: 0 | P60: 0
B61: April | D61: ='16. RTSR - Historical Wholesale'!D60 -> 0 | E61: 0 | F61: 0 | H61: ='16. RTSR - Historical Wholesale'!H60 -> 0 | I61: 0 | J61: 0 | L61: ='16. RTSR - Historical Wholesale'!L60 -> 0 | M61: 0 | N61: 0 | P61: 0
B62: May | D62: ='16. RTSR - Historical Wholesale'!D61 -> 0 | E62: 0 | F62: 0 | H62: ='16. RTSR - Historical Wholesale'!H61 -> 0 | I62: 0 | J62: 0 | L62: ='16. RTSR - Historical Wholesale'!L61 -> 0 | M62: 0 | N62: 0 | P62: 0
B63: June | D63: ='16. RTSR - Historical Wholesale'!D62 -> 0 | E63: 0 | F63: 0 | H63: ='16. RTSR - Historical Wholesale'!H62 -> 0 | I63: 0 | J63: 0 | L63: ='16. RTSR - Historical Wholesale'!L62 -> 0 | M63: 0 | N63: 0 | P63: 0
B64: July | D64: ='16. RTSR - Historical Wholesale'!D63 -> 0 | E64: 0 | F64: 0 | H64: ='16. RTSR - Historical Wholesale'!H63 -> 0 | I64: 0 | J64: 0 | L64: ='16. RTSR - Historical Wholesale'!L63 -> 0 | M64: 0 | N64: 0 | P64: 0
B65: August | D65: ='16. RTSR - Historical Wholesale'!D64 -> 0 | E65: 0 | F65: 0 | H65: ='16. RTSR - Historical Wholesale'!H64 -> 0 | I65: 0 | J65: 0 | L65: ='16. RTSR - Historical Wholesale'!L64 -> 0 | M65: 0 | N65: 0 | P65: 0
B66: September | D66: ='16. RTSR - Historical Wholesale'!D65 -> 0 | E66: 0 | F66: 0 | H66: ='16. RTSR - Historical Wholesale'!H65 -> 0 | I66: 0 | J66: 0 | L66: ='16. RTSR - Historical Wholesale'!L65 -> 0 | M66: 0 | N66: 0 | P66: 0
B67: October | D67: ='16. RTSR - Historical Wholesale'!D66 -> 0 | E67: 0 | F67: 0 | H67: ='16. RTSR - Historical Wholesale'!H66 -> 0 | I67: 0 | J67: 0 | L67: ='16. RTSR - Historical Wholesale'!L66 -> 0 | M67: 0 | N67: 0 | P67: 0
B68: November | D68: ='16. RTSR - Historical Wholesale'!D67 -> 0 | E68: 0 | F68: 0 | H68: ='16. RTSR - Historical Wholesale'!H67 -> 0 | I68: 0 | J68: 0 | L68: ='16. RTSR - Historical Wholesale'!L67 -> 0 | M68: 0 | N68: 0 | P68: 0
B69: December | D69: ='16. RTSR - Historical Wholesale'!D68 -> 0 | E69: 0 | F69: 0 | H69: ='16. RTSR - Historical Wholesale'!H68 -> 0 | I69: 0 | J69: 0 | L69: ='16. RTSR - Historical Wholesale'!L68 -> 0 | M69: 0 | N69: 0 | P69: 0
B71: Total | D71: =SUM(D58:D69) -> 0 | E71: =IF(D71<>0,F71/D71,0) -> 0 | F71: =SUM(F58:F69) -> 0 | H71: =SUM(H58:H69) -> 0 | I71: =IF(H71<>0,J71/H71,0) -> 0 | J71: =SUM(J58:J69) -> 0 | L71: =SUM(L58:L69) -> 0 | M71: =IF(L71<>0,N71/L71,0) -> 0 | N71: =SUM(N58:N69) -> 0 | P71: =SUM(P58:P69) -> 0
B73: ='16. RTSR - Historical Wholesale'!B72 -> Add Extra Host Here (II) | D73: Network | H73: Line Connection | L73: Transformation Connection | P73: Total Line
B75: Month | D75: Units Billed | E75: Rate | F75: Amount | H75: Units Billed | I75: Rate | J75: Amount | L75: Units Billed | M75: Rate | N75: Amount | P75: Amount
B77: January | D77: ='16. RTSR - Historical Wholesale'!D76 -> 0 | E77: ='15. RTSR - UTRs & Sub-Tx'!I65 -> 0 | F77: =D77*E77 -> 0 | H77: ='16. RTSR - Historical Wholesale'!H76 -> 0 | I77: ='15. RTSR - UTRs & Sub-Tx'!I67 -> 0 | J77: =H77*I77 -> 0 | L77: ='16. RTSR - Historical Wholesale'!L76 -> 0 | M77: ='15. RTSR - UTRs & Sub-Tx'!I69 -> 0 | N77: =L77*M77 -> 0 | P77: =J77+N77 -> 0
B78: February | D78: ='16. RTSR - Historical Wholesale'!D77 -> 0 | E78: =E77 -> 0 | F78: 0 | H78: ='16. RTSR - Historical Wholesale'!H77 -> 0 | I78: =I77 -> 0 | J78: 0 | L78: ='16. RTSR - Historical Wholesale'!L77 -> 0 | M78: =M77 -> 0 | N78: 0 | P78: 0
B79: March | D79: ='16. RTSR - Historical Wholesale'!D78 -> 0 | E79: 0 | F79: 0 | H79: ='16. RTSR - Historical Wholesale'!H78 -> 0 | I79: 0 | J79: 0 | L79: ='16. RTSR - Historical Wholesale'!L78 -> 0 | M79: 0 | N79: 0 | P79: 0
B80: April | D80: ='16. RTSR - Historical Wholesale'!D79 -> 0 | E80: 0 | F80: 0 | H80: ='16. RTSR - Historical Wholesale'!H79 -> 0 | I80: 0 | J80: 0 | L80: ='16. RTSR - Historical Wholesale'!L79 -> 0 | M80: 0 | N80: 0 | P80: 0
B81: May | D81: ='16. RTSR - Historical Wholesale'!D80 -> 0 | E81: 0 | F81: 0 | H81: ='16. RTSR - Historical Wholesale'!H80 -> 0 | I81: 0 | J81: 0 | L81: ='16. RTSR - Historical Wholesale'!L80 -> 0 | M81: 0 | N81: 0 | P81: 0
B82: June | D82: ='16. RTSR - Historical Wholesale'!D81 -> 0 | E82: 0 | F82: 0 | H82: ='16. RTSR - Historical Wholesale'!H81 -> 0 | I82: 0 | J82: 0 | L82: ='16. RTSR - Historical Wholesale'!L81 -> 0 | M82: 0 | N82: 0 | P82: 0
B83: July | D83: ='16. RTSR - Historical Wholesale'!D82 -> 0 | E83: 0 | F83: 0 | H83: ='16. RTSR - Historical Wholesale'!H82 -> 0 | I83: 0 | J83: 0 | L83: ='16. RTSR - Historical Wholesale'!L82 -> 0 | M83: 0 | N83: 0 | P83: 0
B84: August | D84: ='16. RTSR - Historical Wholesale'!D83 -> 0 | E84: 0 | F84: 0 | H84: ='16. RTSR - Historical Wholesale'!H83 -> 0 | I84: 0 | J84: 0 | L84: ='16. RTSR - Historical Wholesale'!L83 -> 0 | M84: 0 | N84: 0 | P84: 0
B85: September | D85: ='16. RTSR - Historical Wholesale'!D84 -> 0 | E85: 0 | F85: 0 | H85: ='16. RTSR - Historical Wholesale'!H84 -> 0 | I85: 0 | J85: 0 | L85: ='16. RTSR - Historical Wholesale'!L84 -> 0 | M85: 0 | N85: 0 | P85: 0
B86: October | D86: ='16. RTSR - Historical Wholesale'!D85 -> 0 | E86: 0 | F86: 0 | H86: ='16. RTSR - Historical Wholesale'!H85 -> 0 | I86: 0 | J86: 0 | L86: ='16. RTSR - Historical Wholesale'!L85 -> 0 | M86: 0 | N86: 0 | P86: 0
B87: November | D87: ='16. RTSR - Historical Wholesale'!D86 -> 0 | E87: 0 | F87: 0 | H87: ='16. RTSR - Historical Wholesale'!H86 -> 0 | I87: 0 | J87: 0 | L87: ='16. RTSR - Historical Wholesale'!L86 -> 0 | M87: 0 | N87: 0 | P87: 0
B88: December | D88: ='16. RTSR - Historical Wholesale'!D87 -> 0 | E88: 0 | F88: 0 | H88: ='16. RTSR - Historical Wholesale'!H87 -> 0 | I88: 0 | J88: 0 | L88: ='16. RTSR - Historical Wholesale'!L87 -> 0 | M88: 0 | N88: 0 | P88: 0
B90: Total | D90: =SUM(D77:D88) -> 0 | E90: =IF(D90<>0,F90/D90,0) -> 0 | F90: =SUM(F77:F88) -> 0 | H90: =SUM(H77:H88) -> 0 | I90: =IF(H90<>0,J90/H90,0) -> 0 | J90: =SUM(J77:J88) -> 0 | L90: =SUM(L77:L88) -> 0 | M90: =IF(L90<>0,N90/L90,0) -> 0 | N90: =SUM(N77:N88) -> 0 | P90: =SUM(P77:P88) -> 0
B92: Total | D92: Network | H92: Line Connection | L92: Transformation Connection | P92: Total Line
B94: Month | D94: Units Billed | E94: Rate | F94: Amount | H94: Units Billed | I94: Rate | J94: Amount | L94: Units Billed | M94: Rate | N94: Amount | P94: Amount
B96: January | D96: =D20+D39 -> 1311143 | E96: =IF(D96<>0,F96/D96,0) -> 3.778176217 | F96: =F20+F39 -> 4953729.3 | H96: =H20+H39 -> 1178439 | I96: =IF(H96<>0,J96/H96,0) -> 0.8198677148 | J96: =J20+J39 -> 966164.09 | L96: =L20+L39 -> 1060676 | M96: =IF(L96<>0,N96/L96,0) -> 1.948765467 | N96: =N20+N39 -> 2067008.76 | P96: =J96+N96 -> 3033172.85
B97: February | D97: 1217649 | E97: 3.780093746 | F97: 4602827.37 | H97: 1134094 | I97: 0.8198727354 | J97: 929812.75 | L97: 991162 | M97: 1.950109629 | N97: 1932874.56 | P97: 2862687.31
B98: March | D98: 1113043 | E98: 3.782635837 | F98: 4210236.34 | H98: 1049435 | I98: 0.8198833658 | J98: 860414.3 | L98: 880947 | M98: 1.950534618 | N98: 1718317.62 | P98: 2578731.92
B99: April | D99: 1033743 | E99: 3.781873899 | F99: 3909485.67 | H99: 961563 | I99: 0.8193186302 | J99: 787826.48 | L99: 831028 | M99: 1.951353889 | N99: 1621629.72 | P99: 2409456.2
B100: May | D100: 1291800 | E100: 3.778887715 | F100: 4881567.15 | H100: 1141033 | I100: 0.8194411468 | J100: 935009.39 | L100: 993279 | M100: 1.947618887 | N100: 1934528.94 | P100: 2869538.33
B101: June | D101: 1240816 | E101: 3.776787622 | F101: 4686298.51 | H101: 1184034 | I101: 0.8194200927 | J101: 970221.25 | L101: 1022726 | M101: 1.948259417 | N101: 1992535.56 | P101: 2962756.81
B102: July | D102: 1346705 | E102: 3.776948604 | F102: 5086435.57 | H102: 1311634 | I102: 0.819405482 | J102: 1074760.09 | L102: 1154391 | M102: 1.949583443 | N102: 2250581.58 | P102: 3325341.67
B103: August | D103: 1205696 | E103: 3.780930293 | F103: 4558652.53 | H103: 1159868 | I103: 0.819267158 | J103: 950241.76 | L103: 1005501 | M103: 1.951410551 | N103: 1962145.26 | P103: 2912387.02
B104: September | D104: 1127330 | E104: 3.782403351 | F104: 4264016.77 | H104: 1058756 | I104: 0.8192299264 | J104: 867364.6 | L104: 898282 | M104: 1.950845147 | N104: 1752409.08 | P104: 2619773.68
B105: October | D105: 1010728 | E105: 3.776188737 | F105: 3816699.69 | H105: 925687 | I105: 0.819088558 | J105: 758219.63 | L105: 820135 | M105: 1.946569845 | N105: 1596450.06 | P105: 2354669.69
B106: November | D106: 1149644 | E106: 3.778113964 | F106: 4343486.05 | H106: 1034824 | I106: 0.819271422 | J106: 847801.73 | L106: 919407 | M106: 1.947296399 | N106: 1790357.94 | P106: 2638159.67
B107: December | D107: 1278506 | E107: 3.776209146 | F107: 4827906.05 | H107: 1133173 | I107: 0.8192396924 | J107: 928340.3 | L107: 1019017 | M107: 1.945553627 | N107: 1982552.22 | P107: 2910892.52
B109: Total | D109: =SUM(D96:D107) -> 14326803 | E109: =IF(D109<>0,F109/D109,0) -> 3.779024602 | F109: =SUM(F96:F107) -> 54141341 | H109: =SUM(H96:H107) -> 13272540 | I109: =IF(H109<>0,J109/H109,0) -> 0.8194495078 | J109: =SUM(J96:J107) -> 10876176.37 | L109: =SUM(L96:L107) -> 11596551 | M109: =IF(L109<>0,N109/L109,0) -> 1.948975286 | N109: =SUM(N96:N107) -> 22601391.3 | P109: =SUM(P96:P107) -> 33477567.67
N111: Transformer Allowance Credit (if applicable) | P111: ='15. RTSR - UTRs & Sub-Tx'!I95 -> -3067808.68
N113: Total including deduction for Transformer Allowance Credit | P113: =P109+P111 -> 30409758.99

Sheet 19. RTSR Ntwrk to Curren WS
A13: The purpose of this sheet is to re-align the current RTS Network Rates to recover current wholesale network costs.
A16: Rate Class | B16: Rate Description | C16: Unit | E16: Current RTSR-Network | G16: Loss Adjusted Billed kWh | I16: Loss Adjusted Billed kW | K16: Billed Amount | M16: Billed Amount % | O16: Current Wholesale Billing | Q16: Proposed RTSR Network
A19: RESIDENTIAL | B19: Retail Transmission Rate - Network Service Rate | C19: $/kWh | E19: 0.008 | G19: 2337283833 | I19: 0 | K19: =IF(E19="", "", IF(C19="$/kWh", E19*G19, E19*I19)) -> 18698270.67 | M19: =IF(ISERROR(K19/SUM(K19:K100)),"",K19/SUM(K19:K100)) -> 0.3328173461 | O19: =IF(ISERROR('17. RTSR - Current Wholesale'!$F$109*M19), "", '17. RTSR - Current Wholesale'!$F$109*M19) -> 18067691.09 | Q19: =IF(C19="","",IF(C19="$/kWh",IF(G19<>0,O19/G19,),IF(I19<>0,O19/I19,0))) -> 0.007730208386
A20: GENERAL SERVICE LESS THAN 50 KW | B20: Retail Transmission Rate - Network Service Rate | C20: $/kWh | E20: 0.0072 | G20: 746272500.4 | I20: 0 | K20: 5373162.003 | M20: =IF(ISERROR(K20/SUM(K19:K100)),"",K20/SUM(K19:K100)) -> 0.09563887218 | O20: =IF(ISERROR('17. RTSR - Current Wholesale'!$F$109*M20), "", '17. RTSR - Current Wholesale'!$F$109*M20) -> 5191957.747 | Q20: 0.006957187548
A21: GENERAL SERVICE 50 TO 1,499 KW | B21: Retail Transmission Rate - Network Service Rate | C21: $/kW | E21: 3.0087 | G21: 0 | I21: 7292973 | K21: 21942367.87 | M21: =IF(ISERROR(K21/SUM(K19:K100)),"",K21/SUM(K19:K100)) -> 0.3905602166 | O21: =IF(ISERROR('17. RTSR - Current Wholesale'!$F$109*M21), "", '17. RTSR - Current Wholesale'!$F$109*M21) -> 21202384.51 | Q21: 2.907234746
A22: GENERAL SERVICE 1,500 TO 4,999 KW | B22: Retail Transmission Rate - Network Service Rate | C22: $/kW | E22: 3.124 | G22: 0 | I22: 1866871 | K22: 5832105.004 | M22: =IF(ISERROR(K22/SUM(K19:K100)),"",K22/SUM(K19:K100)) -> 0.1038077662 | O22: =IF(ISERROR('17. RTSR - Current Wholesale'!$F$109*M22), "", '17. RTSR - Current Wholesale'!$F$109*M22) -> 5635423.376 | Q22: 3.018646375
A23: LARGE USE | B23: Retail Transmission Rate - Network Service Rate | C23: $/kW | E23: 3.463 | G23: 0 | I23: 1135342 | K23: 3931689.346 | M23: =IF(ISERROR(K23/SUM(K19:K100)),"",K23/SUM(K19:K100)) -> 0.06998157409 | O23: =IF(ISERROR('17. RTSR - Current Wholesale'!$F$109*M23), "", '17. RTSR - Current Wholesale'!$F$109*M23) -> 3799097.244 | Q23: 3.346213955
A24: UNMETERED SCATTERED LOAD | B24: Retail Transmission Rate - Network Service Rate | C24: $/kWh | E24: 0.0072 | G24: 17665102.89 | I24: 0 | K24: 127188.7408 | M24: =IF(ISERROR(K24/SUM(K19:K100)),"",K24/SUM(K19:K100)) -> 0.002263878833 | O24: =IF(ISERROR('17. RTSR - Current Wholesale'!$F$109*M24), "", '17. RTSR - Current Wholesale'!$F$109*M24) -> 122899.4339 | Q24: 0.006957187548
A25: SENTINEL LIGHTING | B25: Retail Transmission Rate - Network Service Rate | C25: $/kW | E25: 2.221 | G25: 0 | I25: 139 | K25: 308.719 | M25: =IF(ISERROR(K25/SUM(K19:K100)),"",K25/SUM(K19:K100)) -> 5.495002192e-06 | O25: =IF(ISERROR('17. RTSR - Current Wholesale'!$F$109*M25), "", '17. RTSR - Current Wholesale'!$F$109*M25) -> 298.3077754 | Q25: 2.146099103
A26: STREET LIGHTING | B26: Retail Transmission Rate - Network Service Rate | C26: $/kW | E26: 2.2323 | G26: 0 | I26: 123947 | K26: 276686.8881 | M26: =IF(ISERROR(K26/SUM(K19:K100)),"",K26/SUM(K19:K100)) -> 0.004924850937 | O26: =IF(ISERROR('17. RTSR - Current Wholesale'!$F$109*M26), "", '17. RTSR - Current Wholesale'!$F$109*M26) -> 267355.9128 | Q26: 2.157018023

Sheet 20. RTSR Adj Conn to Current WS
A13: The purpose of this sheet is to re-align the current RTS Connection Rates to recover current wholesale connection costs.
A16: Rate Class | B16: Rate Description | C16: Unit | E16: Current RTSR-Connection | G16: Loss Adjusted Billed kWh | I16: Loss Adjusted Billed kW | K16: Billed Amount | M16: Billed Amount % | O16: Current Wholesale Billing | Q16: Proposed RTSR Connection
A19: RESIDENTIAL | B19: Retail Transmission Rate - Line and Transformation Connection Service Rate | C19: $/kWh | E19: 0.0042 | G19: 2337283833 | I19: 0 | K19: =IF(E19="", "", IF(C19="$/kWh", E19*G19, E19*I19)) -> 9816592.099 | M19: =IF(ISERROR(K19/SUM(K19:K100)),"",K19/SUM(K19:K100)) -> 0.3251102053 | O19: =IF(ISERROR('17. RTSR - Current Wholesale'!$P$113*M19), "", '17. RTSR - Current Wholesale'!$P$113*M19) -> 9918438.689 | Q19: =IF(C19="","",IF(C19="$/kWh",IF(G19<>0,O19/G19,),IF(I19<>0,O19/I19,0))) -> 0.004243574763
A20: GENERAL SERVICE LESS THAN 50 KW | B20: Retail Transmission Rate - Line and Transformation Connection Service Rate | C20: $/kWh | E20: 0.004 | G20: 746272500.4 | I20: 0 | K20: 2985090.001 | M20: =IF(ISERROR(K20/SUM(K19:K100)),"",K20/SUM(K19:K100)) -> 0.09886152071 | O20: =IF(ISERROR('17. RTSR - Current Wholesale'!$P$113*M20), "", '17. RTSR - Current Wholesale'!$P$113*M20) -> 3016060.142 | Q20: 0.004041499774
A21: GENERAL SERVICE 50 TO 1,499 KW | B21: Retail Transmission Rate - Line and Transformation Connection Service Rate | C21: $/kW | E21: 1.6116 | G21: 0 | I21: 7292973 | K21: 11753355.29 | M21: =IF(ISERROR(K21/SUM(K19:K100)),"",K21/SUM(K19:K100)) -> 0.3892527785 | O21: =IF(ISERROR('17. RTSR - Current Wholesale'!$P$113*M21), "", '17. RTSR - Current Wholesale'!$P$113*M21) -> 11875295.68 | Q21: 1.628320259
A22: GENERAL SERVICE 1,500 TO 4,999 KW | B22: Retail Transmission Rate - Line and Transformation Connection Service Rate | C22: $/kW | E22: 1.7223 | G22: 0 | I22: 1866871 | K22: 3215311.923 | M22: =IF(ISERROR(K22/SUM(K19:K100)),"",K22/SUM(K19:K100)) -> 0.1064861114 | O22: =IF(ISERROR('17. RTSR - Current Wholesale'!$P$113*M22), "", '17. RTSR - Current Wholesale'!$P$113*M22) -> 3248670.603 | Q22: 1.740168765
A23: LARGE USE | B23: Retail Transmission Rate - Line and Transformation Connection Service Rate | C23: $/kW | E23: 1.9395 | G23: 0 | I23: 1135342 | K23: 2201995.809 | M23: =IF(ISERROR(K23/SUM(K19:K100)),"",K23/SUM(K19:K100)) -> 0.07292666357 | O23: =IF(ISERROR('17. RTSR - Current Wholesale'!$P$113*M23), "", '17. RTSR - Current Wholesale'!$P$113*M23) -> 2224841.391 | Q23: 1.959622203
A24: UNMETERED SCATTERED LOAD | B24: Retail Transmission Rate - Line and Transformation Connection Service Rate | C24: $/kWh | E24: 0.004 | G24: 17665102.89 | I24: 0 | K24: 70660.41156 | M24: =IF(ISERROR(K24/SUM(K19:K100)),"",K24/SUM(K19:K100)) -> 0.00234016252 | O24: =IF(ISERROR('17. RTSR - Current Wholesale'!$P$113*M24), "", '17. RTSR - Current Wholesale'!$P$113*M24) -> 71393.50934 | Q24: 0.004041499774
A25: SENTINEL LIGHTING | B25: Retail Transmission Rate - Line and Transformation Connection Service Rate | C25: $/kW | E25: 1.1972 | G25: 0 | I25: 139 | K25: 166.4108 | M25: =IF(ISERROR(K25/SUM(K19:K100)),"",K25/SUM(K19:K100)) -> 5.511265906e-06 | O25: =IF(ISERROR('17. RTSR - Current Wholesale'!$P$113*M25), "", '17. RTSR - Current Wholesale'!$P$113*M25) -> 168.1373027 | Q25: 1.209620882
A26: STREET LIGHTING | B26: Retail Transmission Rate - Line and Transformation Connection Service Rate | C26: $/kW | E26: 1.2222 | G26: 0 | I26: 123947 | K26: 151488.0234 | M26: =IF(ISERROR(K26/SUM(K19:K100)),"",K26/SUM(K19:K100)) -> 0.005017046841 | O26: =IF(ISERROR('17. RTSR - Current Wholesale'!$P$113*M26), "", '17. RTSR - Current Wholesale'!$P$113*M26) -> 153059.7031 | Q26: 1.234880256

Sheet 21. RTSR Adj Ntwk to Forcast WS
A13: The purpose of this sheet is to update the re-align RTS Network Rates to recover forecast wholesale network costs.
A16: Rate Class | B16: Rate Description | C16: Unit | E16: Adjusted RTSR-Network | G16: Loss Adjusted Billed kWh | I16: Loss Adjusted Billed kW | K16: Billed Amount | M16: Billed Amount % | O16: Forecast Wholesale Billing | Q16: Proposed RTSR Network
A19: RESIDENTIAL | B19: Retail Transmission Rate - Network Service Rate | C19: $/kWh | E19: 0.007730208386 | G19: 2337283833 | I19: 0 | K19: =IF(E19="", "", IF(C19="$/kWh", E19*G19, E19*I19)) -> 18067691.09 | M19: =IF(ISERROR(K19/SUM(K19:K100)),"",K19/SUM(K19:K100)) -> 0.3328173461 | O19: =IF(ISERROR('18. RTSR - Forecast Wholesale'!$F$109*M19), "", '18. RTSR - Forecast Wholesale'!$F$109*M19) -> 18019177.43 | Q19: =IF(C19="","",IF(C19="$/kWh",IF(G19<>0,O19/G19,),IF(I19<>0,O19/I19,0))) -> 0.00770945196
A20: GENERAL SERVICE LESS THAN 50 KW | B20: Retail Transmission Rate - Network Service Rate | C20: $/kWh | E20: 0.006957187548 | G20: 746272500.4 | I20: 0 | K20: 5191957.747 | M20: =IF(ISERROR(K20/SUM(K19:K100)),"",K20/SUM(K19:K100)) -> 0.09563887218 | O20: =IF(ISERROR('18. RTSR - Forecast Wholesale'!$F$109*M20), "", '18. RTSR - Forecast Wholesale'!$F$109*M20) -> 5178016.792 | Q20: 0.006938506764
A21: GENERAL SERVICE 50 TO 1,499 KW | B21: Retail Transmission Rate - Network Service Rate | C21: $/kW | E21: 2.907234746 | G21: 0 | I21: 7292973 | K21: 21202384.51 | M21: =IF(ISERROR(K21/SUM(K19:K100)),"",K21/SUM(K19:K100)) -> 0.3905602166 | O21: =IF(ISERROR('18. RTSR - Forecast Wholesale'!$F$109*M21), "", '18. RTSR - Forecast Wholesale'!$F$109*M21) -> 21145453.87 | Q21: 2.899428514
A22: GENERAL SERVICE 1,500 TO 4,999 KW | B22: Retail Transmission Rate - Network Service Rate | C22: $/kW | E22: 3.018646375 | G22: 0 | I22: 1866871 | K22: 5635423.376 | M22: =IF(ISERROR(K22/SUM(K19:K100)),"",K22/SUM(K19:K100)) -> 0.1038077662 | O22: =IF(ISERROR('18. RTSR - Forecast Wholesale'!$F$109*M22), "", '18. RTSR - Forecast Wholesale'!$F$109*M22) -> 5620291.669 | Q22: 3.01054099
A23: LARGE USE | B23: Retail Transmission Rate - Network Service Rate | C23: $/kW | E23: 3.346213955 | G23: 0 | I23: 1135342 | K23: 3799097.244 | M23: =IF(ISERROR(K23/SUM(K19:K100)),"",K23/SUM(K19:K100)) -> 0.06998157409 | O23: =IF(ISERROR('18. RTSR - Forecast Wholesale'!$F$109*M23), "", '18. RTSR - Forecast Wholesale'!$F$109*M23) -> 3788896.267 | Q23: 3.337229017
A24: UNMETERED SCATTERED LOAD | B24: Retail Transmission Rate - Network Service Rate | C24: $/kWh | E24: 0.006957187548 | G24: 17665102.89 | I24: 0 | K24: 122899.4339 | M24: =IF(ISERROR(K24/SUM(K19:K100)),"",K24/SUM(K19:K100)) -> 0.002263878833 | O24: =IF(ISERROR('18. RTSR - Forecast Wholesale'!$F$109*M24), "", '18. RTSR - Forecast Wholesale'!$F$109*M24) -> 122569.4359 | Q24: 0.006938506764
A25: SENTINEL LIGHTING | B25: Retail Transmission Rate - Network Service Rate | C25: $/kW | E25: 2.146099103 | G25: 0 | I25: 139 | K25: 298.3077754 | M25: =IF(ISERROR(K25/SUM(K19:K100)),"",K25/SUM(K19:K100)) -> 5.495002192e-06 | O25: =IF(ISERROR('18. RTSR - Forecast Wholesale'!$F$109*M25), "", '18. RTSR - Forecast Wholesale'!$F$109*M25) -> 297.5067874 | Q25: 2.1403366
A26: STREET LIGHTING | B26: Retail Transmission Rate - Network Service Rate | C26: $/kW | E26: 2.157018023 | G26: 0 | I26: 123947 | K26: 267355.9128 | M26: =IF(ISERROR(K26/SUM(K19:K100)),"",K26/SUM(K19:K100)) -> 0.004924850937 | O26: =IF(ISERROR('18. RTSR - Forecast Wholesale'!$F$109*M26), "", '18. RTSR - Forecast Wholesale'!$F$109*M26) -> 266638.034 | Q26: 2.151226201

Sheet 22. RTSR Adj Conn. to Forcst WS
A13: The purpose of this sheet is to update the re-aligned RTS Connection Rates to recover forecast wholesale connection costs.
A16: Rate Class | B16: Rate Description | C16: Unit | E16: Adjusted RTSR-Connection | G16: Loss Adjusted Billed kWh | I16: Loss Adjusted Billed kW | K16: Billed Amount | M16: Billed Amount % | O16: Forecast Wholesale Billing | Q16: Proposed RTSR Connection
A19: RESIDENTIAL | B19: Retail Transmission Rate - Line and Transformation Connection Service Rate | C19: $/kWh | E19: 0.004243574763 | G19: 2337283833 | I19: 0 | K19: =IF(E19="", "", IF(C19="$/kWh", E19*G19, E19*I19)) -> 9918438.689 | M19: =IF(ISERROR(K19/SUM(K19:K100)),"",K19/SUM(K19:K100)) -> 0.3251102053 | O19: =IF(ISERROR('18. RTSR - Forecast Wholesale'!$P$113*M19), "", '18. RTSR - Forecast Wholesale'!$P$113*M19) -> 9886522.987 | Q19: =IF(C19="","",IF(C19="$/kWh",IF(G19<>0,O19/G19,),IF(I19<>0,O19/I19,0))) -> 0.004229919724
A20: GENERAL SERVICE LESS THAN 50 KW | B20: Retail Transmission Rate - Line and Transformation Connection Service Rate | C20: $/kWh | E20: 0.004041499774 | G20: 746272500.4 | I20: 0 | K20: 3016060.142 | M20: =IF(ISERROR(K20/SUM(K19:K100)),"",K20/SUM(K19:K100)) -> 0.09886152071 | O20: =IF(ISERROR('18. RTSR - Forecast Wholesale'!$P$113*M20), "", '18. RTSR - Forecast Wholesale'!$P$113*M20) -> 3006355.018 | Q20: 0.004028494976
A21: GENERAL SERVICE 50 TO 1,499 KW | B21: Retail Transmission Rate - Line and Transformation Connection Service Rate | C21: $/kW | E21: 1.628320259 | G21: 0 | I21: 7292973 | K21: 11875295.68 | M21: =IF(ISERROR(K21/SUM(K19:K100)),"",K21/SUM(K19:K100)) -> 0.3892527785 | O21: =IF(ISERROR('18. RTSR - Forecast Wholesale'!$P$113*M21), "", '18. RTSR - Forecast Wholesale'!$P$113*M21) -> 11837083.18 | Q21: 1.623080626
A22: GENERAL SERVICE 1,500 TO 4,999 KW | B22: Retail Transmission Rate - Line and Transformation Connection Service Rate | C22: $/kW | E22: 1.740168765 | G22: 0 | I22: 1866871 | K22: 3248670.603 | M22: =IF(ISERROR(K22/SUM(K19:K100)),"",K22/SUM(K19:K100)) -> 0.1064861114 | O22: =IF(ISERROR('18. RTSR - Forecast Wholesale'!$P$113*M22), "", '18. RTSR - Forecast Wholesale'!$P$113*M22) -> 3238216.982 | Q22: 1.734569224
A23: LARGE USE | B23: Retail Transmission Rate - Line and Transformation Connection Service Rate | C23: $/kW | E23: 1.959622203 | G23: 0 | I23: 1135342 | K23: 2224841.391 | M23: =IF(ISERROR(K23/SUM(K19:K100)),"",K23/SUM(K19:K100)) -> 0.07292666357 | O23: =IF(ISERROR('18. RTSR - Forecast Wholesale'!$P$113*M23), "", '18. RTSR - Forecast Wholesale'!$P$113*M23) -> 2217682.263 | Q23: 1.953316501
A24: UNMETERED SCATTERED LOAD | B24: Retail Transmission Rate - Line and Transformation Connection Service Rate | C24: $/kWh | E24: 0.004041499774 | G24: 17665102.89 | I24: 0 | K24: 71393.50934 | M24: =IF(ISERROR(K24/SUM(K19:K100)),"",K24/SUM(K19:K100)) -> 0.00234016252 | O24: =IF(ISERROR('18. RTSR - Forecast Wholesale'!$P$113*M24), "", '18. RTSR - Forecast Wholesale'!$P$113*M24) -> 71163.77823 | Q24: 0.004028494976
A25: SENTINEL LIGHTING | B25: Retail Transmission Rate - Line and Transformation Connection Service Rate | C25: $/kW | E25: 1.209620882 | G25: 0 | I25: 139 | K25: 168.1373027 | M25: =IF(ISERROR(K25/SUM(K19:K100)),"",K25/SUM(K19:K100)) -> 5.511265906e-06 | O25: =IF(ISERROR('18. RTSR - Forecast Wholesale'!$P$113*M25), "", '18. RTSR - Forecast Wholesale'!$P$113*M25) -> 167.5962679 | Q25: 1.205728546
A26: STREET LIGHTING | B26: Retail Transmission Rate - Line and Transformation Connection Service Rate | C26: $/kW | E26: 1.234880256 | G26: 0 | I26: 123947 | K26: 153059.7031 | M26: =IF(ISERROR(K26/SUM(K19:K100)),"",K26/SUM(K19:K100)) -> 0.005017046841 | O26: =IF(ISERROR('18. RTSR - Forecast Wholesale'!$P$113*M26), "", '18. RTSR - Forecast Wholesale'!$P$113*M26) -> 152567.1853 | Q26: 1.23090664

Sheet 23. RTSR Final 2015 RTS Rates
A13: This sheet lists proposed RTSRs for all classes. No input required.
A16: Rate Class | B16: Rate Description | C16: Unit | E16: Proposed Retail Transmission Rate
A19: RESIDENTIAL | B19: Retail Transmission Rate - Network Service Rate | C19: $/kWh | E19: 0.007730208386
A20: RESIDENTIAL | B20: Retail Transmission Rate - Line and Transformation Connection Service Rate | C20: $/kWh | E20: 0.004230318475
A21: GENERAL SERVICE LESS THAN 50 KW | B21: Retail Transmission Rate - Network Service Rate | C21: $/kWh | E21: 0.006957187548
A22: GENERAL SERVICE LESS THAN 50 KW | B22: Retail Transmission Rate - Line and Transformation Connection Service Rate | C22: $/kWh | E22: 0.004028874738
A23: GENERAL SERVICE 50 TO 1,499 KW | B23: Retail Transmission Rate - Network Service Rate | C23: $/kW | E23: 2.907234746
A24: GENERAL SERVICE 50 TO 1,499 KW | B24: Retail Transmission Rate - Line and Transformation Connection Service Rate | C24: $/kW | E24: 1.623233632
A25: GENERAL SERVICE 1,500 TO 4,999 KW | B25: Retail Transmission Rate - Network Service Rate | C25: $/kW | E25: 3.018646375
A26: GENERAL SERVICE 1,500 TO 4,999 KW | B26: Retail Transmission Rate - Line and Transformation Connection Service Rate | C26: $/kW | E26: 1.73473274
A27: LARGE USE | B27: Retail Transmission Rate - Network Service Rate | C27: $/kW | E27: 3.346213955
A28: LARGE USE | B28: Retail Transmission Rate - Line and Transformation Connection Service Rate | C28: $/kW | E28: 1.953500639
A29: UNMETERED SCATTERED LOAD | B29: Retail Transmission Rate - Network Service Rate | C29: $/kWh | E29: 0.006957187548
A30: UNMETERED SCATTERED LOAD | B30: Retail Transmission Rate - Line and Transformation Connection Service Rate | C30: $/kWh | E30: 0.004028874738
A31: SENTINEL LIGHTING | B31: Retail Transmission Rate - Network Service Rate | C31: $/kW | E31: 2.146099103
A32: SENTINEL LIGHTING | B32: Retail Transmission Rate - Line and Transformation Connection Service Rate | C32: $/kW | E32: 1.205842209
A33: STREET LIGHTING | B33: Retail Transmission Rate - Network Service Rate | C33: $/kW | E33: 2.157018023
A34: STREET LIGHTING | B34: Retail Transmission Rate - Line and Transformation Connection Service Rate | C34: $/kW | E34: 1.231022676

Sheet 24. Rev2Cost_GDPIPI
Y1: FALSE | Z1: 0 | AC1: NO
Y2: TRUE
A12: If applicable, please enter any adjustments related to the revenue to cost ratio model into columns C and E. The Price Escalator and Stretch Factor have been set at the 2014 values and will be updated by Board staff at a later date.
A15: Price Escalator | B15: 0.016 | C15: Choose Stretch Factor Group | E15: III
A16: Productivity Factor | B16: 0 | C16: Associated Stretch Factor Value | E16: =IF(E15="I", 0%, IF(E15="II", 0.15%, IF(E15="III", 0.3%, IF(E15="IV", 0.45%, 0.6%)))) -> 0.003
A17: Price Cap Index | B17: =B15-B16-E16 -> 0.013
B19: Current MFC | C19: MFC Adjustment from R/C Model | D19: Current Volumetric Charge | E19: DVR Adjustment from R/C Model | F19: Price Cap Index to be Applied to MFC and DVR | G19: Proposed MFC | H19: Proposed Volumetric Charge
A20: Rate Class
A22: RESIDENTIAL | B22: 9.55 | D22: 0.0231 | F22: =$B$17 -> 0.013 | G22: =ROUND(SUM(B22,C22)*(1+F22),2) -> 9.67 | H22: =ROUND(SUM(D22,E22)*(1+F22),4) -> 0.0234
A23: GENERAL SERVICE LESS THAN 50 KW | B23: 16.51 | D23: 0.0207 | F23: 0.013 | G23: 16.72 | H23: 0.021
A24: GENERAL SERVICE 50 TO 1,499 KW | B24: 257.47 | D24: 3.5233 | F24: 0.013 | G24: 260.82 | H24: 3.5691
A25: GENERAL SERVICE 1,500 TO 4,999 KW | B25: 4140.11 | D25: 3.4439 | F25: 0.013 | G25: 4193.93 | H25: 3.4887
A26: LARGE USE | B26: 15035.85 | D26: 3.2704 | F26: 0.013 | G26: 15231.32 | H26: 3.3129
A27: UNMETERED SCATTERED LOAD | B27: 4.37 | D27: 0.0216 | F27: 0.013 | G27: 4.43 | H27: 0.0219
A28: STANDBY POWER GENERAL SERVICE 50 TO 1,499 KW | B28: 120.84 | D28: 1.6127 | F28: 0.013 | G28: 122.41 | H28: 1.6337
A29: STANDBY POWER GENERAL SERVICE 1,500 TO 4,999 KW | B29: 120.84 | D29: 1.4793 | F29: 0.013 | G29: 122.41 | H29: 1.4985
A30: STANDBY POWER GENERAL SERVICE LARGE USE | B30: 120.84 | D30: 1.6416 | F30: 0.013 | G30: 122.41 | H30: 1.6629
A31: SENTINEL LIGHTING | B31: 2.59 | D31: 9.9073 | F31: 0.013 | G31: 2.62 | H31: 10.0361
A32: STREET LIGHTING | B32: 0.56 | D32: 3.9484 | F32: 0.013 | G32: 0.57 | H32: 3.9997
A33: microFIT | B33: 5.4 | G33: 5.4

Sheet 24. hidden (hidden)
A1: Rate Class | B1: MFC Adjustment from R/C Model | C1: DVR Adjustment from R/C Model
A2: RESIDENTIAL | B2: 9.55 | D2: 0.0231
A3: GENERAL SERVICE LESS THAN 50 KW | B3: 16.51 | D3: 0.0207
A4: GENERAL SERVICE 50 TO 1,499 KW | B4: 257.47 | D4: 3.5233
A5: GENERAL SERVICE 1,500 TO 4,999 KW | B5: 4140.11 | D5: 3.4439
A6: LARGE USE | B6: 15035.85 | D6: 3.2704
A7: UNMETERED SCATTERED LOAD | B7: 4.37 | D7: 0.0216
A8: STANDBY POWER GENERAL SERVICE 50 TO 1,499 KW | B8: 120.84 | D8: 1.6127
A9: STANDBY POWER GENERAL SERVICE 1,500 TO 4,999 KW | B9: 120.84 | D9: 1.4793
A10: STANDBY POWER GENERAL SERVICE LARGE USE | B10: 120.84 | D10: 1.6416
A11: SENTINEL LIGHTING | B11: 2.59 | D11: 9.9073
A12: STREET LIGHTING | B12: 0.56 | D12: 3.9484
A13: microFIT | B13: 5.4

Sheet 25. Other Charges & LF
A11: Please enter the following charges as found on your most recent Board-Approved Tariff Schedule. The standard Allowance rates have been included as default entries. If you have different rates, please make the appropriate corrections in the applicable cells below. As well, please enter the current Specific Service Charges below. The standard Retail Service Charges have been entered below. If you have different rates, please make the appropriate corrections in columns A, C or D as applicable (cells are unlocked).
C13: UNIT | D13: RATE
A15: ALLOWANCES
A17: Transformer Allowance for Ownership - per kW of billing demand/month | C17: $/kW | D17: -0.45
A20: Primary Metering Allowance for transformer losses – applied to measured demand and energy | C20: % | D20: -1
A22: SPECIFIC SERVICE CHARGES
A24: APPLICATION
A26: The application of these rates and charges shall be in accordance with the Licence of the Distributor and any Code or Order of the Board, and amendments thereto as approved by the Board, which may be applicable to the administration of this schedule.
A27: No charges to meet the costs of any work or service done or furnished for the purpose of the distribution of electricity shall be made except as permitted by this schedule, unless required by the Distributor’s Licence or a Code or Order of the Board, and amendments thereto as approved by the Board, or as specified herein.
A28: It should be noted that this schedule does not list any charges, assessments or credits that are required by law to be invoiced by a distributor and that are not subject to Board approval, such as the Debt Retirement Charge, the Global Adjustment, the Ontario Clean Energy Benefit and the HST.
A30: Customer Administration
A31: Arrears certificate | C31: $ | D31: 15
A32: Duplicate Invoices for previous billing | C32: $ | D32: 15
A33: Request for other billing information | C33: $ | D33: 15
A34: Credit Reference/credit check (plus credit agency costs) | C34: $ | D34: 15
A35: Unprocessed Payment Charge (plus bank charges) | C35: $ | D35: 15
A36: Account set up charge/change of occupancy charge (plus credit agency costs if applicable) | C36: $ | D36: 30
A67: Non-Payment of Account
A68: Late Payment – per month | C68: % | D68: 1.5
A69: Late Payment – per annum | C69: % | D69: 19.56
A70: Collection of account charge – no disconnection | C70: $ | D70: 30
A71: Disconnect/Reconnect at meter – during regular hours | C71: $ | D71: 65
A72: Disconnect/Reconnect at meter – after regular hours | C72: $ | D72: 185
A73: Disconnect/Reconnect at pole – during regular hours | C73: $ | D73: 185
A74: Disconnect/Reconnect at pole – after regular hours | C74: $ | D74: 415
A75: Temporary Service – Install & remove – overhead – no transformer | C75: $ | D75: 500
A76: Specific Charge for Access to the Power Poles - $/pole/year | C76: $ | D76: 22.35
A88: Dry core transformer distribution charge | C88: As per Attached Table
A116: RETAIL SERVICE CHARGES (if applicable)
A118: The application of these rates and charges shall be in accordance with the Licence of the Distributor and any Code or Order of the Board, and amendments thereto as approved by the Board, which may be applicable to the administration of this schedule.
A120: No rates and charges for the distribution of electricity and charges to meet the costs of any work or service done or furnished for the purpose of the distribution of electricity shall be made except as permitted by this schedule, unless required by the Distributor’s Licence or a Code or Order of the Board, and amendments thereto as approved by the Board, or as specified herein.
A122: Unless specifically noted, this schedule does not contain any charges for the electricity commodity, be it under the Regulated Price Plan, a contract with a retailer or the wholesale market price, as applicable.
A124: It should be noted that this schedule does not list any charges, assessments, or credits that are required by law to be invoiced by a distributor and that are not subject to Board approval, such as the Debt Retirement Charge, the Global Adjustment, the Ontario Clean Energy Benefit and the HST.
A126: Retail Service Charges refer to services provided by a distributor to retailers or customers related to the supply of competitive electricity.
A128: One-time charge, per retailer, to establish the service agreement between the distributor and the retailer | C128: $ | D128: 100
A129: Monthly Fixed Charge, per retailer | C129: $ | D129: 20
A130: Monthly Variable Charge, per customer, per retailer | C130: $/cust. | D130: 0.5
A131: Distributor-consolidated billing monthly charge, per customer, per retailer | C131: $/cust. | D131: 0.3
A132: Retailer-consolidated billing monthly credit, per customer, per retailer | C132: $/cust. | D132: -0.3
A133: Service Transaction Requests (STR)
A134: Request fee, per request, applied to the requesting party | C134: $ | D134: 0.25
A135: Processing fee, per request, applied to the requesting party | C135: $ | D135: 0.5
A136: Request for customer information as outlined in Section 10.6.3 and Chapter 11 of the Retail
A137: Settlement Code directly to retailers and customers, if not delivered electronically through the
A138: Electronic Business Transaction (EBT) system, applied to the requesting party
A139: Up to twice a year | C139: $ | D139: no charge
A140: More than twice a year, per request (plus incremental delivery costs) | C140: $ | D140: 2
A143: LOSS FACTORS
A145: If the distributor is not capable of prorating changed loss factors jointly with distribution rates, the revised loss factors will be implemented upon the first subsequent billing for each billing cycle.
A148: Total Loss Factor – Secondary Metered Customer < 5,000 kW | D148: 1.0358 | H148: TLF_Secondary_LT_5000kW
A149: Total Loss Factor – Secondary Metered Customer > 5,000 kW | D149: 1.017 | H149: TLF_Primary_LT_5000kW
A150: Total Loss Factor – Primary Metered Customer < 5,000 kW | D150: 1.0254
A151: Total Loss Factor – Primary Metered Customer > 5,000 kW | D151: 1.0069

Sheet 26. Proposed Rates
Z1: 3
L5: =ROUND(LEN(B5), -2) / 100 -> 0
L9: =ROUND(LEN(B9), -2) / 100 -> 0
B12: In the Green Cells below, enter any proposed rate riders that are not already included in this model (e.g: ICM rate riders). In column B, the rate rider descriptions must begin with "Rate Rider for". In column C, choose the associated unit from the drop-down menu. In column D, enter the rate. All rate riders with a "$" unit will be rounded to 2 decimal places and all others will be rounded to 4 decimal places.
A20: RESIDENTIAL | B20: RESIDENTIAL SERVICE CLASSIFICATION | C20: Unit | D20: Rate
A21: RESIDENTIAL
A22: RESIDENTIAL
A23: RESIDENTIAL
A24: RESIDENTIAL
A25: RESIDENTIAL
A26: RESIDENTIAL
A27: RESIDENTIAL
A28: RESIDENTIAL
A29: RESIDENTIAL
A30: RESIDENTIAL
A32: GENERAL SERVICE LESS THAN 50 KW | B32: GENERAL SERVICE LESS THAN 50 KW SERVICE CLASSIFICATION | C32: Unit | D32: Rate
A33: GENERAL SERVICE LESS THAN 50 KW
A34: GENERAL SERVICE LESS THAN 50 KW
A35: GENERAL SERVICE LESS THAN 50 KW
A36: GENERAL SERVICE LESS THAN 50 KW
A37: GENERAL SERVICE LESS THAN 50 KW
A38: GENERAL SERVICE LESS THAN 50 KW
A39: GENERAL SERVICE LESS THAN 50 KW
A40: GENERAL SERVICE LESS THAN 50 KW
A41: GENERAL SERVICE LESS THAN 50 KW
A42: GENERAL SERVICE LESS THAN 50 KW
A44: GENERAL SERVICE 50 TO 1,499 KW | B44: GENERAL SERVICE 50 TO 1,499 KW SERVICE CLASSIFICATION | C44: Unit | D44: Rate
A45: GENERAL SERVICE 50 TO 1,499 KW
A46: GENERAL SERVICE 50 TO 1,499 KW
A47: GENERAL SERVICE 50 TO 1,499 KW
A48: GENERAL SERVICE 50 TO 1,499 KW
A49: GENERAL SERVICE 50 TO 1,499 KW
A50: GENERAL SERVICE 50 TO 1,499 KW
A51: GENERAL SERVICE 50 TO 1,499 KW
A52: GENERAL SERVICE 50 TO 1,499 KW
A53: GENERAL SERVICE 50 TO 1,499 KW
A54: GENERAL SERVICE 50 TO 1,499 KW
A56: GENERAL SERVICE 1,500 TO 4,999 KW | B56: GENERAL SERVICE 1,500 TO 4,999 KW SERVICE CLASSIFICATION | C56: Unit | D56: Rate
A57: GENERAL SERVICE 1,500 TO 4,999 KW
A58: GENERAL SERVICE 1,500 TO 4,999 KW
A59: GENERAL SERVICE 1,500 TO 4,999 KW
A60: GENERAL SERVICE 1,500 TO 4,999 KW
A61: GENERAL SERVICE 1,500 TO 4,999 KW
A62: GENERAL SERVICE 1,500 TO 4,999 KW
A63: GENERAL SERVICE 1,500 TO 4,999 KW
A64: GENERAL SERVICE 1,500 TO 4,999 KW
A65: GENERAL SERVICE 1,500 TO 4,999 KW
A66: GENERAL SERVICE 1,500 TO 4,999 KW
A68: LARGE USE | B68: LARGE USE SERVICE CLASSIFICATION | C68: Unit | D68: Rate
A69: LARGE USE
A70: LARGE USE
A71: LARGE USE
A72: LARGE USE
A73: LARGE USE
A74: LARGE USE
A75: LARGE USE
A76: LARGE USE
A77: LARGE USE
A78: LARGE USE
A80: UNMETERED SCATTERED LOAD | B80: UNMETERED SCATTERED LOAD SERVICE CLASSIFICATION | C80: Unit | D80: Rate
A81: UNMETERED SCATTERED LOAD
A82: UNMETERED SCATTERED LOAD
A83: UNMETERED SCATTERED LOAD
A84: UNMETERED SCATTERED LOAD
A85: UNMETERED SCATTERED LOAD
A86: UNMETERED SCATTERED LOAD
A87: UNMETERED SCATTERED LOAD
A88: UNMETERED SCATTERED LOAD
A89: UNMETERED SCATTERED LOAD
A90: UNMETERED SCATTERED LOAD
A92: STANDBY POWER GENERAL SERVICE 50 TO 1,499 KW | B92: STANDBY POWER GENERAL SERVICE 50 TO 1,499 KW SERVICE CLASSIFICATION | C92: Unit | D92: Rate
A93: STANDBY POWER GENERAL SERVICE 50 TO 1,499 KW
A94: STANDBY POWER GENERAL SERVICE 50 TO 1,499 KW
A95: STANDBY POWER GENERAL SERVICE 50 TO 1,499 KW
A96: STANDBY POWER GENERAL SERVICE 50 TO 1,499 KW
A97: STANDBY POWER GENERAL SERVICE 50 TO 1,499 KW
A98: STANDBY POWER GENERAL SERVICE 50 TO 1,499 KW
A99: STANDBY POWER GENERAL SERVICE 50 TO 1,499 KW
A100: STANDBY POWER GENERAL SERVICE 50 TO 1,499 KW
A101: STANDBY POWER GENERAL SERVICE 50 TO 1,499 KW
A102: STANDBY POWER GENERAL SERVICE 50 TO 1,499 KW
A104: STANDBY POWER GENERAL SERVICE 1,500 TO 4,999 KW | B104: STANDBY POWER GENERAL SERVICE 1,500 TO 4,999 KW SERVICE CLASSIFICATION | C104: Unit | D104: Rate
A105: STANDBY POWER GENERAL SERVICE 1,500 TO 4,999 KW
A106: STANDBY POWER GENERAL SERVICE 1,500 TO 4,999 KW
A107: STANDBY POWER GENERAL SERVICE 1,500 TO 4,999 KW
A108: STANDBY POWER GENERAL SERVICE 1,500 TO 4,999 KW
A109: STANDBY POWER GENERAL SERVICE 1,500 TO 4,999 KW
A110: STANDBY POWER GENERAL SERVICE 1,500 TO 4,999 KW
A111: STANDBY POWER GENERAL SERVICE 1,500 TO 4,999 KW
A112: STANDBY POWER GENERAL SERVICE 1,500 TO 4,999 KW
A113: STANDBY POWER GENERAL SERVICE 1,500 TO 4,999 KW
A114: STANDBY POWER GENERAL SERVICE 1,500 TO 4,999 KW
A116: STANDBY POWER GENERAL SERVICE LARGE USE | B116: STANDBY POWER GENERAL SERVICE LARGE USE SERVICE CLASSIFICATION | C116: Unit | D116: Rate
A117: STANDBY POWER GENERAL SERVICE LARGE USE
A118: STANDBY POWER GENERAL SERVICE LARGE USE
A119: STANDBY POWER GENERAL SERVICE LARGE USE
A120: STANDBY POWER GENERAL SERVICE LARGE USE
A121: STANDBY POWER GENERAL SERVICE LARGE USE
A122: STANDBY POWER GENERAL SERVICE LARGE USE
A123: STANDBY POWER GENERAL SERVICE LARGE USE
A124: STANDBY POWER GENERAL SERVICE LARGE USE
A125: STANDBY POWER GENERAL SERVICE LARGE USE
A126: STANDBY POWER GENERAL SERVICE LARGE USE
A128: SENTINEL LIGHTING | B128: SENTINEL LIGHTING SERVICE CLASSIFICATION | C128: Unit | D128: Rate
A129: SENTINEL LIGHTING
A130: SENTINEL LIGHTING
A131: SENTINEL LIGHTING
A132: SENTINEL LIGHTING
A133: SENTINEL LIGHTING
A134: SENTINEL LIGHTING
A135: SENTINEL LIGHTING
A136: SENTINEL LIGHTING
A137: SENTINEL LIGHTING
A138: SENTINEL LIGHTING
A140: STREET LIGHTING | B140: STREET LIGHTING SERVICE CLASSIFICATION | C140: Unit | D140: Rate
A141: STREET LIGHTING
A142: STREET LIGHTING
A143: STREET LIGHTING
A144: STREET LIGHTING
A145: STREET LIGHTING
A146: STREET LIGHTING
A147: STREET LIGHTING
A148: STREET LIGHTING
A149: STREET LIGHTING
A150: STREET LIGHTING
A152: microFIT | B152: microFIT SERVICE CLASSIFICATION | C152: Unit | D152: Rate
A153: microFIT
A154: microFIT
A155: microFIT
A156: microFIT
A157: microFIT
A158: microFIT
A159: microFIT
A160: microFIT
A161: microFIT
A162: microFIT
B166: PROPOSED MONTHLY RATES AND CHARGES - Regulatory Component
A168: Wholesale Market Service Rate | B168: Wholesale Market Service Rate | C168: $/kWh | D168: 0.0044
A169: Rural or Remote Electricity Rate Protection Charge (RRRP) | B169: Rural or Remote Electricity Rate Protection Charge (RRRP) | C169: $/kWh | D169: 0.0013
A170: Standard Supply Service - Administrative Charge (if applicable) | B170: Standard Supply Service - Administrative Charge (if applicable) | C170: $ | D170: 0.25

Sheet 26. Hidden (hidden)
A1: RESIDENTIAL | B1: RESIDENTIAL SERVICE CLASSIFICATION | C1: Unit | D1: Rate
A2: RESIDENTIAL
A3: RESIDENTIAL
A4: RESIDENTIAL
A5: RESIDENTIAL
A6: RESIDENTIAL
A7: RESIDENTIAL
A8: RESIDENTIAL
A9: RESIDENTIAL
A10: RESIDENTIAL
A11: RESIDENTIAL
A13: GENERAL SERVICE LESS THAN 50 KW | B13: GENERAL SERVICE LESS THAN 50 KW SERVICE CLASSIFICATION | C13: Unit | D13: Rate
A14: GENERAL SERVICE LESS THAN 50 KW
A15: GENERAL SERVICE LESS THAN 50 KW
A16: GENERAL SERVICE LESS THAN 50 KW
A17: GENERAL SERVICE LESS THAN 50 KW
A18: GENERAL SERVICE LESS THAN 50 KW
A19: GENERAL SERVICE LESS THAN 50 KW
A20: GENERAL SERVICE LESS THAN 50 KW
A21: GENERAL SERVICE LESS THAN 50 KW
A22: GENERAL SERVICE LESS THAN 50 KW
A23: GENERAL SERVICE LESS THAN 50 KW
A25: GENERAL SERVICE 50 TO 1,499 KW | B25: GENERAL SERVICE 50 TO 1,499 KW SERVICE CLASSIFICATION | C25: Unit | D25: Rate
A26: GENERAL SERVICE 50 TO 1,499 KW
A27: GENERAL SERVICE 50 TO 1,499 KW
A28: GENERAL SERVICE 50 TO 1,499 KW
A29: GENERAL SERVICE 50 TO 1,499 KW
A30: GENERAL SERVICE 50 TO 1,499 KW
A31: GENERAL SERVICE 50 TO 1,499 KW
A32: GENERAL SERVICE 50 TO 1,499 KW
A33: GENERAL SERVICE 50 TO 1,499 KW
A34: GENERAL SERVICE 50 TO 1,499 KW
A35: GENERAL SERVICE 50 TO 1,499 KW
A37: GENERAL SERVICE 1,500 TO 4,999 KW | B37: GENERAL SERVICE 1,500 TO 4,999 KW SERVICE CLASSIFICATION | C37: Unit | D37: Rate
A38: GENERAL SERVICE 1,500 TO 4,999 KW
A39: GENERAL SERVICE 1,500 TO 4,999 KW
A40: GENERAL SERVICE 1,500 TO 4,999 KW
A41: GENERAL SERVICE 1,500 TO 4,999 KW
A42: GENERAL SERVICE 1,500 TO 4,999 KW
A43: GENERAL SERVICE 1,500 TO 4,999 KW
A44: GENERAL SERVICE 1,500 TO 4,999 KW
A45: GENERAL SERVICE 1,500 TO 4,999 KW
A46: GENERAL SERVICE 1,500 TO 4,999 KW
A47: GENERAL SERVICE 1,500 TO 4,999 KW
A49: LARGE USE | B49: LARGE USE SERVICE CLASSIFICATION | C49: Unit | D49: Rate
A50: LARGE USE
A51: LARGE USE
A52: LARGE USE
A53: LARGE USE
A54: LARGE USE
A55: LARGE USE
A56: LARGE USE
A57: LARGE USE
A58: LARGE USE
A59: LARGE USE
A61: UNMETERED SCATTERED LOAD | B61: UNMETERED SCATTERED LOAD SERVICE CLASSIFICATION | C61: Unit | D61: Rate
A62: UNMETERED SCATTERED LOAD
A63: UNMETERED SCATTERED LOAD
A64: UNMETERED SCATTERED LOAD
A65: UNMETERED SCATTERED LOAD
A66: UNMETERED SCATTERED LOAD
A67: UNMETERED SCATTERED LOAD
A68: UNMETERED SCATTERED LOAD
A69: UNMETERED SCATTERED LOAD
A70: UNMETERED SCATTERED LOAD
A71: UNMETERED SCATTERED LOAD
A73: STANDBY POWER GENERAL SERVICE 50 TO 1,499 KW | B73: STANDBY POWER GENERAL SERVICE 50 TO 1,499 KW SERVICE CLASSIFICATION | C73: Unit | D73: Rate
A74: STANDBY POWER GENERAL SERVICE 50 TO 1,499 KW
A75: STANDBY POWER GENERAL SERVICE 50 TO 1,499 KW
A76: STANDBY POWER GENERAL SERVICE 50 TO 1,499 KW
A77: STANDBY POWER GENERAL SERVICE 50 TO 1,499 KW
A78: STANDBY POWER GENERAL SERVICE 50 TO 1,499 KW
A79: STANDBY POWER GENERAL SERVICE 50 TO 1,499 KW
A80: STANDBY POWER GENERAL SERVICE 50 TO 1,499 KW
A81: STANDBY POWER GENERAL SERVICE 50 TO 1,499 KW
A82: STANDBY POWER GENERAL SERVICE 50 TO 1,499 KW
A83: STANDBY POWER GENERAL SERVICE 50 TO 1,499 KW
A85: STANDBY POWER GENERAL SERVICE 1,500 TO 4,999 KW | B85: STANDBY POWER GENERAL SERVICE 1,500 TO 4,999 KW SERVICE CLASSIFICATION | C85: Unit | D85: Rate
A86: STANDBY POWER GENERAL SERVICE 1,500 TO 4,999 KW
A87: STANDBY POWER GENERAL SERVICE 1,500 TO 4,999 KW
A88: STANDBY POWER GENERAL SERVICE 1,500 TO 4,999 KW
A89: STANDBY POWER GENERAL SERVICE 1,500 TO 4,999 KW
A90: STANDBY POWER GENERAL SERVICE 1,500 TO 4,999 KW
A91: STANDBY POWER GENERAL SERVICE 1,500 TO 4,999 KW
A92: STANDBY POWER GENERAL SERVICE 1,500 TO 4,999 KW
A93: STANDBY POWER GENERAL SERVICE 1,500 TO 4,999 KW
A94: STANDBY POWER GENERAL SERVICE 1,500 TO 4,999 KW
A95: STANDBY POWER GENERAL SERVICE 1,500 TO 4,999 KW
A97: STANDBY POWER GENERAL SERVICE LARGE USE | B97: STANDBY POWER GENERAL SERVICE LARGE USE SERVICE CLASSIFICATION | C97: Unit | D97: Rate
A98: STANDBY POWER GENERAL SERVICE LARGE USE
A99: STANDBY POWER GENERAL SERVICE LARGE USE
A100: STANDBY POWER GENERAL SERVICE LARGE USE
A101: STANDBY POWER GENERAL SERVICE LARGE USE
A102: STANDBY POWER GENERAL SERVICE LARGE USE
A103: STANDBY POWER GENERAL SERVICE LARGE USE
A104: STANDBY POWER GENERAL SERVICE LARGE USE
A105: STANDBY POWER GENERAL SERVICE LARGE USE
A106: STANDBY POWER GENERAL SERVICE LARGE USE
A107: STANDBY POWER GENERAL SERVICE LARGE USE
A109: SENTINEL LIGHTING | B109: SENTINEL LIGHTING SERVICE CLASSIFICATION | C109: Unit | D109: Rate
A110: SENTINEL LIGHTING
A111: SENTINEL LIGHTING
A112: SENTINEL LIGHTING
A113: SENTINEL LIGHTING
A114: SENTINEL LIGHTING
A115: SENTINEL LIGHTING
A116: SENTINEL LIGHTING
A117: SENTINEL LIGHTING
A118: SENTINEL LIGHTING
A119: SENTINEL LIGHTING
A121: STREET LIGHTING | B121: STREET LIGHTING SERVICE CLASSIFICATION | C121: Unit | D121: Rate
A122: STREET LIGHTING
A123: STREET LIGHTING
A124: STREET LIGHTING
A125: STREET LIGHTING
A126: STREET LIGHTING
A127: STREET LIGHTING
A128: STREET LIGHTING
A129: STREET LIGHTING
A130: STREET LIGHTING
A131: STREET LIGHTING
A133: microFIT | B133: microFIT SERVICE CLASSIFICATION | C133: Unit | D133: Rate
A134: microFIT
A135: microFIT
A136: microFIT
A137: microFIT
A138: microFIT
A139: microFIT
A140: microFIT
A141: microFIT
A142: microFIT
A143: microFIT
B147: PROPOSED MONTHLY RATES AND CHARGES - Regulatory Component
A149: Wholesale Market Service Rate | B149: Wholesale Market Service Rate | C149: $/kWh | D149: 0.0044
A150: Rural or Remote Electricity Rate Protection Charge (RRRP) | B150: Rural or Remote Electricity Rate Protection Charge (RRRP) | C150: $/kWh | D150: 0.0013
A151: Standard Supply Service - Administrative Charge (if applicable) | B151: Standard Supply Service - Administrative Charge (if applicable) | C151: $ | D151: 0.25

Sheet 27. Final Tariff Schedule
A1: hidden column | B1: ='1. Information Sheet'!F14 -> Hydro Ottawa Limited | F1: hidden column | Z1: 3
A2: for rate classes | B2: TARIFF OF RATES AND CHARGES | F2: for proposed
B3: ="Effective and Implementation Date " & TEXT('1. Information Sheet'!F26, "mmmm dd, yyyy") -> Effective and Implementation Date January 01, 2015 | F3: labeliing
B5: This schedule supersedes and replaces all previously
B6: approved schedules of Rates, Charges and Loss Factors | L6: =ROUND(LEN(B6), -2) / 100 -> 1
B7: =IF(LEN('1. Information Sheet'!F18)=0, "Please enter your assigned EB# on Sheet 1", '1. Information Sheet'!F18) -> EB-2014-0085
B9: RESIDENTIAL SERVICE CLASSIFICATION
B11: This classification includes accounts taking electricity at 120/240 volts single phase where the electricity is used exclusively in a separately metered living accommodation. Customers shall be residing in single-dwelling units that consist of a detached house or one unit of a semi-detached, duplex, triple or quadruplex house, with a residential zoning. Separately metered dwellings within a town house complex or apartment building also qualify as residential customes. Further servicing details are available in the distributor's Conditions of Service. | L11: =ROUND(LEN(B11), -2) / 100 -> 6
B13: APPLICATION
B15: The application of these rates and charges shall be in accordance with the Licence of the Distributor and any Code or Order of the Board, and amendments thereto as approved by the Board, which may be applicable to the administration of this schedule. | L15: =ROUND(LEN(B15), -2) / 100 -> 3
B17: No rates and charges for the distribution of electricity and charges to meet the costs of any work or service done or furnished for the purpose of the distribution of electricity shall be made except as permitted by this schedule, unless required by the Distributor’s Licence or a Code or Order of the Board, and amendments thereto as approved by the Board, or as specified herein. | L17: =ROUND(LEN(B17), -2) / 100 -> 4
B19: Unless specifically noted, this schedule does not contain any charges for the electricity commodity, be it under the Regulated Price Plan, a contract with a retailer or the wholesale market price, as applicable. In addition, the charges in the MONTHLY RATES AND CHARGES – Regulatory Component of this schedule do not apply to a customer that is an embedded wholesale market participant. | L19: =ROUND(LEN(B19), -2) / 100 -> 4
B21: It should be noted that this schedule does not list any charges, assessments or credits that are required by law to be invoiced by a distributor and that are not subject to Board approval, such as the Debt Retirement Charge, the Global Adjustment, the Ontario Clean Energy Benefit and the HST. | L21: =ROUND(LEN(B21), -2) / 100 -> 3
B23: MONTHLY RATES AND CHARGES - Delivery Component
A25: RESIDENTIAL | B25: Service Charge | D25: $ | E25: 9.68 | K25: 1_P_MSC
A26: RESIDENTIAL | B26: Rate Rider for Smart Metering Entity Charge - effective until October 31, 2018 | D26: $ | E26: 0.79 | K26: 1_P_SMEC
A27: RESIDENTIAL | B27: Distribution Volumetric Rate | D27: $/kWh | E27: 0.0234 | K27: 1_P_VC_1
A28: RESIDENTIAL | B28: Low Voltage Service Rate | D28: $/kWh | E28: 6e-05 | K28: 1_P_LVrate
A29: RESIDENTIAL | B29: Retail Transmission Rate - Network Service Rate | D29: $/kWh | E29: 0.007730208386 | K29: 1_P_RTSR_Network
A30: RESIDENTIAL | B30: Retail Transmission Rate - Line and Transformation Connection Service Rate | D30: $/kWh | E30: 0.004230318475 | K30: 1_P_RTSR_Connection
A31: RESIDENTIAL
A32: RESIDENTIAL | B32: MONTHLY RATES AND CHARGES - Regulatory Component
A33: RESIDENTIAL
A34: RESIDENTIAL | B34: Wholesale Market Service Rate | D34: $/kWh | E34: 0.0044 | K34: 1_P_WMSR
A35: RESIDENTIAL | B35: Rural or Remote Electricity Rate Protection Charge (RRRP) | D35: $/kWh | E35: 0.0013 | K35: 1_P_RRPC
A36: RESIDENTIAL | B36: Standard Supply Service - Administrative Charge (if applicable) | D36: $ | E36: 0.25 | K36: 1_P_SSS
B38: GENERAL SERVICE LESS THAN 50 KW SERVICE CLASSIFICATION
B40: This classification refers to non residential accounts taking electricity at 750 volts or less whose monthly average peak demand is less than, or is forecast to be less than 50 kW. Further servicing details are available in the distributor’s Conditions of Service. | L40: =ROUND(LEN(B40), -2) / 100 -> 3
B42: APPLICATION
B44: The application of these rates and charges shall be in accordance with the Licence of the Distributor and any Code or Order of the Board, and amendments thereto as approved by the Board, which may be applicable to the administration of this schedule. | L44: =ROUND(LEN(B44), -2) / 100 -> 3
B46: No rates and charges for the distribution of electricity and charges to meet the costs of any work or service done or furnished for the purpose of the distribution of electricity shall be made except as permitted by this schedule, unless required by the Distributor’s Licence or a Code or Order of the Board, and amendments thereto as approved by the Board, or as specified herein. | L46: =ROUND(LEN(B46), -2) / 100 -> 4
B48: Unless specifically noted, this schedule does not contain any charges for the electricity commodity, be it under the Regulated Price Plan, a contract with a retailer or the wholesale market price, as applicable. In addition, the charges in the MONTHLY RATES AND CHARGES – Regulatory Component of this schedule do not apply to a customer that is an embedded wholesale market participant. | L48: =ROUND(LEN(B48), -2) / 100 -> 4
B50: It should be noted that this schedule does not list any charges, assessments or credits that are required by law to be invoiced by a distributor and that are not subject to Board approval, such as the Debt Retirement Charge, the Global Adjustment, the Ontario Clean Energy Benefit and the HST. | L50: =ROUND(LEN(B50), -2) / 100 -> 3
B52: MONTHLY RATES AND CHARGES - Delivery Component
A54: GENERAL SERVICE LESS THAN 50 KW | B54: Service Charge | D54: $ | E54: 16.74 | K54: 2_P_MSC
A55: GENERAL SERVICE LESS THAN 50 KW | B55: Rate Rider for Smart Metering Entity Charge - effective until October 31, 2018 | D55: $ | E55: 0.79 | K55: 2_P_SMEC
A56: GENERAL SERVICE LESS THAN 50 KW | B56: Distribution Volumetric Rate | D56: $/kWh | E56: 0.021 | K56: 2_P_VC_1
A57: GENERAL SERVICE LESS THAN 50 KW | B57: Low Voltage Service Rate | D57: $/kWh | E57: 6e-05 | K57: 2_P_LVrate
A58: GENERAL SERVICE LESS THAN 50 KW | B58: Retail Transmission Rate - Network Service Rate | D58: $/kWh | E58: 0.006957187548 | K58: 2_P_RTSR_Network
A59: GENERAL SERVICE LESS THAN 50 KW | B59: Retail Transmission Rate - Line and Transformation Connection Service Rate | D59: $/kWh | E59: 0.004028874738 | K59: 2_P_RTSR_Connection
A60: GENERAL SERVICE LESS THAN 50 KW
A61: GENERAL SERVICE LESS THAN 50 KW | B61: MONTHLY RATES AND CHARGES - Regulatory Component
A62: GENERAL SERVICE LESS THAN 50 KW
A63: GENERAL SERVICE LESS THAN 50 KW | B63: Wholesale Market Service Rate | D63: $/kWh | E63: 0.0044 | K63: 2_P_WMSR
A64: GENERAL SERVICE LESS THAN 50 KW | B64: Rural or Remote Electricity Rate Protection Charge (RRRP) | D64: $/kWh | E64: 0.0013 | K64: 2_P_RRPC
A65: GENERAL SERVICE LESS THAN 50 KW | B65: Standard Supply Service - Administrative Charge (if applicable) | D65: $ | E65: 0.25 | K65: 2_P_SSS
B67: GENERAL SERVICE 50 TO 1,499 KW SERVICE CLASSIFICATION
B69: This classification refers to non residential accounts whose monthly average peak demand is equal to or greater than, or is forecast to be equal to or greater than, 50 kW but less than 1,500 kW. Further servicing details are available in the distributor’s Conditions of Service. | L69: =ROUND(LEN(B69), -2) / 100 -> 3
B71: APPLICATION
B73: The application of these rates and charges shall be in accordance with the Licence of the Distributor and any Code or Order of the Board, and amendments thereto as approved by the Board, which may be applicable to the administration of this schedule. | L73: =ROUND(LEN(B73), -2) / 100 -> 3
B75: No rates and charges for the distribution of electricity and charges to meet the costs of any work or service done or furnished for the purpose of the distribution of electricity shall be made except as permitted by this schedule, unless required by the Distributor’s Licence or a Code or Order of the Board, and amendments thereto as approved by the Board, or as specified herein. | L75: =ROUND(LEN(B75), -2) / 100 -> 4
B77: Unless specifically noted, this schedule does not contain any charges for the electricity commodity, be it under the Regulated Price Plan, a contract with a retailer or the wholesale market price, as applicable. In addition, the charges in the MONTHLY RATES AND CHARGES – Regulatory Component of this schedule do not apply to a customer that is an embedded wholesale market participant. | L77: =ROUND(LEN(B77), -2) / 100 -> 4
B79: It should be noted that this schedule does not list any charges, assessments or credits that are required by law to be invoiced by a distributor and that are not subject to Board approval, such as the Debt Retirement Charge, the Global Adjustment, the Ontario Clean Energy Benefit and the HST. | L79: =ROUND(LEN(B79), -2) / 100 -> 3
B81: MONTHLY RATES AND CHARGES - Delivery Component
A83: GENERAL SERVICE 50 TO 1,499 KW | B83: Service Charge | D83: $ | E83: 261.07 | K83: 3_P_MSC
A84: GENERAL SERVICE 50 TO 1,499 KW | B84: Distribution Volumetric Rate | D84: $/kW | E84: 3.5726 | K84: 3_P_VC_1
A85: GENERAL SERVICE 50 TO 1,499 KW | B85: Low Voltage Service Rate | D85: $/kW | E85: 0.02354 | K85: 3_P_LVrate
A86: GENERAL SERVICE 50 TO 1,499 KW | B86: Retail Transmission Rate - Network Service Rate | D86: $/kW | E86: 2.907234746 | K86: 3_P_RTSR_Network
A87: GENERAL SERVICE 50 TO 1,499 KW | B87: Retail Transmission Rate - Line and Transformation Connection Service Rate | D87: $/kW | E87: 1.623233632 | K87: 3_P_RTSR_Connection
A88: GENERAL SERVICE 50 TO 1,499 KW
A89: GENERAL SERVICE 50 TO 1,499 KW | B89: MONTHLY RATES AND CHARGES - Regulatory Component
A90: GENERAL SERVICE 50 TO 1,499 KW
A91: GENERAL SERVICE 50 TO 1,499 KW | B91: Wholesale Market Service Rate | D91: $/kWh | E91: 0.0044 | K91: 3_P_WMSR
A92: GENERAL SERVICE 50 TO 1,499 KW | B92: Rural or Remote Electricity Rate Protection Charge (RRRP) | D92: $/kWh | E92: 0.0013 | K92: 3_P_RRPC
A93: GENERAL SERVICE 50 TO 1,499 KW | B93: Standard Supply Service - Administrative Charge (if applicable) | D93: $ | E93: 0.25 | K93: 3_P_SSS
B95: GENERAL SERVICE 1,500 TO 4,999 KW SERVICE CLASSIFICATION
B97: This classification refers to non residential accounts whose monthly average peak demand is equal to or greater than, or is forecast to be equal to or greater than 1,500 kW but less than 5,000 kW. Further servicing details are available in the distributor’s Conditions of Service. | L97: =ROUND(LEN(B97), -2) / 100 -> 3
B99: APPLICATION
B101: The application of these rates and charges shall be in accordance with the Licence of the Distributor and any Code or Order of the Board, and amendments thereto as approved by the Board, which may be applicable to the administration of this schedule. | L101: =ROUND(LEN(B101), -2) / 100 -> 3
B103: No rates and charges for the distribution of electricity and charges to meet the costs of any work or service done or furnished for the purpose of the distribution of electricity shall be made except as permitted by this schedule, unless required by the Distributor’s Licence or a Code or Order of the Board, and amendments thereto as approved by the Board, or as specified herein. | L103: =ROUND(LEN(B103), -2) / 100 -> 4
B105: Unless specifically noted, this schedule does not contain any charges for the electricity commodity, be it under the Regulated Price Plan, a contract with a retailer or the wholesale market price, as applicable. In addition, the charges in the MONTHLY RATES AND CHARGES – Regulatory Component of this schedule do not apply to a customer that is an embedded wholesale market participant. | L105: =ROUND(LEN(B105), -2) / 100 -> 4
B107: It should be noted that this schedule does not list any charges, assessments or credits that are required by law to be invoiced by a distributor and that are not subject to Board approval, such as the Debt Retirement Charge, the Global Adjustment, the Ontario Clean Energy Benefit and the HST. | L107: =ROUND(LEN(B107), -2) / 100 -> 3
B109: MONTHLY RATES AND CHARGES - Delivery Component
A111: GENERAL SERVICE 1,500 TO 4,999 KW | B111: Service Charge | D111: $ | E111: 4198.07 | K111: 4_P_MSC
A112: GENERAL SERVICE 1,500 TO 4,999 KW | B112: Distribution Volumetric Rate | D112: $/kW | E112: 3.4921 | K112: 4_P_VC_1
A113: GENERAL SERVICE 1,500 TO 4,999 KW | B113: Low Voltage Service Rate | D113: $/kW | E113: 0.02516 | K113: 4_P_LVrate
A114: GENERAL SERVICE 1,500 TO 4,999 KW | B114: Retail Transmission Rate - Network Service Rate | D114: $/kW | E114: 3.018646375 | K114: 4_P_RTSR_Network
A115: GENERAL SERVICE 1,500 TO 4,999 KW | B115: Retail Transmission Rate - Line and Transformation Connection Service Rate | D115: $/kW | E115: 1.73473274 | K115: 4_P_RTSR_Connection
A116: GENERAL SERVICE 1,500 TO 4,999 KW
A117: GENERAL SERVICE 1,500 TO 4,999 KW | B117: MONTHLY RATES AND CHARGES - Regulatory Component
A118: GENERAL SERVICE 1,500 TO 4,999 KW
A119: GENERAL SERVICE 1,500 TO 4,999 KW | B119: Wholesale Market Service Rate | D119: $/kWh | E119: 0.0044 | K119: 4_P_WMSR
A120: GENERAL SERVICE 1,500 TO 4,999 KW | B120: Rural or Remote Electricity Rate Protection Charge (RRRP) | D120: $/kWh | E120: 0.0013 | K120: 4_P_RRPC
A121: GENERAL SERVICE 1,500 TO 4,999 KW | B121: Standard Supply Service - Administrative Charge (if applicable) | D121: $ | E121: 0.25 | K121: 4_P_SSS
B123: LARGE USE SERVICE CLASSIFICATION
B125: This classification refers to an account whose monthly average peak demand is equal to or greater than, or is forecast to be equal to or greater than 5,000 kW. Further servicing details are available in the distributor’s Conditions of Service. | L125: =ROUND(LEN(B125), -2) / 100 -> 2
B127: APPLICATION
B129: The application of these rates and charges shall be in accordance with the Licence of the Distributor and any Code or Order of the Board, and amendments thereto as approved by the Board, which may be applicable to the administration of this schedule. | L129: =ROUND(LEN(B129), -2) / 100 -> 3
B131: No rates and charges for the distribution of electricity and charges to meet the costs of any work or service done or furnished for the purpose of the distribution of electricity shall be made except as permitted by this schedule, unless required by the Distributor’s Licence or a Code or Order of the Board, and amendments thereto as approved by the Board, or as specified herein. | L131: =ROUND(LEN(B131), -2) / 100 -> 4
B133: Unless specifically noted, this schedule does not contain any charges for the electricity commodity, be it under the Regulated Price Plan, a contract with a retailer or the wholesale market price, as applicable. In addition, the charges in the MONTHLY RATES AND CHARGES – Regulatory Component of this schedule do not apply to a customer that is an embedded wholesale market participant. | L133: =ROUND(LEN(B133), -2) / 100 -> 4
B135: It should be noted that this schedule does not list any charges, assessments or credits that are required by law to be invoiced by a distributor and that are not subject to Board approval, such as the Debt Retirement Charge, the Global Adjustment, the Ontario Clean Energy Benefit and the HST. | L135: =ROUND(LEN(B135), -2) / 100 -> 3
B137: MONTHLY RATES AND CHARGES - Delivery Component
A139: LARGE USE | B139: Service Charge | D139: $ | E139: 15246.35 | K139: 5_P_MSC
A140: LARGE USE | B140: Distribution Volumetric Rate | D140: $/kW | E140: 3.3162 | K140: 5_P_VC_1
A141: LARGE USE | B141: Low Voltage Service Rate | D141: $/kW | E141: 0.02833 | K141: 5_P_LVrate
A142: LARGE USE | B142: Retail Transmission Rate - Network Service Rate | D142: $/kW | E142: 3.346213955 | K142: 5_P_RTSR_Network
A143: LARGE USE | B143: Retail Transmission Rate - Line and Transformation Connection Service Rate | D143: $/kW | E143: 1.953500639 | K143: 5_P_RTSR_Connection
A144: LARGE USE
A145: LARGE USE | B145: MONTHLY RATES AND CHARGES - Regulatory Component
A146: LARGE USE
A147: LARGE USE | B147: Wholesale Market Service Rate | D147: $/kWh | E147: 0.0044 | K147: 5_P_WMSR
A148: LARGE USE | B148: Rural or Remote Electricity Rate Protection Charge (RRRP) | D148: $/kWh | E148: 0.0013 | K148: 5_P_RRPC
A149: LARGE USE | B149: Standard Supply Service - Administrative Charge (if applicable) | D149: $ | E149: 0.25 | K149: 5_P_SSS
B151: UNMETERED SCATTERED LOAD SERVICE CLASSIFICATION
B153: This classification includes accounts taking electricity at 120/240 volts single phase whose monthly average peak demand is less than, or is forecast to be less than, 50 kW and the consumption is unmetered. These connections include cable TV power packs, bus shelters, telephone booths, traffic lights, railway crossings, etc. The customer will provide detailed manufacturer information/documentation with regard to electrical demand/consumption of the proposed unmetered load. Qualification for this classification is at the discretion of Hydro Ottawa as defined in its Conditions of Service. | L153: =ROUND(LEN(B153), -2) / 100 -> 6
B155: APPLICATION
B157: The application of these rates and charges shall be in accordance with the Licence of the Distributor and any Code or Order of the Board, and amendments thereto as approved by the Board, which may be applicable to the administration of this schedule. | L157: =ROUND(LEN(B157), -2) / 100 -> 3
B159: No rates and charges for the distribution of electricity and charges to meet the costs of any work or service done or furnished for the purpose of the distribution of electricity shall be made except as permitted by this schedule, unless required by the Distributor’s Licence or a Code or Order of the Board, and amendments thereto as approved by the Board, or as specified herein. | L159: =ROUND(LEN(B159), -2) / 100 -> 4
B161: Unless specifically noted, this schedule does not contain any charges for the electricity commodity, be it under the Regulated Price Plan, a contract with a retailer or the wholesale market price, as applicable. In addition, the charges in the MONTHLY RATES AND CHARGES – Regulatory Component of this schedule do not apply to a customer that is an embedded wholesale market participant. | L161: =ROUND(LEN(B161), -2) / 100 -> 4
B163: It should be noted that this schedule does not list any charges, assessments or credits that are required by law to be invoiced by a distributor and that are not subject to Board approval, such as the Debt Retirement Charge, the Global Adjustment, the Ontario Clean Energy Benefit and the HST. | L163: =ROUND(LEN(B163), -2) / 100 -> 3
B165: MONTHLY RATES AND CHARGES - Delivery Component
A167: UNMETERED SCATTERED LOAD | B167: Service Charge (per connection) | D167: $ | E167: 4.43 | K167: 6_P_MSC
A168: UNMETERED SCATTERED LOAD | B168: Distribution Volumetric Rate | D168: $/kWh | E168: 0.0219 | K168: 6_P_VC_1
A169: UNMETERED SCATTERED LOAD | B169: Low Voltage Service Rate | D169: $/kWh | E169: 6e-05 | K169: 6_P_LVrate
A170: UNMETERED SCATTERED LOAD | B170: Retail Transmission Rate - Network Service Rate | D170: $/kWh | E170: 0.006957187548 | K170: 6_P_RTSR_Network
A171: UNMETERED SCATTERED LOAD | B171: Retail Transmission Rate - Line and Transformation Connection Service Rate | D171: $/kWh | E171: 0.004028874738 | K171: 6_P_RTSR_Connection
A172: UNMETERED SCATTERED LOAD
A173: UNMETERED SCATTERED LOAD | B173: MONTHLY RATES AND CHARGES - Regulatory Component
A174: UNMETERED SCATTERED LOAD
A175: UNMETERED SCATTERED LOAD | B175: Wholesale Market Service Rate | D175: $/kWh | E175: 0.0044 | K175: 6_P_WMSR
A176: UNMETERED SCATTERED LOAD | B176: Rural or Remote Electricity Rate Protection Charge (RRRP) | D176: $/kWh | E176: 0.0013 | K176: 6_P_RRPC
A177: UNMETERED SCATTERED LOAD | B177: Standard Supply Service - Administrative Charge (if applicable) | D177: $ | E177: 0.25 | K177: 6_P_SSS
B179: STANDBY POWER GENERAL SERVICE 50 TO 1,499 KW SERVICE CLASSIFICATION
B181: This classification refers to an account that has Load Displacement Generation equal to or greater than 500 kW and requires the distributor to provide back-up service. Further servicing details are available in the distributor’s Conditions of Service. | L181: =ROUND(LEN(B181), -2) / 100 -> 3
B183: APPLICATION
B185: The application of these rates and charges shall be in accordance with the Licence of the Distributor and any Code or Order of the Board, and amendments thereto as approved by the Board, which may be applicable to the administration of this schedule. | L185: =ROUND(LEN(B185), -2) / 100 -> 3
B187: No rates and charges for the distribution of electricity and charges to meet the costs of any work or service done or furnished for the purpose of the distribution of electricity shall be made except as permitted by this schedule, unless required by the Distributor’s Licence or a Code or Order of the Board, and amendments thereto as approved by the Board, or as specified herein. | L187: =ROUND(LEN(B187), -2) / 100 -> 4
B189: Unless specifically noted, this schedule does not contain any charges for the electricity commodity, be it under the Regulated Price Plan, a contract with a retailer or the wholesale market price, as applicable. | L189: =ROUND(LEN(B189), -2) / 100 -> 2
B191: It should be noted that this schedule does not list any charges, assessments or credits that are required by law to be invoiced by a distributor and that are not subject to Board approval, such as the Debt Retirement Charge, the Global Adjustment, the Ontario Clean Energy Benefit and the HST. | L191: =ROUND(LEN(B191), -2) / 100 -> 3
B193: MONTHLY RATES AND CHARGES - Delivery Component
A195: STANDBY POWER GENERAL SERVICE 50 TO 1,499 KW | B195: Service Charge | D195: $ | E195: 122.53 | K195: 7_P_MSC
A196: STANDBY POWER GENERAL SERVICE 50 TO 1,499 KW | B196: Standby Charge - for a month where standby power is not provided. The charge is applied to the contracted amount (e.g. nameplate rating of the generation facility). | D196: $/kW | E196: 1.6353 | K196: 7_P_VC_1
A197: STANDBY POWER GENERAL SERVICE 50 TO 1,499 KW
A198: STANDBY POWER GENERAL SERVICE 50 TO 1,499 KW | B198: MONTHLY RATES AND CHARGES - Regulatory Component
A199: STANDBY POWER GENERAL SERVICE 50 TO 1,499 KW
A200: STANDBY POWER GENERAL SERVICE 50 TO 1,499 KW | B200: Wholesale Market Service Rate | D200: $/kWh | E200: 0.0044 | K200: 7_P_WMSR
A201: STANDBY POWER GENERAL SERVICE 50 TO 1,499 KW | B201: Rural or Remote Electricity Rate Protection Charge (RRRP) | D201: $/kWh | E201: 0.0013 | K201: 7_P_RRPC
A202: STANDBY POWER GENERAL SERVICE 50 TO 1,499 KW | B202: Standard Supply Service - Administrative Charge (if applicable) | D202: $ | E202: 0.25 | K202: 7_P_SSS
B204: STANDBY POWER GENERAL SERVICE 1,500 TO 4,999 KW SERVICE CLASSIFICATION
B206: This classification refers to an account that has Load Displacement Generation equal to or greater than 500 kW and requires the distributor to provide back-up service. Further servicing details are available in the distributor’s Conditions of Service. | L206: =ROUND(LEN(B206), -2) / 100 -> 3
B208: APPLICATION
B210: The application of these rates and charges shall be in accordance with the Licence of the Distributor and any Code or Order of the Board, and amendments thereto as approved by the Board, which may be applicable to the administration of this schedule. | L210: =ROUND(LEN(B210), -2) / 100 -> 3
B212: No rates and charges for the distribution of electricity and charges to meet the costs of any work or service done or furnished for the purpose of the distribution of electricity shall be made except as permitted by this schedule, unless required by the Distributor’s Licence or a Code or Order of the Board, and amendments thereto as approved by the Board, or as specified herein. | L212: =ROUND(LEN(B212), -2) / 100 -> 4
B214: Unless specifically noted, this schedule does not contain any charges for the electricity commodity, be it under the Regulated Price Plan, a contract with a retailer or the wholesale market price, as applicable. | L214: =ROUND(LEN(B214), -2) / 100 -> 2
B216: It should be noted that this schedule does not list any charges, assessments or credits that are required by law to be invoiced by a distributor and that are not subject to Board approval, such as the Debt Retirement Charge, the Global Adjustment, the Ontario Clean Energy Benefit and the HST. | L216: =ROUND(LEN(B216), -2) / 100 -> 3
B218: MONTHLY RATES AND CHARGES - Delivery Component
A220: STANDBY POWER GENERAL SERVICE 1,500 TO 4,999 KW | B220: Service Charge | D220: $ | E220: 122.53 | K220: 8_P_MSC
A221: STANDBY POWER GENERAL SERVICE 1,500 TO 4,999 KW | B221: Standby Charge - for a month where standby power is not provided. The charge is applied to the contracted amount (e.g. nameplate rating of the generation facility). | D221: $/kW | E221: 1.5 | K221: 8_P_VC_1
A222: STANDBY POWER GENERAL SERVICE 1,500 TO 4,999 KW
A223: STANDBY POWER GENERAL SERVICE 1,500 TO 4,999 KW | B223: MONTHLY RATES AND CHARGES - Regulatory Component
A224: STANDBY POWER GENERAL SERVICE 1,500 TO 4,999 KW
A225: STANDBY POWER GENERAL SERVICE 1,500 TO 4,999 KW | B225: Wholesale Market Service Rate | D225: $/kWh | E225: 0.0044 | K225: 8_P_WMSR
A226: STANDBY POWER GENERAL SERVICE 1,500 TO 4,999 KW | B226: Rural or Remote Electricity Rate Protection Charge (RRRP) | D226: $/kWh | E226: 0.0013 | K226: 8_P_RRPC
A227: STANDBY POWER GENERAL SERVICE 1,500 TO 4,999 KW | B227: Standard Supply Service - Administrative Charge (if applicable) | D227: $ | E227: 0.25 | K227: 8_P_SSS
B229: STANDBY POWER GENERAL SERVICE LARGE USE SERVICE CLASSIFICATION
B231: This classification refers to an account that has Load Displacement Generation equal to or greater than 500 kW and requires the distributor to provide back-up service. Further servicing details are available in the distributor’s Conditions of Service. | L231: =ROUND(LEN(B231), -2) / 100 -> 3
B233: APPLICATION
B235: The application of these rates and charges shall be in accordance with the Licence of the Distributor and any Code or Order of the Board, and amendments thereto as approved by the Board, which may be applicable to the administration of this schedule. | L235: =ROUND(LEN(B235), -2) / 100 -> 3
B237: No rates and charges for the distribution of electricity and charges to meet the costs of any work or service done or furnished for the purpose of the distribution of electricity shall be made except as permitted by this schedule, unless required by the Distributor’s Licence or a Code or Order of the Board, and amendments thereto as approved by the Board, or as specified herein. | L237: =ROUND(LEN(B237), -2) / 100 -> 4
B239: Unless specifically noted, this schedule does not contain any charges for the electricity commodity, be it under the Regulated Price Plan, a contract with a retailer or the wholesale market price, as applicable. | L239: =ROUND(LEN(B239), -2) / 100 -> 2
B241: It should be noted that this schedule does not list any charges, assessments or credits that are required by law to be invoiced by a distributor and that are not subject to Board approval, such as the Debt Retirement Charge, the Global Adjustment, the Ontario Clean Energy Benefit and the HST. | L241: =ROUND(LEN(B241), -2) / 100 -> 3
B243: MONTHLY RATES AND CHARGES - Delivery Component
A245: STANDBY POWER GENERAL SERVICE LARGE USE | B245: Service Charge | D245: $ | E245: 122.53 | K245: 9_P_MSC
A246: STANDBY POWER GENERAL SERVICE LARGE USE | B246: Standby Charge - for a month where standby power is not provided. The charge is applied to the contracted amount (e.g. nameplate rating of the generation facility). | D246: $/kW | E246: 1.6646 | K246: 9_P_VC_1
A247: STANDBY POWER GENERAL SERVICE LARGE USE
A248: STANDBY POWER GENERAL SERVICE LARGE USE | B248: MONTHLY RATES AND CHARGES - Regulatory Component
A249: STANDBY POWER GENERAL SERVICE LARGE USE
A250: STANDBY POWER GENERAL SERVICE LARGE USE | B250: Wholesale Market Service Rate | D250: $/kWh | E250: 0.0044 | K250: 9_P_WMSR
A251: STANDBY POWER GENERAL SERVICE LARGE USE | B251: Rural or Remote Electricity Rate Protection Charge (RRRP) | D251: $/kWh | E251: 0.0013 | K251: 9_P_RRPC
A252: STANDBY POWER GENERAL SERVICE LARGE USE | B252: Standard Supply Service - Administrative Charge (if applicable) | D252: $ | E252: 0.25 | K252: 9_P_SSS
B254: SENTINEL LIGHTING SERVICE CLASSIFICATION
B256: This classification refers to accounts that are an unmetered lighting load supplied to a sentinel light. Further servicing details are available in the distributor’s Conditions of Service. | L256: =ROUND(LEN(B256), -2) / 100 -> 2
B258: APPLICATION
B260: The application of these rates and charges shall be in accordance with the Licence of the Distributor and any Code or Order of the Board, and amendments thereto as approved by the Board, which may be applicable to the administration of this schedule. | L260: =ROUND(LEN(B260), -2) / 100 -> 3
B262: No rates and charges for the distribution of electricity and charges to meet the costs of any work or service done or furnished for the purpose of the distribution of electricity shall be made except as permitted by this schedule, unless required by the Distributor’s Licence or a Code or Order of the Board, and amendments thereto as approved by the Board, or as specified herein. | L262: =ROUND(LEN(B262), -2) / 100 -> 4
B264: Unless specifically noted, this schedule does not contain any charges for the electricity commodity, be it under the Regulated Price Plan, a contract with a retailer or the wholesale market price, as applicable. In addition, the charges in the MONTHLY RATES AND CHARGES – Regulatory Component of this schedule do not apply to a customer that is an embedded wholesale market participant. | L264: =ROUND(LEN(B264), -2) / 100 -> 4
B266: It should be noted that this schedule does not list any charges, assessments or credits that are required by law to be invoiced by a distributor and that are not subject to Board approval, such as the Debt Retirement Charge, the Global Adjustment, the Ontario Clean Energy Benefit and the HST. | L266: =ROUND(LEN(B266), -2) / 100 -> 3
B268: MONTHLY RATES AND CHARGES - Delivery Component
A270: SENTINEL LIGHTING | B270: Service Charge (per connection) | D270: $ | E270: 2.63 | K270: 10_P_MSC
A271: SENTINEL LIGHTING | B271: Distribution Volumetric Rate | D271: $/kW | E271: 10.046 | K271: 10_P_VC_1
A272: SENTINEL LIGHTING | B272: Low Voltage Service Rate | D272: $/kW | E272: 0.01785 | K272: 10_P_LVrate
A273: SENTINEL LIGHTING | B273: Retail Transmission Rate - Network Service Rate | D273: $/kW | E273: 2.146099103 | K273: 10_P_RTSR_Network
A274: SENTINEL LIGHTING | B274: Retail Transmission Rate - Line and Transformation Connection Service Rate | D274: $/kW | E274: 1.205842209 | K274: 10_P_RTSR_Connection
A275: SENTINEL LIGHTING
A276: SENTINEL LIGHTING | B276: MONTHLY RATES AND CHARGES - Regulatory Component
A277: SENTINEL LIGHTING
A278: SENTINEL LIGHTING | B278: Wholesale Market Service Rate | D278: $/kWh | E278: 0.0044 | K278: 10_P_WMSR
A279: SENTINEL LIGHTING | B279: Rural or Remote Electricity Rate Protection Charge (RRRP) | D279: $/kWh | E279: 0.0013 | K279: 10_P_RRPC
A280: SENTINEL LIGHTING | B280: Standard Supply Service - Administrative Charge (if applicable) | D280: $ | E280: 0.25 | K280: 10_P_SSS
B282: STREET LIGHTING SERVICE CLASSIFICATION
B284: This classification refers to an account for roadway lighting with a Municipality, Regional Municipality, Ministry of Transportation and private roadway lighting controlled by photocells. The consumption for these customers is based on the calculated connected load times the required lighting times established in the approved OEB street lighting load shape template. Further servicing details are available in the distributor’s Conditions of Service. | L284: =ROUND(LEN(B284), -2) / 100 -> 5
B286: APPLICATION
B288: The application of these rates and charges shall be in accordance with the Licence of the Distributor and any Code or Order of the Board, and amendments thereto as approved by the Board, which may be applicable to the administration of this schedule. | L288: =ROUND(LEN(B288), -2) / 100 -> 3
B290: No rates and charges for the distribution of electricity and charges to meet the costs of any work or service done or furnished for the purpose of the distribution of electricity shall be made except as permitted by this schedule, unless required by the Distributor’s Licence or a Code or Order of the Board, and amendments thereto as approved by the Board, or as specified herein. | L290: =ROUND(LEN(B290), -2) / 100 -> 4
B292: Unless specifically noted, this schedule does not contain any charges for the electricity commodity, be it under the Regulated Price Plan, a contract with a retailer or the wholesale market price, as applicable. In addition, the charges in the MONTHLY RATES AND CHARGES – Regulatory Component of this schedule do not apply to a customer that is an embedded wholesale market participant. | L292: =ROUND(LEN(B292), -2) / 100 -> 4
B294: It should be noted that this schedule does not list any charges, assessements or credits that are required by law to be invoiced by a distributor and that are not subject to Board approval, such as the Debt Retirement Charge, the Global Adjustment, the Ontario Clean Energy Benefit and the HST. | L294: =ROUND(LEN(B294), -2) / 100 -> 3
B296: MONTHLY RATES AND CHARGES - Delivery Component
A298: STREET LIGHTING | B298: Service Charge (per connection) | D298: $ | E298: 0.57 | K298: 11_P_MSC
A299: STREET LIGHTING | B299: Distribution Volumetric Rate | D299: $/kW | E299: 4.0037 | K299: 11_P_VC_1
A300: STREET LIGHTING | B300: Low Voltage Service Rate | D300: $/kW | E300: 0.01749 | K300: 11_P_LVrate
... 69 more rows

Sheet 14. Bill Impacts (hidden)
Z1: =MATCH(A13, '3. Rate Class Selection'!B19:B40,0) -> 1 | AA1: =VLOOKUP(A13, lists!AO:AP,2,0) -> kWh
A11: Choose a Rate Class from the drop-down menu below and click UPDATE. For Street Lighting and USL classes, please ensure that the number of customers is manually entered into cells B30 and B31. Click the UPDATE button to refresh the sheet.
A13: RESIDENTIAL | F13: =IF(ISERROR(SEARCH("MicroFit",A13,1))=FALSE,"Bill impact presentation for this class does not exist.", "") -> 
A15: Consumption | B15: =730*D15*B17 -> 3650000 | C15: kWh | D15: 10000 | E15: =IF(AA1 = "kWh", "", "kW") -> 
A16: RPP Tier One | B16: 600 | C16: kWh | E16: 1
A17: Load Factor | B17: 0.5
A18: Loss Factor | B18: 1
B21: CURRENT ESTIMATED BILL | E21: PROPOSED ESTIMATED BILL
B22: Volume | C22: Current Rate ($) | D22: Current Charge ($) | E22: Volume | F22: Proposed Rate ($) | G22: Proposed Charge ($) | I22: Change ($) | J22: Change (%) | K22: % of Total RPP Bill | L22: % of Total TOU Bill
A23: Energy First Tier (kWh) | B23: 3650000 | C23: 0.075 | D23: =B23*C23 -> 273750 | E23: =B23 -> 3650000 | F23: =C23 -> 0.075 | G23: =E23*F23 -> 273750 | I23: =G23-D23 -> 0 | J23: =I23/D23 -> 0 | K23: =G23/G48 -> 0.8646078577
A24: Energy Second Tier (kWh) | B24: 0 | C24: 0.088 | D24: =B24*C24 -> 0 | E24: =B24 -> 0 | F24: =C24 -> 0.088 | G24: =E24*F24 -> 0 | I24: =G24-D24 -> 0 | J24: 0 | K24: =G24/G48 -> 0
A26: TOU - Off Peak | B26: =0.64*$B$15*$B$18 -> 2336000 | C26: 0.065 | D26: =C26*B26 -> 151840 | E26: =B26 -> 2336000 | F26: =C26 -> 0.065 | G26: =F26*E26 -> 151840 | I26: =G26-D26 -> 0 | J26: =I26/D26 -> 0 | L26: =G26/G54 -> 0.449726096
A27: TOU - Mid Peak | B27: =0.18*$B$15*$B$18 -> 657000 | C27: 0.1 | D27: =C27*B27 -> 65700 | E27: =B27 -> 657000 | F27: =C27 -> 0.1 | G27: =F27*E27 -> 65700 | H27: =G27*F27 -> 6570 | I27: =G27-D27 -> 0 | J27: =I27/D27 -> 0 | L27: =G27/G54 -> 0.1945930223
A28: TOU - On Peak | B28: =0.18*$B$15*$B$18 -> 657000 | C28: 0.117 | D28: 76869 | F28: =C28 -> 0.117 | G28: =F28*E28 -> 0 | H28: =G28*F28 -> 0 | J28: =I28/D28 -> 0 | L28: =G28/G54 -> 0
A30: Service Charge | B30: 1 | D30: 0 | G30: =F30*E30 -> 0 | H30: 0 | J30: 0 | K30: 0 | L30: 0
A31: Service Charge Rate Rider(s) | B31: 1 | C31: 0 | D31: 0 | F31: 0 | G31: 0 | H31: 0 | J31: 0 | K31: 0 | L31: 0
A32: Distribution Volumetric Rate | B32: 10000 | D32: 0 | E32: =B32 -> 10000 | G32: 0 | H32: 0 | I32: =G32-D32 -> 0 | J32: 0 | K32: 0 | L32: 0
A33: Low Voltage Volumetric Rate | B33: 10000 | D33: 0 | G33: 0 | H33: 0 | J33: 0 | K33: 0 | L33: 0
A34: Distribution Volumetric Rate Rider(s) | B34: 10000 | C34: 0 | D34: 0 | F34: 1.2025 | G34: 0 | H34: 0 | J34: 0 | K34: =G34/G48 -> 0 | L34: =G34/G54 -> 0
A35: Total: Distribution | D35: =ROUND(SUM(D30:D34),2) -> 0 | G35: =ROUND(SUM(G30:G34),2) -> 0 | J35: 0 | K35: =G35/G48 -> 0 | L35: =G35/G54 -> 0
A36: Total: Retail Transmission
A37: Sub-Total: Delivery (Distribution and Retail Transmission) | D37: =SUM(D36,D35) -> 0 | G37: =SUM(G36,G35) -> 0 | J37: 0 | K37: =G37/G48 -> 0 | L37: =G37/G54 -> 0
A38: Wholesale Market Service Rate | B38: 3650000 | C38: 0 | D38: =B38*C38 -> 0 | F38: =C38 -> 0 | G38: =E38*F38 -> 0 | J38: 0 | K38: 0 | L38: 0
A39: Rural Rate Protection Charge | B39: 3650000 | C39: 0 | D39: =B39*C39 -> 0 | E39: 3650000 | F39: 0 | G39: =E39*F39 -> 0 | I39: =G39-D39 -> 0 | J39: 0 | K39: 0 | L39: 0
A40: Standard Supply Service – Administration Charge (if applicable) | B40: 1 | C40: 0 | D40: =B40*C40 -> 0 | E40: 1 | F40: 0 | G40: =E40*F40 -> 0 | I40: =G40-D40 -> 0 | J40: 0 | K40: 0 | L40: 0
A41: Sub-Total: Regulatory | D41: =SUM(D38:D40) -> 0 | G41: =SUM(G38:H40) -> 0 | I41: =G41-D41 -> 0 | J41: 0 | K41: 0 | L41: 0
A42: Debt Retirement Charge (DRC) | B42: 3650000 | C42: 0.007 | D42: =B42*C42 -> 25550 | E42: =B42 -> 3650000 | F42: =C42 -> 0.007 | G42: =E42*F42 -> 25550 | I42: =G42-D42 -> 0 | J42: =I42/D42 -> 0 | K42: =G42/G48 -> 0.08069673339 | L42: =G42/G54 -> 0.07567506422
A44: Total Bill on RPP (before taxes) | D44: 299300 | G44: 311325 | I44: =G44-D44 -> 12025 | J44: =I44/D44 -> 0.04017707985 | K44: =G44/G48 -> 0.9832841691
A45: HST | C45: 0.13 | D45: =C45*D44 -> 38909 | F45: =C45 -> 0.13 | G45: =F45*G44 -> 40472.25 | I45: =G45-D45 -> 1563.25 | J45: =I45/D45 -> 0.04017707985 | K45: =G45/G48 -> 0.127826942
A46: Total Bill (including HST) | D46: =D45+D44 -> 338209 | G46: =G45+G44 -> 351797.25 | I46: =G46-D46 -> 13588.25 | J46: =I46/D46 -> 0.04017707985 | K46: =G46/G48 -> 1.111111111
A47: Ontario Clean Energy Benefit (OCEB) | C47: -0.1 | D47: =-0.1*D46 -> -33820.9 | F47: =C47 -> -0.1 | G47: =-0.1*G46 -> -35179.725 | I47: =G47-D47 -> -1358.825 | J47: =I47/D47 -> 0.04017707985 | K47: =G47/G48 -> -0.1111111111
A48: Total Bill on RPP (including OCEB) | D48: =D46+D47 -> 304388.1 | G48: =G46+G47 -> 316617.525 | I48: =G48-D48 -> 12229.425 | J48: =I48/D48 -> 0.04017707985 | K48: =G48/G48 -> 1
A50: Total Bill on TOU (before taxes) | D50: 319959 | G50: 331984 | I50: =G50-D50 -> 12025 | J50: =I50/D50 -> 0.03758294031 | L50: =G50/G54 -> 0.9832841691
A51: HST | C51: 0.13 | D51: =C51*D50 -> 41594.67 | F51: =C51 -> 0.13 | G51: =F51*G50 -> 43157.92 | I51: =G51-D51 -> 1563.25 | J51: =I51/D51 -> 0.03758294031 | L51: =G51/G54 -> 0.127826942
A52: Total Bill (including HST) | D52: =D51+D50 -> 361553.67 | G52: =G51+G50 -> 375141.92 | I52: =G52-D52 -> 13588.25 | J52: =I52/D52 -> 0.03758294031 | L52: =G52/G54 -> 1.111111111
A53: Ontario Clean Energy Benefit (OCEB) | C53: -0.1 | D53: =-0.1*D52 -> -36155.367 | F53: =C53 -> -0.1 | G53: =-0.1*G52 -> -37514.192 | I53: =G53-D53 -> -1358.825 | J53: =I53/D53 -> 0.03758294031 | L53: =G53/G54 -> -0.1111111111
A54: Total Bill on TOU (including OCEB) | D54: =D52+D53 -> 325398.303 | G54: =G52+G53 -> 337627.728 | I54: =G54-D54 -> 12229.425 | J54: =I54/D54 -> 0.03758294031 | L54: =G54/G54 -> 1
A57: Applicants must provide bill impacts for residential at 800 kWh and GS<50kW at 2000 kWh. In addition, their filing should cover the range that is relevant to their service territory, class by class. A general guideline of consumption levels follows: Residential (kWh) - 100, 250, 500, 800, 1000, 1500, 2000 GS<50kW (kWh) - 1000, 2000, 5000, 10000, 15000 GS>50kW (kW) 100, 500, 1000 Large User - range appropriate for utility Street/Sentinel Lighting Classes and USL - 150 kWh and 1 kW, range appropriate for utility.

Sheet 28. Bill Impacts
S1: 1 | Z1: =MATCH(C14, '3. Rate Class Selection'!B19:B40,0) -> 1 | AA1: =VLOOKUP(C14, lists!AO:AP,2,0) -> kWh
A14: Rate Class | C14: RESIDENTIAL
A16: Loss Factor | E16: 1.0358
A18: Consumption | C18: kWh | E18: 800
A20: If Billed on a kW basis:
A21: Demand | C21: kW
E25: Current Board-Approved | I25: Proposed | M25: Impact
E26: Rate | F26: Volume | G26: Charge | I26: Rate | J26: Volume | K26: Charge | M26: $ Change | N26: % Change
E27: ($) | G27: ($) | I27: ($) | K27: ($)
A28: Monthly Service Charge | E28: 9.55 | F28: 1 | G28: =F28*E28 -> 9.55 | I28: 9.68 | J28: 1 | K28: =J28*I28 -> 9.68 | M28: =K28-G28 -> 0.13 | N28: =IF((G28)=0,"",(M28/G28)) -> 0.01361256545
A29: Distribution Volumetric Rate | E29: 0.0231 | F29: 800 | G29: =F29*E29 -> 18.48 | I29: 0.0234 | J29: =F29 -> 800 | K29: =J29*I29 -> 18.72 | M29: 0.24 | N29: 0.01298701299
A30: Fixed Rate Riders | E30: 0 | F30: 1 | G30: =F30*E30 -> 0 | I30: 0 | J30: 1 | K30: =J30*I30 -> 0 | M30: 0
A31: Volumetric Rate Riders | E31: 0 | F31: 800 | G31: =F31*E31 -> 0 | I31: 0 | J31: =F31 -> 800 | K31: =J31*I31 -> 0 | M31: 0
A32: Sub-Total A (excluding pass through) | G32: =SUM(G28:G31) -> 28.03 | K32: =SUM(K28:K31) -> 28.4 | M32: 0.37 | N32: 0.0132001427
A33: Line Losses on Cost of Power | E33: =E45*0.64+E46*0.18+E47*0.18 -> 0.09246 | F33: =E18*(E16-1) -> 28.64 | G33: =E33*F33 -> 2.6480544 | I33: =I45*0.64+I46*0.18+I47*0.18 -> 0.09246 | J33: =F33 -> 28.64 | K33: =I33*J33 -> 2.6480544 | M33: 0 | N33: 0
A34: Total Deferral/Variance Account Rate Riders | E34: -0.0018 | F34: 800 | G34: =F34*E34 -> -1.44 | I34: 0 | J34: =F34 -> 800 | K34: =J34*I34 -> 0 | M34: 1.44 | N34: -1
A35: Low Voltage Service Charge | E35: 6e-05 | F35: 800 | G35: =F35*E35 -> 0.048 | I35: 6e-05 | J35: =F35 -> 800 | K35: =J35*I35 -> 0.048 | M35: 0 | N35: 0
A36: Smart Meter Entity Charge | E36: 0.79 | F36: 1 | G36: =F36*E36 -> 0.79 | I36: 0.79 | J36: =F36 -> 1 | K36: =J36*I36 -> 0.79 | M36: 0 | N36: 0
A37: Sub-Total B - Distribution (includes Sub-Total A) | G37: =SUM(G32:G36) -> 30.0760544 | K37: =SUM(K32:K36) -> 31.8860544 | M37: =K37-G37 -> 1.81 | N37: =IF((G37)=0,"",(M37/G37)) -> 0.06018076626
A38: RTSR - Network | E38: 0.008 | F38: 828.64 | G38: =F38*E38 -> 6.62912 | I38: 0.0077 | J38: =F38 -> 828.64 | K38: =J38*I38 -> 6.380528 | M38: -0.248592 | N38: -0.0375
A39: RTSR - Connection and/or Line and Transformation Connection | E39: 0.0042 | F39: 828.64 | G39: =F39*E39 -> 3.480288 | I39: 0.0042 | J39: =F39 -> 828.64 | K39: =J39*I39 -> 3.480288 | M39: 0 | N39: 0
A40: Sub-Total C - Delivery (including Sub-Total B) | G40: =SUM(G37:G39) -> 40.1854624 | K40: =SUM(K37:K39) -> 41.7468704 | M40: 1.561408 | N40: 0.03885504625
A41: Wholesale Market Service Charge (WMSC) | E41: 0.0044 | F41: =E18*E16 -> 828.64 | G41: =F41*E41 -> 3.646016 | I41: 0.0044 | J41: =E18*E16 -> 828.64 | K41: =J41*I41 -> 3.646016 | M41: 0 | N41: 0
A42: Rural and Remote Rate Protection (RRRP) | E42: 0.0013 | F42: =E18*E16 -> 828.64 | G42: 1.077232 | I42: 0.0013 | J42: =E18*E16 -> 828.64 | K42: 1.077232 | M42: 0 | N42: 0
A43: Standard Supply Service Charge | E43: 0.25 | F43: 1 | G43: 0.25 | I43: 0.25 | J43: 1 | K43: 0.25 | M43: 0 | N43: 0
A44: Debt Retirement Charge (DRC) | E44: 0.007 | F44: =E18 -> 800 | G44: 5.6 | I44: 0.007 | J44: =E18 -> 800 | K44: 5.6 | M44: 0 | N44: 0
A45: TOU - Off Peak | E45: 0.075 | F45: 512 | G45: 38.4 | I45: 0.075 | J45: =F45 -> 512 | K45: 38.4 | M45: 0 | N45: 0
A46: TOU - Mid Peak | E46: 0.112 | F46: 144 | G46: 16.128 | I46: 0.112 | J46: =F46 -> 144 | K46: 16.128 | M46: 0 | N46: 0
A47: TOU - On Peak | E47: 0.135 | F47: 144 | G47: 19.44 | I47: 0.135 | J47: =F47 -> 144 | K47: 19.44 | M47: 0 | N47: 0
A49: Total Bill on TOU (before Taxes) | G49: =SUM(G40:G44,G45:G47) -> 124.7267104 | K49: =SUM(K40:K44,K45:K47) -> 126.2881184 | M49: =K49-G49 -> 1.561408 | N49: =IF((G49)=0,"",(M49/G49)) -> 0.0125186337
A50: HST | E50: 0.13 | G50: =G49*E50 -> 16.21447235 | I50: 0.13 | K50: =K49*I50 -> 16.41745539 | M50: 0.20298304 | N50: 0.0125186337
A51: Total Bill (including HST) | G51: =G49+G50 -> 140.9411828 | K51: =K49+K50 -> 142.7055738 | M51: 1.76439104 | N51: 0.0125186337
A52: Ontario Clean Energy Benefit 1 | G52: =ROUND(-G51*10%,2) -> -14.09 | K52: =ROUND(-K51*10%,2) -> -14.27 | M52: -0.18 | N52: 0.01277501774
A53: Total Bill on TOU (including OCEB) | G53: =G51+G52 -> 126.8511828 | K53: =K51+K52 -> 128.4355738 | M53: 1.58439104 | N53: 0.01249015583
A58: Note: For distributors who have a majority of customers on Tiered pricing, please provide a separate bill impact for such customers.

Sheet lists (hidden)
A1: DISTRIBUTED GENERATION [DGEN] | B1: Embedded Distributor | C1: =COUNTA(B1:B17) -> 4 | I1: A Standby Service Charge will be applied for a month where standby power is not provided. The applicable rate is the approved Distribution Volumetric Rate of the applicable service class and is applied to gross metered demand or contracted amount, whichever is greater. A monthly administration charge of $200, for simple metering arrangements, or $500, for complex metering arrangements, will also be applied. | L1: Loss Factors | N1: Units | O1: Units1 | P1: Units2 | Z1: Account History | AA1: Account set up charge/change of occupancy charge (plus credit agency costs if applicable) | AB1: Total Loss Factor – Embedded Distributor – Hydro One Networks Inc. | AL1: Algoma Power Inc. | AM1: Algoma Power Inc. | AO1: DISTRIBUTED GENERATION [DGEN] | AP1: kW | AT1: Sub-Total: Delivery (Distribution and Retail Transmission)
A2: EMBEDDED DISTRIBUTOR | B2: General Service 3,000 to 4,999 kW | I2: Distribution Volumetric Rate | L2: Total Loss Factor – Primary Metered Customer | N2: $ | O2: $/kWh | P2: $ | Z2: Account set up charge/change of occupancy charge | AA2: Administrative Billing Charge | AB2: Total Loss Factor – Primary Metered Customer | AL2: Atikokan Hydro Inc. | AM2: Atikokan Hydro Inc. | AO2: EMBEDDED DISTRIBUTOR | AP2: kW | AT2: Wholesale Market Service Rate | AW2: =AU2*AV2 -> 0 | AX2: =AU2 -> 0 | AY2: 0 | AZ2: =AX2*AY2 -> 0 | BB2: =AZ2-AW2 -> 0 | BC2: =BB2/AW2 -> 
A3: EMBEDDED DISTRIBUTOR | B3: General Service 1,000 to 4,999 kW | I3: Distribution Volumetric Rate - $/kW of contracted amount | L3: Total Loss Factor – Primary Metered Customer < 5,000 kW | N3: $/kWh | O3: $/kW | P3: % | W3: MSC | Z3: Account set up charge/change of occupancy charge (plus credit agency costs if applicable – Residential) | AA3: Bell Canada Pole Rentals | AB3: Total Loss Factor – Primary Metered Customer < 5,000 kW | AL3: Bluewater Power Distribution Corporation | AM3: Bluewater Power Distribution Corporation | AO3: EMBEDDED DISTRIBUTOR | AP3: kW | AT3: Rural or Remote Electricity Rate Protection Charge (RRRP) | AW3: =AU3*AV3 -> 0 | AX3: 0 | AY3: 0 | AZ3: =AX3*AY3 -> 0 | BB3: =AZ3-AW3 -> 0 | BC3: =BB3/AW3 -> 
A4: FARMS - SINGLE PHASE ENERGY-BILLED [F1] | B4: General Service Equal To Or Greater Than 1,500 kW - Interval Metered | I4: Distribution Wheeling Service Rate | L4: Total Loss Factor – Primary Metered Customer > 5,000 kW | N4: $/kW | O4: $/kVA | W4: SM_Rate_Adder | Z4: Account set up charge/change of occupancy charge (plus credit agency costs if applicable) | AA4: Clearance Pole Attachment charge $/pole/year | AB4: Total Loss Factor – Primary Metered Customer > 5,000 kW | AL4: Brant County Power Inc. | AM4: Brant County Power Inc. | AO4: FARMS - SINGLE PHASE ENERGY-BILLED [F1] | AP4: kWh | AT4: Standard Supply Service – Administration Charge (if applicable) | AW4: =AU4*AV4 -> 0 | AX4: 0 | AY4: 0 | AZ4: =AX4*AY4 -> 0 | BB4: =AZ4-AW4 -> 0 | BC4: =BB4/AW4 -> 
A5: FARMS - THREE PHASE ENERGY-BILLED [F3] | I5: Electricity Rate | L5: Total Loss Factor – Secondary Metered Customer | N5: $/kVA | W5: MSC_Rate_Rider_ | Z5: Arrears certificate | AA5: Collection of account charge – no disconnection | AB5: Total Loss Factor – Secondary Metered Customer | AL5: Brantford Power Inc. | AM5: Brantford Power Inc. | AO5: FARMS - THREE PHASE ENERGY-BILLED [F3] | AP5: kWh | AT5: Sub-Total: Regulatory | AW5: =SUM(AW2:AW4) -> 0 | AZ5: =SUM(AZ2:BA4) -> 0 | BB5: =AZ5-AW5 -> 0 | BC5: =BB5/AW5 -> 
A6: GENERAL SERVICE - COMMERCIAL | I6: Electricity Rate - All Additional kWh | L6: Total Loss Factor – Secondary Metered Customer < 5,000 kW | W6: VC | Z6: Arrears certificate (credit reference) | AA6: Collection of account charge – no disconnection – after regular hours | AB6: Total Loss Factor – Secondary Metered Customer < 5,000 kW | AL6: Burlington Hydro Inc. | AM6: Burlington Hydro Inc. | AO6: GENERAL SERVICE - COMMERCIAL | AP6: kW | AT6: Debt Retirement Charge (DRC) | AW6: =AU6*AV6 -> 0 | AX6: =AU6 -> 0 | AY6: =AV6 -> 0 | AZ6: =AX6*AY6 -> 0 | BB6: =AZ6-AW6 -> 0 | BC6: =BB6/AW6 -> 
A7: GENERAL SERVICE - INSTITUTIONAL | I7: Electricity Rate - First 250 kWh | AL7: Cambridge and North Dumfries Hydro Inc. | AM7: Cambridge and North Dumfries Hydro Inc. | AO7: GENERAL SERVICE - INSTITUTIONAL | AP7: kW
A8: GENERAL SERVICE 1,000 TO 2,999 KW | I8: Electricity Rate -All Additional kWh | L8: Total Loss Factor – Secondary Metered Customer > 5,000 kW | W8: VC_Rate_Rider_ | Z8: Charge to certify cheque | AA8: Collection of account charge – no disconnection - during regular business hours | AB8: Total Loss Factor – Secondary Metered Customer > 5,000 kW | AL8: Canadian Niagara Power Inc. | AM8: Canadian Niagara Power Inc. | AO8: GENERAL SERVICE 1,000 TO 2,999 KW | AP8: kW | AT8: Total Bill on RPP (before taxes) | BB8: =AZ8-AW8 -> 0
A9: GENERAL SERVICE 1,000 TO 4,999 KW | I9: Electricity Rate First 1,000 kWh | L9: Distribution Loss Factor - Secondary Metered Customer < 5,000 kW | W9: VC_GA_Rate_Rider_kW_ | Z9: Collection of Account Charge – No Disconnection | AA9: Collection of account charge – no disconnection – during regular hours | AL9: Centre Wellington Hydro Ltd. | AM9: Centre Wellington Hydro Ltd. | AO9: GENERAL SERVICE 1,000 TO 4,999 KW | AP9: kW | AT9: HST | AW9: =AV9*AW8 -> 0 | AY9: =AV9 -> 0 | AZ9: =AY9*AZ8 -> 0 | BB9: =AZ9-AW9 -> 0 | BC9: =BB9/AW9 -> 
A10: GENERAL SERVICE 1,000 TO 4,999 KW - INTERVAL METERS | I10: Electricity Rate First 25,000 kWh | L10: Distribution Loss Factor - Secondary Metered Customer > 5,000 kW | W10: VC_LV_Rate | Z10: Credit Card Convenience Charge | AA10: Collection/Disconnection/Load Limiter/Reconnection – if in Community | AL10: Chapleau Public Utilities Corporation | AM10: Chapleau Public Utilities Corporation | AO10: GENERAL SERVICE 1,000 TO 4,999 KW - INTERVAL METERS | AP10: kW | AT10: Total Bill (including HST) | AW10: =AW9+AW8 -> 0 | AZ10: =AZ9+AZ8 -> 0 | BB10: =AZ10-AW10 -> 0 | BC10: =BB10/AW10 -> 
A11: GENERAL SERVICE 1,000 TO 4,999 KW (CO-GENERATION) | I11: Electricity Rate First 6,000 kWh | L11: Distribution Loss Factor - Primary Metered Customer < 5,000 kW | W11: RTSR_Network | Z11: Credit check (plus credit agency costs) | AA11: Credit Card Convenience Charge | AL11: Collus PowerStream Corporation | AM11: Collus PowerStream Corporation | AO11: GENERAL SERVICE 1,000 TO 4,999 KW (CO-GENERATION) | AP11: kW | AT11: Ontario Clean Energy Benefit (OCEB) | AW11: =-0.1*AW10 -> 0 | AY11: =AV11 -> 0 | AZ11: =-0.1*AZ10 -> 0 | BB11: =AZ11-AW11 -> 0 | BC11: =BB11/AW11 -> 
A12: GENERAL SERVICE 1,500 TO 4,999 KW | I12: Electricity Rate Next 1,500 kWh | L12: Distribution Loss Factor - Primary Metered Customer > 5,000 kW | W12: RTSR_Connection | Z12: Credit reference Letter | AA12: Disconnect/Reconnect at meter – after regular hours | AL12: Cooperative Hydro Embrun Inc. | AM12: Cooperative Hydro Embrun Inc. | AO12: GENERAL SERVICE 1,500 TO 4,999 KW | AP12: kW | AT12: Total Bill on RPP (including OCEB) | AW12: =AW10+AW11 -> 0 | AZ12: =AZ10+AZ11 -> 0 | BB12: =AZ12-AW12 -> 0 | BC12: =BB12/AW12 -> 
A13: GENERAL SERVICE 2,500 TO 4,999 KW | I13: General Service 1,500 to 4,999 kW customer | AL13: E.L.K. Energy Inc. | AM13: E.L.K. Energy Inc. | AO13: GENERAL SERVICE 2,500 TO 4,999 KW | AP13: kW
A14: GENERAL SERVICE 3,000 TO 4,999 KW | I14: General Service 50 to 1,499 kW customer | L14: Total Loss Factor - Embedded Distributor | W14: RTSR_Network_Interval | Z14: Credit reference/credit check (plus credit agency costs – General Service) | AA14: Disconnect/Reconnect at meter – during regular hours | AL14: Enersource Hydro Mississauga Inc. | AM14: Enersource Hydro Mississauga Inc. | AO14: GENERAL SERVICE 3,000 TO 4,999 KW | AP14: kW | AT14: Total Bill on TOU (before taxes) | BB14: =AZ14-AW14 -> 0
A15: GENERAL SERVICE 3,000 TO 4,999 KW - INTERMEDIATE USE | I15: General Service Large Use customer | L15: Total Loss Factor – Embedded Distributor – Hydro One Networks Inc. | W15: RTSR_Connection_Interval | Z15: Credit Reference/credit check (plus credit agency costs) | AA15: Disconnect/Reconnect at pole – after regular hours | AL15: Entegrus Powerlines Inc. | AM15: Entegrus Powerlines Inc. | AO15: GENERAL SERVICE 3,000 TO 4,999 KW - INTERMEDIATE USE | AP15: kW | AT15: HST | AW15: =AV15*AW14 -> 0 | AY15: =AV15 -> 0 | AZ15: =AY15*AZ14 -> 0 | BB15: =AZ15-AW15 -> 0 | BC15: =BB15/AW15 -> 
A16: GENERAL SERVICE 3,000 TO 4,999 KW - INTERVAL METERED | I16: Green Energy Act Initiatives Funding Adder - effective until the date of the next cost of service-based rate order | W16: RTSR_Network_Interval_GR1000kW | Z16: Dispute Test – Commercial self contained -- MC | AA16: Disconnect/Reconnect at pole – during regular hours | AL16: Entegrus Powerlines Inc. - Dutton Service Area | AM16: Entegrus Powerlines Inc. - Dutton Service Area | AO16: GENERAL SERVICE 3,000 TO 4,999 KW - INTERVAL METERED | AP16: kW | AT16: Total Bill (including HST) | AW16: =AW15+AW14 -> 0 | AZ16: =AZ15+AZ14 -> 0 | BB16: =AZ16-AW16 -> 0 | BC16: =BB16/AW16 -> 
A17: GENERAL SERVICE 3,000 TO 4,999 KW - TIME OF USE | I17: Green Energy Act Plan Funding Adder | W17: RTSR_Connection_Interval_GR1000kW | Z17: Dispute Test – Commercial TT -- MC | AA17: Disconnect/Reconnect Charge – At Meter – After Hours | AL17: Entegrus Powerlines Inc. - former Chatham-Kent Hydro Service Area | AM17: Entegrus Powerlines Inc. - former Chatham-Kent Hydro Service Area | AO17: GENERAL SERVICE 3,000 TO 4,999 KW - TIME OF USE | AP17: kW | AT17: Ontario Clean Energy Benefit (OCEB) | AW17: =-0.1*AW16 -> 0 | AY17: =AV17 -> 0 | AZ17: =-0.1*AZ16 -> 0 | BB17: =AZ17-AW17 -> 0 | BC17: =BB17/AW17 -> 
A18: GENERAL SERVICE 50 TO 1,000 KW | I18: Green Energy Act Plan Funding Adder - effective April 1, 2013 until March 31, 2014 | W18: RTSR_Line_Connection | Z18: Dispute Test – Residential | AA18: Disconnect/Reconnect Charge – At Meter – During Regular Hours | AL18: Entegrus Powerlines Inc. - Newbury Service Area | AM18: Entegrus Powerlines Inc. - Newbury Service Area | AO18: GENERAL SERVICE 50 TO 1,000 KW | AP18: kW | AT18: Total Bill on TOU (including OCEB) | AW18: =AW16+AW17 -> 0 | AZ18: =AZ16+AZ17 -> 0 | BB18: =AZ18-AW18 -> 0 | BC18: =BB18/AW18 -> 
A19: GENERAL SERVICE 50 TO 1,000 KW - INTERVAL METERS | I19: Green Energy Act Plan Funding Adder - effective April 1, 2014 until March 31, 2015 | W19: RTSR_Transformer_Connection | Z19: Duplicate Invoices for previous billing | AA19: Disconnect/Reconnect Charge – At Pole – After Hours | AL19: Entegrus Powerlines Inc. - Strathroy, Mount Brydges and Parkhill Service Areas | AM19: Entegrus Powerlines Inc. - Strathroy, Mount Brydges and Parkhill Service Areas | AO19: GENERAL SERVICE 50 TO 1,000 KW - INTERVAL METERS | AP19: kW
A20: GENERAL SERVICE 50 TO 1,000 KW - NON INTERVAL METERS | I20: ICM Rate Rider (2014) - in effect until the effective date of the next cost of service rates | W20: WMSR | Z20: Easement Letter | AA20: Disconnect/Reconnect Charge – At Pole – During Regular Hours | AL20: ENWIN Utilities Ltd. | AM20: ENWIN Utilities Ltd. | AO20: GENERAL SERVICE 50 TO 1,000 KW - NON INTERVAL METERS | AP20: kW
A21: GENERAL SERVICE 50 TO 1,499 KW | I21: Low Voltage Service Charge | W21: RRRP | Z21: Income Tax Letter | AA21: Disconnect/Reconnect Charges for non payment of account - At Meter After Hours | AL21: Erie Thames Powerlines Corporation | AM21: Erie Thames Powerlines Corporation | AO21: GENERAL SERVICE 50 TO 1,499 KW | AP21: kW
A22: GENERAL SERVICE 50 TO 1,499 KW - INTERVAL METERED | I22: Low Voltage Service Rate | W22: SPC | Z22: Interval Meter Interrogation | AA22: Disconnect/Reconnect charges for non payment of account – at meter after regular hours | AL22: Espanola Regional Hydro Distribution Corporation | AM22: Espanola Regional Hydro Distribution Corporation | AO22: GENERAL SERVICE 50 TO 1,499 KW - INTERVAL METERED | AP22: kW
A23: GENERAL SERVICE 50 TO 2,499 KW | I23: Low Voltage Volumetric Rate | W23: DRC | Z23: Interval meter request change | AA23: Disconnect/Reconnect Charges for non payment of account - At Meter During Regular Hours | AL23: Essex Powerlines Corporation | AM23: Essex Powerlines Corporation | AO23: GENERAL SERVICE 50 TO 2,499 KW | AP23: kW
A24: GENERAL SERVICE 50 TO 2,999 KW | I24: LRAM Rate Rider - Effective Until April 30, 2015 | W24: SSS | Z24: Legal letter | AA24: Disconnect/Reconnect charges for non payment of account – at meter during regular hours | AL24: Festival Hydro Inc. | AM24: Festival Hydro Inc. | AO24: GENERAL SERVICE 50 TO 2,999 KW | AP24: kW
A25: GENERAL SERVICE 50 TO 2,999 KW - INTERVAL METERED | I25: Minimum Distribution Charge - per KW of maximum billing demand in the previous 11 months | W25: SFLF | Z25: Legal letter charge | AA25: Disconnect/Reconnect charges for non payment of account – at pole after regular hours | AL25: Fort Frances Power Corporation | AM25: Fort Frances Power Corporation | AO25: GENERAL SERVICE 50 TO 2,999 KW - INTERVAL METERED | AP25: kW
A26: GENERAL SERVICE 50 TO 2,999 KW - TIME OF USE | B26: January | I26: Monthly Distribution Wheeling Service Rate - Dedicated LV Line | W26: DLF_Secondary_LT_5000kW | Z26: Meter dispute charge plus Measurement Canada fees (if meter found correct) | AA26: Disconnect/Reconnect charges for non payment of account – at pole during regular hours | AL26: Greater Sudbury Hydro Inc. | AM26: Greater Sudbury Hydro Inc. | AO26: GENERAL SERVICE 50 TO 2,999 KW - TIME OF USE | AP26: kW
A27: GENERAL SERVICE 50 TO 4,999 KW | B27: February | I27: Monthly Distribution Wheeling Service Rate - Hydro One Networks | W27: DLF_Secondary_GT_5000kW | Z27: Notification charge | AA27: Disconnect/Reconnection for >300 volts - after regular hours | AL27: Grimsby Power Inc. | AM27: Grimsby Power Inc. | AO27: GENERAL SERVICE 50 TO 4,999 KW | AP27: kW
A28: GENERAL SERVICE 50 TO 4,999 KW - INTERVAL METERED | B28: March | I28: Monthly Distribution Wheeling Service Rate - Shared LV Line | W28: DLF_Primary_LT_5000kW | Z28: Pulling Post Dated Cheques | AA28: Disconnect/Reconnection for >300 volts - during regular hours | AL28: Guelph Hydro Electric Systems Inc. | AM28: Guelph Hydro Electric Systems Inc. | AO28: GENERAL SERVICE 50 TO 4,999 KW - INTERVAL METERED | AP28: kW
A29: GENERAL SERVICE 50 TO 4,999 KW - TIME OF USE | B29: April | I29: Monthly Distribution Wheeling Service Rate - Waterloo North Hydro | W29: DLF_Primary_GT_5000kW | Z29: Request for other billing information | AA29: Disposal of Concrete Poles | AL29: Haldimand County Hydro Inc. | AM29: Haldimand County Hydro Inc. | AO29: GENERAL SERVICE 50 TO 4,999 KW - TIME OF USE | AP29: kW
A30: GENERAL SERVICE 50 TO 4,999 KW (COGENERATION) | B30: May | I30: Rate Rider for Application of Tax Change - effective until April 30, 2015 | W30: TLF_Secondary_LT_5000kW | Z30: Returned cheque (plus bank charges) | AA30: Dispute Test – Commercial TT -- MC | AL30: Halton Hills Hydro Inc. | AM30: Halton Hills Hydro Inc. | AO30: GENERAL SERVICE 50 TO 4,999 KW (COGENERATION) | AP30: kW
A31: GENERAL SERVICE 50 TO 4,999 KW (FORMERLY TIME OF USE) | B31: June | I31: Rate Rider for Application of Tax Change - effective until December 31, 2014 | W31: TLF_Secondary_GT_5000kW | Z31: Returned cheque charge (plus bank charges) | AA31: Install/Remove load control device – after regular hours | AL31: Hearst Power Distribution Company Limited | AM31: Hearst Power Distribution Company Limited | AO31: GENERAL SERVICE 50 TO 4,999 KW (FORMERLY TIME OF USE) | AP31: kW
A32: GENERAL SERVICE 50 TO 499 KW | B32: July | I32: Rate Rider for Application of Tax Change (2014) - effective until April 30, 2015 | W32: TLF_Primary_LT_5000kW | Z32: Special Billing Service (aggregation) | AA32: Install/Remove load control device – during regular hours | AL32: Horizon Utilities Corporation | AM32: Horizon Utilities Corporation | AO32: GENERAL SERVICE 50 TO 499 KW | AP32: kW
A33: GENERAL SERVICE 50 TO 699 KW | B33: August | I33: Rate Rider for Application of Tax Change (per connection) - effective until April 30, 2015 | W33: TLF_Primary_GT_5000kW | Z33: Special Billing Service (sub-metering charge per meter) | AA33: Interval Meter Interrogation | AL33: Hydro 2000 Inc. | AM33: Hydro 2000 Inc. | AO33: GENERAL SERVICE 50 TO 699 KW | AP33: kW
A34: GENERAL SERVICE 50 TO 999 KW | B34: September | I34: Rate Rider for CGAAP Accounting Changes (2013) - effective until April 30, 2017 | W34: TLF_EmbeddedDistributor | Z34: Special meter reads | AA34: Interval Meter Load Management Tool Charge $/month | AL34: Hydro Hawkesbury Inc. | AM34: Hydro Hawkesbury Inc. | AO34: GENERAL SERVICE 50 TO 999 KW | AP34: kW
A35: GENERAL SERVICE 50 TO 999 KW - INTERVAL METERED | B35: October | I35: Rate Rider for Deferral/Variance Account (2012) - effective unitl April 30, 2016 | Z35: Statement of Account | AA35: Interval meter request change | AL35: Hydro One Brampton Networks Inc. | AM35: Hydro One Brampton Networks Inc. | AO35: GENERAL SERVICE 50 TO 999 KW - INTERVAL METERED | AP35: kW
A36: GENERAL SERVICE 500 TO 4,999 KW | B36: November | I36: Rate Rider for Deferral/Variance Account Disposition – effective until April 30, 2015 | Z36: Unprocessed Payment Charge (plus bank charges) | AA36: Late Payment – per annum | AL36: Hydro One Networks Inc. | AM36: Hydro One Networks Inc. | AO36: GENERAL SERVICE 500 TO 4,999 KW | AP36: kW
A37: GENERAL SERVICE 700 TO 4,999 KW | B37: December | I37: Rate Rider for Deferral/Variance Account Disposition (2012) - effective until April 30, 2016 | AA37: Late Payment – per month | AL37: Hydro Ottawa Limited | AM37: Hydro Ottawa Limited | AO37: GENERAL SERVICE 700 TO 4,999 KW | AP37: kW
A38: GENERAL SERVICE DEMAND BILLED (50 KW AND ABOVE) [GSD] | I38: Rate Rider for Deferral/Variance Account Disposition (2013) - effective until April 30, 2014 | AA38: Layout fees | AL38: Innisfil Hydro Distribution Systems Limited | AM38: Innisfil Hydro Distribution Systems Limited | AO38: GENERAL SERVICE DEMAND BILLED (50 KW AND ABOVE) [GSD] | AP38: kW
A39: GENERAL SERVICE ENERGY BILLED (LESS THAN 50 KW) [GSE-METERED] | I39: Rate Rider for Deferral/Variance Account Disposition (2014) - effective until April 28, 2016 | AA39: Meter dispute charge plus Measurement Canada fees (if meter found correct) | AL39: Kenora Hydro Electric Corporation Ltd. | AM39: Kenora Hydro Electric Corporation Ltd. | AO39: GENERAL SERVICE ENERGY BILLED (LESS THAN 50 KW) [GSE-METERED] | AP39: kWh
A40: GENERAL SERVICE ENERGY BILLED (LESS THAN TO 50 KW) [GSE-UNMETERED] | I40: Rate Rider for Deferral/Variance Account Disposition (2014) - effective until April 30, 2015 | AA40: Meter Interrogation Charge | AL40: Kingston Hydro Corporation | AM40: Kingston Hydro Corporation | AO40: GENERAL SERVICE ENERGY BILLED (LESS THAN TO 50 KW) [GSE-UNMETERED] | AP40: kWh
A41: GENERAL SERVICE EQUAL TO OR GREATER THAN 1,500 KW | I41: Rate Rider for Deferral/Variance Account Disposition (2014) - effective until December 31, 2014 | AA41: Missed Service Appointment | AL41: Kitchener-Wilmot Hydro Inc. | AM41: Kitchener-Wilmot Hydro Inc. | AO41: GENERAL SERVICE EQUAL TO OR GREATER THAN 1,500 KW | AP41: kW
A42: GENERAL SERVICE EQUAL TO OR GREATER THAN 1,500 KW - INTERVAL METERED | I42: Rate Rider for Deferral/Variance Account Disposition (2014) - effective until December 31, 2015 | AA42: Norfolk Pole Rentals – Billed | AL42: Lakefront Utilities Inc. | AM42: Lakefront Utilities Inc. | AO42: GENERAL SERVICE EQUAL TO OR GREATER THAN 1,500 KW - INTERVAL METERED | AP42: kW
A43: GENERAL SERVICE GREATER THAN 1,000 KW | I43: Rate Rider for Deferral/Variance Account Dispositon (2012) - effective until April 30, 2016 | AA43: Optional Interval/TOU Meter charge $/month | AL43: Lakeland Power Distribution Ltd. | AM43: Lakeland Power Distribution Ltd. | AO43: GENERAL SERVICE GREATER THAN 1,000 KW | AP43: kW
A44: GENERAL SERVICE GREATER THAN 50 kW - WMP | I44: Rate Rider for Disposition of Accounting Changes Under CGAAP Account 1576 - effective until April 30, 2016 | AA44: Overtime Locate | AL44: London Hydro Inc. | AM44: London Hydro Inc. | AO44: GENERAL SERVICE GREATER THAN 50 kW - WMP | AP44: kW
A45: GENERAL SERVICE INTERMEDIATE 1,000 TO 4,999 KW | I45: Rate Rider for Disposition of Deferral/Variance Accounts (2010) - effective until December 31, 2014 | AA45: Owner Requested Disconnection/Reconnection – after regular hours | AL45: Midland Power Utility Corporation | AM45: Midland Power Utility Corporation | AO45: GENERAL SERVICE INTERMEDIATE 1,000 TO 4,999 KW | AP45: kW
A46: GENERAL SERVICE INTERMEDIATE RATE CLASS 1,000 TO 4,999 KW (FORMERLY GENERAL SERVICE > 50 KW CUSTOMERS) | I46: Rate Rider for Disposition of Deferral/Variance Accounts (2011) - effective until April 30, 2015 | AA46: Owner Requested Disconnection/Reconnection – during regular hours | AL46: Milton Hydro Distribution Inc. | AM46: Milton Hydro Distribution Inc. | AO46: GENERAL SERVICE INTERMEDIATE RATE CLASS 1,000 TO 4,999 KW (FORMERLY GENERAL SERVICE > 50 KW CUSTOMERS) | AP46: kW
A47: GENERAL SERVICE INTERMEDIATE RATE CLASS 1,000 TO 4,999 KW (FORMERLY LARGE USE CUSTOMERS) | I47: Rate Rider for Disposition of Deferral/Variance Accounts (2011) - effective until April 30, 2016 | AA47: Returned cheque (plus bank charges) | AL47: Newmarket - Tay Power Distribution Ltd. | AM47: Newmarket - Tay Power Distribution Ltd. | AO47: GENERAL SERVICE INTERMEDIATE RATE CLASS 1,000 TO 4,999 KW (FORMERLY LARGE USE CUSTOMERS) | AP47: kW
A48: GENERAL SERVICE LESS THAN 50 KW | I48: Rate Rider for Disposition of Deferral/Variance Accounts (2012) - effective until April 30, 2014 | AA48: Rural system expansion / line connection fee | AL48: Niagara Peninsula Energy Inc. | AM48: Niagara Peninsula Energy Inc. | AO48: GENERAL SERVICE LESS THAN 50 KW | AP48: kWh
A49: GENERAL SERVICE LESS THAN 50 KW - SINGLE PHASE ENERGY-BILLED [G1] | I49: Rate Rider for Disposition of Deferral/Variance Accounts (2012) - effective until April 30, 2015 | AA49: Same Day Open Trench | AL49: Niagara-on-the-Lake Hydro Inc. | AM49: Niagara-on-the-Lake Hydro Inc. | AO49: GENERAL SERVICE LESS THAN 50 KW - SINGLE PHASE ENERGY-BILLED [G1] | AP49: kWh
A50: GENERAL SERVICE LESS THAN 50 KW - THREE PHASE ENERGY-BILLED [G3] | I50: Rate Rider for Disposition of Deferral/Variance Accounts (2012) - effective until April 30, 2016 | AA50: Scheduled Day Open Trench | AL50: Norfolk Power Distribution Inc. | AM50: Norfolk Power Distribution Inc. | AO50: GENERAL SERVICE LESS THAN 50 KW - THREE PHASE ENERGY-BILLED [G3] | AP50: kWh
A51: GENERAL SERVICE LESS THAN 50 KW - TRANSMISSION CLASS ENERGY-BILLED [T] | I51: Rate Rider for Disposition of Deferral/Variance Accounts (2012) - effective until August 31, 2014 | AA51: Service call – after regular hours | AL51: North Bay Hydro Distribution Limited | AM51: North Bay Hydro Distribution Limited | AO51: GENERAL SERVICE LESS THAN 50 KW - TRANSMISSION CLASS ENERGY-BILLED [T] | AP51: kWh
A52: GENERAL SERVICE LESS THAN 50 KW - URBAN ENERGY-BILLED [UG] | I52: Rate Rider for Disposition of Deferral/Variance Accounts (2012) - effective until December 31, 2015 | AA52: Service call – customer owned equipment | AL52: Northern Ontario Wires Inc. | AM52: Northern Ontario Wires Inc. | AO52: GENERAL SERVICE LESS THAN 50 KW - URBAN ENERGY-BILLED [UG] | AP52: kWh
A53: GENERAL SERVICE SINGLE PHASE - G1 | I53: Rate Rider for Disposition of Deferral/Variance Accounts (2012) - effective until December 31, 2016 Applicable only in the former service area of Clinton Power | AA53: Service Call – Customer-owned Equipment – After Regular Hours | AL53: Oakville Hydro Electricity Distribution Inc. | AM53: Oakville Hydro Electricity Distribution Inc. | AO53: GENERAL SERVICE SINGLE PHASE - G1 | AP53: kW
A54: GENERAL SERVICE THREE PHASE - G3 | I54: Rate Rider for Disposition of Deferral/Variance Accounts (2012) – effective until December 31, 2016 Applicable only in the former service area of Clinton Power | AA54: Service Call – Customer-owned Equipment – During Regular Hours | AL54: Orangeville Hydro Limited | AM54: Orangeville Hydro Limited | AO54: GENERAL SERVICE THREE PHASE - G3 | AP54: kW
A55: INTERMEDIATE USERS | I55: Rate Rider for Disposition of Deferral/Variance Accounts (2012) - effective until January 31, 2014 | AA55: Service Charge for onsite interrogation of interval meter due to customer phone line failure - required weekly until line repaired $ 6 | AL55: Orillia Power Distribution Corporation | AM55: Orillia Power Distribution Corporation | AO55: INTERMEDIATE USERS | AP55: kW
A56: INTERMEDIATE WITH SELF GENERATION | I56: Rate Rider for Disposition of Deferral/Variance Accounts (2012) - effective until June 30, 2014 | AA56: Service Layout - Commercial | AL56: Oshawa PUC Networks Inc. | AM56: Oshawa PUC Networks Inc. | AO56: INTERMEDIATE WITH SELF GENERATION | AP56: kW
A57: LARGE USE | I57: Rate Rider for Disposition of Deferral/Variance Accounts (2013) - Applicable only to Wholesale Market Participants - effective until April 30, 2015 | AA57: Service Layout - ResidentiaI | AL57: Ottawa River Power Corporation | AM57: Ottawa River Power Corporation | AO57: LARGE USE | AP57: kW
A58: LARGE USE - 3TS | I58: Rate Rider for Disposition of Deferral/Variance Accounts (2013) - effective until April 30, 2014 | AA58: Special Billing Service (sub-metering charge per meter) | AL58: Parry Sound Power Corporation | AM58: Parry Sound Power Corporation | AO58: LARGE USE - 3TS | AP58: kW
A59: LARGE USE - FORD ANNEX | I59: Rate Rider for Disposition of Deferral/Variance Accounts (2013) - effective until April 30, 2015 | AA59: Special meter reads | AL59: Peterborough Distribution Incorporated | AM59: Peterborough Distribution Incorporated | AO59: LARGE USE - FORD ANNEX | AP59: kW
A60: LARGE USE - REGULAR | I60: Rate Rider for Disposition of Deferral/Variance Accounts (2013) - effective until April 30, 2015 - not applicable to Wholesale Market Participants | AA60: Specific Charge for Access to the Power Poles - $/pole/year | AL60: PowerStream Inc. | AM60: PowerStream Inc. | AO60: LARGE USE - REGULAR | AP60: kW
A61: LARGE USE > 5000 KW | I61: Rate Rider for Disposition of Deferral/Variance Accounts (2013) - effective until April 30, 2017 | AA61: Specific Charge for Bell Canada Access to the Power Poles – per pole/year | AL61: PUC Distribution Inc. | AM61: PUC Distribution Inc. | AO61: LARGE USE > 5000 KW | AP61: kW
A62: microFIT | I62: Rate Rider for Disposition of Deferral/Variance Accounts (2013) - effective until August 31, 2014 | AA62: Switching for company maintenance – Charge based on Time and Materials | AL62: Renfrew Hydro Inc. | AM62: Renfrew Hydro Inc. | AO62: microFIT | AP62: $
A63: RESIDENTIAL | I63: Rate Rider for Disposition of Deferral/Variance Accounts (2013) - effective until December 31, 2014 | AA63: Temporary Service – Install & remove – overhead – no transformer | AL63: Rideau St. Lawrence Distribution Inc. | AM63: Rideau St. Lawrence Distribution Inc. | AO63: RESIDENTIAL | AP63: kWh
A64: RESIDENTIAL - HENSALL | I64: Rate Rider for Disposition of Deferral/Variance Accounts (2013) - effective until May 31, 2014 | AA64: Temporary Service – Install & remove – overhead – with transformer | AL64: Sioux Lookout Hydro Inc. | AM64: Sioux Lookout Hydro Inc. | AO64: RESIDENTIAL - HENSALL | AP64: kWh
A65: RESIDENTIAL - HIGH DENSITY [R1] | I65: Rate Rider for Disposition of Deferral/Variance Accounts (2014) - effective until December 31, 2015 | AA65: Temporary Service – Install & remove – underground – no transformer | AL65: St. Thomas Energy Inc. | AM65: St. Thomas Energy Inc. | AO65: RESIDENTIAL - HIGH DENSITY [R1] | AP65: kWh
A66: RESIDENTIAL - LOW DENSITY [R2] | I66: Rate Rider for Disposition of Deferred PILs Variance Account 1562 - effective until March 31, 2016 | AA66: Temporary service install & remove – overhead – no transformer | AL66: Thunder Bay Hydro Electricity Distribution Inc. | AM66: Thunder Bay Hydro Electricity Distribution Inc. | AO66: RESIDENTIAL - LOW DENSITY [R2] | AP66: kWh
A67: RESIDENTIAL - MEDIUM DENSITY [R1] | I67: Rate Rider for Disposition of Deferred PILs Variance Account 1562 (2012) - effective until April 30, 2015 | AA67: Temporary Service Install & Remove – Overhead – With Transformer | AL67: Tillsonburg Hydro Inc. | AM67: Tillsonburg Hydro Inc. | AO67: RESIDENTIAL - MEDIUM DENSITY [R1] | AP67: kWh
A68: RESIDENTIAL - NORMAL DENSITY [R2] | I68: Rate Rider for Disposition of Deferred PILs Variance Account 1562 (2012) - effective until April 30, 2016 | AA68: Temporary Service Install & Remove – Underground – No Transformer | AL68: Toronto Hydro-Electric System Limited | AM68: Toronto Hydro-Electric System Limited | AO68: RESIDENTIAL - NORMAL DENSITY [R2] | AP68: kWh
A69: RESIDENTIAL - TIME OF USE | I69: Rate Rider for Disposition of Deferred PILs Variance Account 1562 (2nd Installment - 2012) - effective until April 30, 2016 | AA69: Temporary service installation and removal – overhead – no transformer | AL69: Veridian Connections Inc. | AM69: Veridian Connections Inc. | AO69: RESIDENTIAL - TIME OF USE | AP69: kWh
A70: RESIDENTIAL - URBAN [UR] | I70: Rate Rider for Disposition of Deferred PILs Variance Account 1562 (per connection) (2012) - effective until April 30, 2015 | AA70: Temporary service installation and removal – overhead – with transformer | AL70: Wasaga Distribution Inc. | AM70: Wasaga Distribution Inc. | AO70: RESIDENTIAL - URBAN [UR] | AP70: kWh
A71: RESIDENTIAL REGULAR | I71: Rate Rider for Disposition of Deferred PILs Variance Account 1562 (per connection) (2012) - effective until April 30, 2016 | AA71: Temporary service installation and removal – underground – no transformer | AL71: Waterloo North Hydro Inc. | AM71: Waterloo North Hydro Inc. | AO71: RESIDENTIAL REGULAR | AP71: kWh
A72: RESIDENTIAL SUBURBAN | I72: Rate Rider for Disposition of Global Adjustment Sub-Account (2011) - effective until April 30, 2015 Applicable only for Non-RPP Customers | AL72: Welland Hydro-Electric System Corp. | AM72: Welland Hydro-Electric System Corp. | AO72: RESIDENTIAL SUBURBAN | AP72: kWh
A73: RESIDENTIAL SUBURBAN SEASONAL | I73: Rate Rider for Disposition of Global Adjustment Sub-Account (2011) - effective until April 30, 2016 Applicable only for Non-RPP Customers | AL73: Wellington North Power Inc. | AM73: Wellington North Power Inc. | AO73: RESIDENTIAL SUBURBAN SEASONAL | AP73: kWh
A74: RESIDENTIAL SUBURBAN YEAR ROUND | I74: Rate Rider for Disposition of Global Adjustment Sub-Account (2012) - effective until April 30, 2014 Applicable only for Non-RPP Customers | AL74: West Coast Huron Energy Inc. | AM74: West Coast Huron Energy Inc. | AO74: RESIDENTIAL SUBURBAN YEAR ROUND | AP74: kWh
A75: RESIDENTIAL URBAN | I75: Rate Rider for Disposition of Global Adjustment Sub-Account (2012) - effective until April 30, 2015 Applicable only for Non-RPP Customers | AL75: Westario Power Inc. | AM75: Westario Power Inc. | AO75: RESIDENTIAL URBAN | AP75: kWh
A76: RESIDENTIAL URBAN YEAR-ROUND | I76: Rate Rider for Disposition of Global Adjustment Sub-Account (2012) - effective until April 30, 2015 Applicatble only for Non-RPP Customers | AL76: Whitby Hydro Electric Corporation | AM76: Whitby Hydro Electric Corporation | AO76: RESIDENTIAL URBAN YEAR-ROUND | AP76: kWh
A77: SEASONAL RESIDENTIAL | I77: Rate Rider for Disposition of Global Adjustment Sub-Account (2012) - effective until April 30, 2016 Applicable only for Non-RPP Customers | AL77: Woodstock Hydro Services Inc. | AM77: Woodstock Hydro Services Inc. | AO77: SEASONAL RESIDENTIAL | AP77: kWh
A78: SEASONAL RESIDENTIAL - HIGH DENSITY [R3] | I78: Rate Rider for Disposition of Global Adjustment Sub-Account (2012) - effective until January 31, 2014. Applicable only for Non-RPP Customers | AO78: SEASONAL RESIDENTIAL - HIGH DENSITY [R3] | AP78: kWh
A79: SEASONAL RESIDENTIAL - NORMAL DENSITY [R4] | I79: Rate Rider for Disposition of Global Adjustment Sub-Account (2012) - effective until June 30, 2014 Applicable only for Non-RPP Customers | AO79: SEASONAL RESIDENTIAL - NORMAL DENSITY [R4] | AP79: kWh
A80: SENTINEL LIGHTING | I80: Rate Rider for Disposition of Global Adjustment Sub-Account (2012) Applicable only for Non-RPP Customers - effective until August 31, 2014 | AO80: SENTINEL LIGHTING | AP80: kW
A81: SMALL COMMERCIAL AND USL - PER CONNECTION | I81: Rate Rider for Disposition of Global Adjustment Sub-Account (2012) Applicable only to Non-RPP Customers - effective until August 31, 2014 | AO81: SMALL COMMERCIAL AND USL - PER CONNECTION | AP81: kWh
A82: SMALL COMMERCIAL AND USL - PER METER | I82: Rate Rider for Disposition of Global Adjustment Sub-Account (2013) - effective until April 30, 2014 Applicable only for Non-RPP Customers | AO82: SMALL COMMERCIAL AND USL - PER METER | AP82: kWh
A83: STANDARD A GENERAL SERVICE AIR ACCESS | I83: Rate Rider for Disposition of Global Adjustment Sub-Account (2013) - effective until April 30, 2015 Applicable only for Non-RPP Customers | AO83: STANDARD A GENERAL SERVICE AIR ACCESS | AP83: kWh
A84: STANDARD A GENERAL SERVICE ROAD/RAIL | I84: Rate Rider for Disposition of Global Adjustment Sub-Account (2013) - effective until April 30, 2015 Applicable only for Non-RPP Customers and excluding Wholesale Market Participants | AO84: STANDARD A GENERAL SERVICE ROAD/RAIL | AP84: kWh
A85: STANDARD A GRID CONNECTED | I85: Rate Rider for Disposition of Global Adjustment Sub-Account (2013) - effective until April 30, 2017 Applicable only for Non-RPP Customers | AO85: STANDARD A GRID CONNECTED | AP85: kWh
A86: STANDARD A RESIDENTIAL AIR ACCESS | I86: Rate Rider For Disposition of Global Adjustment Sub-Account (2013) - effective until August 31, 2014 Applicable only for Non-RPP Customers | AO86: STANDARD A RESIDENTIAL AIR ACCESS | AP86: kWh
A87: STANDARD A RESIDENTIAL ROAD/RAIL | I87: Rate Rider for Disposition of Global Adjustment Sub-Account (2013) - effective until December 31, 2014 Applicable only for Non-RPP Customers | AO87: STANDARD A RESIDENTIAL ROAD/RAIL | AP87: kWh
A88: STANDBY - GENERAL SERVICE 1,000 - 5,000 KW | I88: Rate Rider for Disposition of Global Adjustment Sub-Account (2013) - effective until May 31, 2014 Applicable only for Non-RPP Customers | AO88: STANDBY - GENERAL SERVICE 1,000 - 5,000 KW | AP88: kW
A89: STANDBY - GENERAL SERVICE 50 - 1,000 KW | I89: Rate Rider for Disposition of Global Adjustment Sub-Account (2014) - effective until December 31, 2014. Applicable only for Non-RPP - Class B Customers | AO89: STANDBY - GENERAL SERVICE 50 - 1,000 KW | AP89: kW
A90: STANDBY - LARGE USE | I90: Rate Rider for Disposition of Global Adjustment Sub-Account (2014) - effective until December 31, 2014. Applicable only for Non-RPP Customers | AO90: STANDBY - LARGE USE | AP90: kW
A91: STANDBY DISTRIBUTION SERVICE | I91: Rate Rider for Disposition of Global Adjustment Sub-Account (2014) - effective until December 31, 2014. Applicable only for Non-RPP Customers - Class A Customers | AO91: STANDBY DISTRIBUTION SERVICE | AP91: kW
A92: STANDBY POWER | I92: Rate Rider for Disposition of Global Adjustment Sub-Account (2014) - effective until December 31, 2014. Applicable only for Non-RPP Customers - Interval Metered | AO92: STANDBY POWER | AP92: kW
A93: STANDBY POWER - APPROVED ON AN INTERIM BASIS | I93: Rate Rider for Disposition of Global Adjustment Sub-Account (2014) - effective until December 31, 2014. Applicable only for Non-RPP Customers - Non Interval Metered | AO93: STANDBY POWER - APPROVED ON AN INTERIM BASIS | AP93: kW
A94: STANDBY POWER GENERAL SERVICE 1,500 TO 4,999 KW | I94: Rate Rider for Disposition of Global Adjustment Sub-Account (2014) - effective until December 31, 2015. Applicable only for Non-RPP Customers. | AO94: STANDBY POWER GENERAL SERVICE 1,500 TO 4,999 KW | AP94: kW
A95: STANDBY POWER GENERAL SERVICE 50 TO 1,499 KW | I95: Rate Rider for Disposition of Post Retirement Actuarial Gain - effective until March 31, 2025 | AO95: STANDBY POWER GENERAL SERVICE 50 TO 1,499 KW | AP95: kW
A96: STANDBY POWER GENERAL SERVICE LARGE USE | I96: Rate Rider for Disposition of Residual Hisotrical Smart Meter Costs - effective until April 30, 2015 | AO96: STANDBY POWER GENERAL SERVICE LARGE USE | AP96: kW
A97: STREET LIGHTING | I97: Rate Rider for Disposition of Residual Hisotrical Smart Meter Costs - effective until April 30, 2017 | AO97: STREET LIGHTING | AP97: kW
A98: SUB TRANSMISSION [ST] | I98: Rate Rider for Disposition of Residual Historical Smart Meter Costs - effective until April 30, 2014 | AO98: SUB TRANSMISSION [ST] | AP98: kW
A99: UNMETERED SCATTERED LOAD | I99: Rate Rider for Disposition of Residual Historical Smart Meter Costs - effective until April 30, 2016 | AO99: UNMETERED SCATTERED LOAD | AP99: kWh
A100: URBAN GENERAL SERVICE DEMAND BILLED (50 KW AND ABOVE) [UGD] | I100: Rate Rider for Disposition of Residual Historical Smart Meter Costs - effective until August 31, 2014 | AO100: URBAN GENERAL SERVICE DEMAND BILLED (50 KW AND ABOVE) [UGD] | AP100: kW
A101: URBAN GENERAL SERVICE ENERGY BILLED (LESS THAN 50 KW) [UGE] | I101: Rate Rider for Disposition of Residual Historical Smart Meter Costs - effective until August 31, 2015 | AO101: URBAN GENERAL SERVICE ENERGY BILLED (LESS THAN 50 KW) [UGE] | AP101: kWh
A102: WESTPORT SEWAGE TREATMENT PLANT | I102: Rate Rider for Disposition of Residual Historical Smart Meter Costs - effective until December 31, 2014 | AO102: WESTPORT SEWAGE TREATMENT PLANT | AP102: kW
A103: YEAR-ROUND RESIDENTIAL - R2 | I103: Rate Rider for Disposition of Residual Historical Smart Meter Costs – effective until December 31, 2014 | AO103: YEAR-ROUND RESIDENTIAL - R2 | AP103: kWh
I104: Rate Rider for Disposition of Residual Historical Smart Meter Costs - effective until December 31, 2015
I105: Rate Rider for Disposition of Residual Historical Smart Meter Costs - effective until December 31, 2016
I106: Rate Rider for Disposition of Residual Historical Smart Meter Costs - effective until October 31, 2014
I107: Rate Rider for Disposition of Residual Historical Smart Meter Costs - effective until September 30, 2014
I108: Rate Rider for Disposition of Residual Historical Smart Meter Costs - Non-Interval Metered - effective until April 30, 2014
I109: Rate Rider for Disposition of Residual Historical Smart Meter Costs 2 - in effect until the effective date of the next cost of service-based rate order
I110: Rate Rider for Disposition of Residual Historical Smart Meter Costs 3 - in effect until the effective date of the next cost of service-based rate order
I111: Rate Rider for Disposition of Residual Incremental Historical Smart Meter Costs - effective until August 31, 2015
I112: Rate Rider for Disposition of Stranded Meter costs - effective until April 30, 2015
I113: Rate Rider for Disposition of Stranded Meter Costs - effective until April 30, 2016
I114: Rate Rider for Disposition of Stranded Meter Costs - effective until April 30, 2017
I115: Rate Rider for Global Adjustment Sub Account Disposition - effective until April 30, 2016 Applicable only for Non RPP Customers
I116: Rate Rider for Global Adjustment Sub-Account Disposition (2014) - effective until April 28, 2016 Applicable only for Non-RPP Customers
I117: Rate Rider for Global Adjustment Sub-Account Disposition (2014) - effective until April 30, 2015 Applicable only for Non-RPP Customers
I118: Rate Rider for Global Adjustment Sub-Account Disposition (2014) - effective until December 30, 2015 Applicable only for Non-RPP Customers
I119: Rate Rider for Global Adjustment Sub-Account Disposition (2014) - effective until December 31, 2014 Applicable only for Non-RPP Customers
I120: Rate Rider for Global Adjustment Sub-Account Disposition (2014) - effective until December 31, 2015 Applicable only for Non-RPP Customers
I121: Rate Rider for Global Adjustment Sub-Account Disposition Applicable only for Non-RPP Customers - effective until April 30, 2015
I122: Rate Rider for Incremental Capital - Distribution Volumetric - effective until April 30, 2016
I123: Rate Rider for Incremental Capital - Service Charge - effective until April 30, 2016
I124: Rate Rider for Incremental Capital (2012) - effective until April 30, 2015
I125: Rate Rider for Lost Revenue Adjustment Mechanism Variance Account (LRAMVA) Recovery (2012 CDM Activities) - effective until April 30, 2015
I126: Rate Rider for Recover of Residual Historical Smart meter Costs - effective until June 30, 2014
I127: Rate Rider for Recovery of CGAAP/CWIP Differential - in effect until December 31, 2016
I128: Rate Rider for Recovery of Foregone Revenue - effective until April 30, 2015
I129: Rate Rider for Recovery of Forgone Revenue - effective until April 30, 2015
I130: Rate Rider for Recovery of Forgone Revenue - effective until December 31, 2014
I131: Rate Rider for Recovery of Green Energy Act related costs - effective until December 31, 2014
I132: Rate Rider for Recovery of Incremental Capital (2013) - in effect until the effective date of the next cost of service-based rate order
I133: Rate Rider for Recovery of Incremental Capital (2013) - in effect until the effective date of the next cost of service-based rate order
I134: Rate Rider for Recovery of Incremental Capital (2013) (per connection) - in effect until the effective date of the next cost of service-based rate order
I135: Rate Rider for Recovery of Incremental Capital (2013) (per connection)- in effect until the effective date of the next cost of service-based rate order
I136: Rate Rider for Recovery of Incremental Capital Costs
I137: Rate Rider for Recovery of Incremental Capital Costs - effective until April 30, 2015
I138: Rate Rider for Recovery of Incremental Capital Module Costs (2014) - in effect until the effective date of the next cost of service-based rate order
I139: Rate Rider for Recovery of Incremental Capital Module Costs (2014) - in effect until the effective date of the next cost of service-based rate order
I140: Rate Rider for Recovery of Lost Revenue Adjustment Mechanism ( LRAM)/Shared Savings Mechanism (SSM) (2012) - effective until August 31, 2014
I141: Rate Rider for Recovery of Lost Revenue Adjustment Mechanism (2013) - effective until December 31, 2014
I142: Rate Rider for Recovery of Lost Revenue Adjustment Mechanism (LRAM) - effective until April 30, 2016
I143: Rate Rider for Recovery of Lost Revenue Adjustment Mechanism (LRAM) (pre-2011 CDM Activities) - effective until April 30, 2015
I144: Rate Rider for Recovery of Lost Revenue Adjustment Mechanism (LRAM) (pre-2011 CDM Activities) (2013) - effective until April 30, 2015
I145: Rate Rider for Recovery of Lost Revenue Adjustment Mechanism (LRAM)/Shared Savings
I146: Rate Rider for Recovery of Lost Revenue Adjustment Mechanism (LRAM)/Shared Savings Mechanism (SSM) - effective until December 31, 2018 and applicable in the service area excluding the former service areas of Clinton Power and West Perth Power
I147: Rate Rider for Recovery of Lost Revenue Adjustment Mechanism (LRAM)/Shared Savings Mechanism (SSM) - effective until December 31, 2014 and applicable in the service area excluding the former service areas of Clinton Power and West Perth Power
I148: Rate Rider for Recovery of Lost Revenue Adjustment Mechanism (LRAM)/Shared Savings Mechanism (SSM) - effective until December 31, 2014 and applicable only in the former service area of Clinton Power
I149: Rate Rider for Recovery of Lost Revenue Adjustment Mechanism (LRAM)/Shared Savings Mechanism (SSM) - effective until December 31, 2014 and applicable only in the former service area of West Perth Power
I150: Rate Rider for Recovery of Lost Revenue Adjustment Mechanism (LRAM)/Shared Savings Mechanism (SSM) - effective until December 31, 2014 and applicable in the service area excluding the former service area of Clinton Power
I151: Rate Rider for Recovery of Lost Revenue Adjustment Mechanism (LRAM)/Shared Savings Mechanism (SSM) - effective until March 31, 2016
I152: Rate Rider for Recovery of Lost Revenue Adjustment Mechanism (LRAM)/Shared Savings Mechanism (SSM) (2012) - effective until August 31, 2014
I153: Rate Rider for Recovery of Lost Revenue Adjustment Mechanism (LRAM)/Shared Savings Mechanism (SSM) Recovery - effective until April 30, 2015
I154: Rate Rider for Recovery of Lost Revenue Adjustment Mechanism Variance Account (LRAMVA) (2014) - effective until April 30, 2015
I155: Rate Rider for Recovery of Residual Historical Smart Meter Costs - effective July 1, 2012 - April 30, 2016
I156: Rate Rider for Recovery of Smart Meter Incremental Revenue Requirement - effective until the date of the next cost of service-based rate order
I157: Rate Rider for Recovery of Smart Meter Incremental Revenue Requirement - effective until the effective date of the next cost of service-based rate order, or October 31, 2017, whichever occurs earlier
I158: Rate Rider for Recovery of Smart Meter Incremental Revenue Requirement - in effect until the effective date of the next cost of service-based rate order
I159: Rate Rider for Recovery of Smart Meter Incremental Revenue Requirement - Non-Interval Metered - in effect until the effective date of the next cost of service-based rate order
I160: Rate Rider for Recovery of Smart Meter Incremental Revenue Requirements - in effect until the effective date of the next cost of service application
I161: Rate Rider for Recovery of Smart Meter Stranded Assets - effective until April 30, 2016
I162: Rate Rider for Recovery of Storm Damage Costs - effective until August 31, 2017
I163: Rate Rider for Recovery of Stranded Assets - effective until April 30, 2016
I164: Rate Rider for Recovery of Stranded Meter Assets - effective July 1, 2012 - April 30, 2016
I165: Rate Rider for Recovery of Stranded Meter Assets – effective until April 30, 2015
I166: Rate Rider for Recovery of Stranded Meter Assets - effective until April 30, 2016
I167: Rate Rider for Recovery of Stranded Meter Assets - effective until April 30, 2017
I168: Rate Rider for Recovery of Stranded Meter Assets - effective until August 31, 2015
I169: Rate Rider for Recovery of Stranded Meter Assets - effective until August 31, 2017
I170: Rate Rider for Recovery of Stranded Meter Assets - effective until December 31, 2014
I171: Rate Rider for Recovery of Stranded Meter Assets - effective until December 31, 2015
I172: Rate Rider for Recovery of Stranded Meter Assets - effective until June 30, 2016
I173: Rate Rider for Recovery of Stranded Meter Assets - effective until March 31, 2016
I174: Rate Rider for Recovery of Stranded Meter Assets - effective until May 31, 2014
I175: Rate Rider for Reversal of Deferral/Variance Account Disposition (2011) - effective until April 30, 2015
I176: Rate Rider for Smart Meter Disposition - effective until April 30, 2016
I177: Rate Rider for Smart Meter Incremental Revenue Requirement - in effect until the effective date of the next cost of service-based rate order
I178: Rate Rider for Smart Metering Entity Charge - effective until October 31, 2018
I179: Rate Rider for Stranded Meter Cost Recovery - effective until April 30, 2017
I180: Rate Rider for Tax Change
I181: Rate Rider for Tax Change - effective until April 30, 2015
I182: Rate Rider for Tax Change (2014) - effective until April 30, 2015
I183: Retail Transmission Rate - Line and Transformation Connection Service Rate
I184: Retail Transmission Rate - Line and Transformation Connection Service Rate - (less than 1,000 kW)
I185: Retail Transmission Rate - Line and Transformation Connection Service Rate - Interval Metered
I186: Retail Transmission Rate - Line and Transformation Connection Service Rate - Interval Metered (1,000 to 4,999 kW)
I187: Retail Transmission Rate - Line and Transformation Connection Service Rate - Interval Metered (less than 1,000 kW)
I188: Retail Transmission Rate - Line and Transformation Connection Service Rate - Interval Metered < 1,000 kW
I189: Retail Transmission Rate - Line and Transformation Connection Service Rate FOR ALL SERVICE AREAS EXCEPT HENSALL
I190: Retail Transmission Rate - Line and Transformation Connection Service Rate - Interval Metered > 1,000 kW
I191: Retail Transmission Rate - Line Connection Service Rate
I192: Retail Transmission Rate - Network Service Rate
I193: Retail Transmission Rate - Network Service Rate - (less than 1,000 kW)
I194: Retail Transmission Rate - Network Service Rate - Interval Metered
I195: Retail Transmission Rate - Network Service Rate - Interval Metered (1,000 to 4,999 kW)
I196: Retail Transmission Rate - Network Service Rate - Interval Metered (less than 1,000 kW)
I197: Retail Transmission Rate - Network Service Rate - Interval Metered > 1,000 kW
I198: Retail Transmission Rate - Transformation Connection Service Rate
I199: Rider for Global Adjustment Sub-Account Disposition (2012) - effective until April 30, 2016 Applicable only for Non-RPP Customers
I200: Rural or Remote Electricity Rate Protection Charge (RRRP)
... 14 more rows

Sheet Sheet1
